Body Name,Body,Service Label,Service Code,CIPFA Detailed Expenditure Type,CIPFA Detailed Expenditure Code,Date,Transaction Number,Net Amount,Supplier Name,,,,,,,,#REF!
Nottinghamshire County Council,1111/1001,Surplus or Deficit from Trading Undertak,TRADING,Supplies & Services,DDA,04/09/2015,06-10001,"3,804.06",Hamelin Paperbrands Ltd,,,,,,,,
Nottinghamshire County Council,1111/1001,Surplus or Deficit from Trading Undertak,TRADING,Supplies & Services,DDA,10/09/2015,06-10001,"1,227.53",Hamelin Paperbrands Ltd,,,,,,,,
Nottinghamshire County Council,1111/1001,Surplus or Deficit from Trading Undertak,TRADING,Supplies & Services,DDA,15/09/2015,06-10001,"1,712.24",Hamelin Paperbrands Ltd,,,,,,,,
Nottinghamshire County Council,1111/1001,Surplus or Deficit from Trading Undertak,TRADING,Supplies & Services,DDA,24/09/2015,06-10001,"3,141.51",Hamelin Paperbrands Ltd,,,,,,,,
Nottinghamshire County Council,1111/1001,Surplus or Deficit from Trading Undertak,TRADING,Supplies & Services,DDA,30/09/2015,06-10001,"1,024.70",Hamelin Paperbrands Ltd,,,,,,,,
Nottinghamshire County Council,1111/1001,Surplus or Deficit from Trading Undertak,TRADING,Supplies & Services,DDA,24/09/2015,06-10001,526.35,Plastoreg Smidt Gmbh,,,,,,,,
Nottinghamshire County Council,1111/1001,Surplus or Deficit from Trading Undertak,TRADING,Supplies & Services,DDA,18/09/2015,06-10001,"2,606.44",Henkel Loctite Adhesives Ltd,,,,,,,,
Nottinghamshire County Council,1111/1001,Surplus or Deficit from Trading Undertak,TRADING,Supplies & Services,DAA,07/09/2015,06-10001,"1,856.00",Langley Mechanical Services Ltd,,,,,,,,
Nottinghamshire County Council,1111/1001,Surplus or Deficit from Trading Undertak,TRADING,Supplies & Services,DAA,04/09/2015,06-10001,"1,573.36",Bostik Ltd,,,,,,,,
Nottinghamshire County Council,1111/1001,Surplus or Deficit from Trading Undertak,TRADING,Supplies & Services,DAA,04/09/2015,06-10001,723,Reliance Medical Ltd,,,,,,,,
Nottinghamshire County Council,1111/1001,Surplus or Deficit from Trading Undertak,TRADING,Supplies & Services,DFA,25/09/2015,06-10001,800,Advanced Ticketing Limited,,,,,,,,
Nottinghamshire County Council,1111/1001,Surplus or Deficit from Trading Undertak,TRADING,Supplies & Services,DFA,25/09/2015,06-10001,800,Advanced Ticketing Limited,,,,,,,,
Nottinghamshire County Council,1111/1001,Surplus or Deficit from Trading Undertak,TRADING,Supplies & Services,DFA,25/09/2015,06-10001,800,Advanced Ticketing Limited,,,,,,,,
Nottinghamshire County Council,1111/1001,Surplus or Deficit from Trading Undertak,TRADING,Supplies & Services,DAA,24/09/2015,06-10001,"1,301.20",Vivid Laminating Technologies Ltd,,,,,,,,
Nottinghamshire County Council,1111/1001,Surplus or Deficit from Trading Undertak,TRADING,Supplies & Services,DAA,08/09/2015,06-10001,576,Heritage Envelopes Ltd,,,,,,,,
Nottinghamshire County Council,1111/1001,Surplus or Deficit from Trading Undertak,TRADING,Supplies & Services,DAA,15/09/2015,06-10001,690,Heritage Envelopes Ltd,,,,,,,,
Nottinghamshire County Council,1111/1001,Surplus or Deficit from Trading Undertak,TRADING,Supplies & Services,DAA,30/09/2015,06-10001,650.93,Heritage Envelopes Ltd,,,,,,,,
Nottinghamshire County Council,1111/1001,Surplus or Deficit from Trading Undertak,TRADING,Supplies & Services,DAA,14/09/2015,06-10001,"1,619.60",Antalis Key Accounts,,,,,,,,
Nottinghamshire County Council,1111/1001,Surplus or Deficit from Trading Undertak,TRADING,Supplies & Services,DAA,23/09/2015,06-10001,"1,845.35",Antalis Key Accounts,,,,,,,,
Nottinghamshire County Council,1111/1001,Surplus or Deficit from Trading Undertak,TRADING,Supplies & Services,DAA,24/09/2015,06-10001,"15,600.00",Antalis Key Accounts,,,,,,,,
Nottinghamshire County Council,1111/1001,Surplus or Deficit from Trading Undertak,TRADING,Supplies & Services,DAA,10/09/2015,06-10001,"3,563.00",Rocom Ltd.,,,,,,,,
Nottinghamshire County Council,1111/1001,Surplus or Deficit from Trading Undertak,TRADING,Premises Related,BAA,15/09/2015,06-10001,513.24,Flexiform Business Furniture,,,,,,,,
Nottinghamshire County Council,1111/1001,Surplus or Deficit from Trading Undertak,TRADING,Premises Related,BAA,15/09/2015,06-10001,651.58,Flexiform Business Furniture,,,,,,,,
Nottinghamshire County Council,1111/1001,Surplus or Deficit from Trading Undertak,TRADING,Premises Related,BAA,24/09/2015,06-10001,567.6,Avery Uk,,,,,,,,
Nottinghamshire County Council,1111/1001,Surplus or Deficit from Trading Undertak,TRADING,Premises Related,BJA,04/09/2015,06-10001,"1,561.70",Freudenberg Household Products Lp,,,,,,,,
Nottinghamshire County Council,1111/1001,Surplus or Deficit from Trading Undertak,TRADING,Premises Related,BJA,14/09/2015,06-10001,756.4,Freudenberg Household Products Lp,,,,,,,,
Nottinghamshire County Council,1111/1001,Surplus or Deficit from Trading Undertak,TRADING,Premises Related,BJA,23/09/2015,06-10001,696,Freudenberg Household Products Lp,,,,,,,,
Nottinghamshire County Council,1111/1001,Surplus or Deficit from Trading Undertak,TRADING,Premises Related,BJA,30/09/2015,06-10001,"1,344.20",Freudenberg Household Products Lp,,,,,,,,
Nottinghamshire County Council,1111/1001,Surplus or Deficit from Trading Undertak,TRADING,Premises Related,BJA,18/09/2015,06-10001,"1,814.40",Polystar Plastics Ltd,,,,,,,,
Nottinghamshire County Council,1111/1001,Surplus or Deficit from Trading Undertak,TRADING,Premises Related,BJA,30/09/2015,06-10001,"1,827.84",Polystar Plastics Ltd,,,,,,,,
Nottinghamshire County Council,1111/1001,Surplus or Deficit from Trading Undertak,TRADING,Premises Related,BJA,08/09/2015,06-10001,976,Kimberley Clark European Services Ltd,,,,,,,,
Nottinghamshire County Council,1111/1001,Surplus or Deficit from Trading Undertak,TRADING,Premises Related,BJA,15/09/2015,06-10001,"1,650.36",Kimberley Clark European Services Ltd,,,,,,,,
Nottinghamshire County Council,1111/1001,Surplus or Deficit from Trading Undertak,TRADING,Premises Related,BJA,18/09/2015,06-10001,"1,366.50",Kimberley Clark European Services Ltd,,,,,,,,
Nottinghamshire County Council,1111/1001,Surplus or Deficit from Trading Undertak,TRADING,Premises Related,BJA,18/09/2015,06-10001,748,Macfarlane Group (Uk) Ltd,,,,,,,,
Nottinghamshire County Council,1111/1001,Surplus or Deficit from Trading Undertak,TRADING,Premises Related,BJA,18/09/2015,06-10001,533,Cromwell Polythene Ltd,,,,,,,,
Nottinghamshire County Council,1111/1001,Surplus or Deficit from Trading Undertak,TRADING,Premises Related,BJA,08/09/2015,06-10001,"1,044.47",Johnson Diversey,,,,,,,,
Nottinghamshire County Council,1111/1001,Surplus or Deficit from Trading Undertak,TRADING,Premises Related,BJA,15/09/2015,06-10001,626.71,Johnson Diversey,,,,,,,,
Nottinghamshire County Council,1111/1001,Surplus or Deficit from Trading Undertak,TRADING,Premises Related,BJA,22/09/2015,06-10001,612.16,Johnson Diversey,,,,,,,,
Nottinghamshire County Council,1111/1001,Surplus or Deficit from Trading Undertak,TRADING,Premises Related,BJA,07/09/2015,06-10001,"10,293.32",Premiere Products (James Briggs Ltd),,,,,,,,
Nottinghamshire County Council,1111/1001,Surplus or Deficit from Trading Undertak,TRADING,Premises Related,BJA,16/09/2015,06-10001,732,Premiere Products (James Briggs Ltd),,,,,,,,
Nottinghamshire County Council,1111/1001,Surplus or Deficit from Trading Undertak,TRADING,Premises Related,BJA,18/09/2015,06-10001,877.88,Premiere Products (James Briggs Ltd),,,,,,,,
Nottinghamshire County Council,1111/1001,Surplus or Deficit from Trading Undertak,TRADING,Premises Related,BJA,22/09/2015,06-10001,999,Dowding & Plummer Ltd,,,,,,,,
Nottinghamshire County Council,1111/1001,Surplus or Deficit from Trading Undertak,TRADING,Supplies & Services,DAA,08/09/2015,06-10001,750.56,W V Howe (Hardware) Ltd,,,,,,,,
Nottinghamshire County Council,1111/1001,Surplus or Deficit from Trading Undertak,TRADING,Supplies & Services,DAA,10/09/2015,06-10001,"1,285.08",W V Howe (Hardware) Ltd,,,,,,,,
Nottinghamshire County Council,1111/1001,Surplus or Deficit from Trading Undertak,TRADING,Supplies & Services,DAA,10/09/2015,06-10001,668.1,W V Howe (Hardware) Ltd,,,,,,,,
Nottinghamshire County Council,1111/1001,Surplus or Deficit from Trading Undertak,TRADING,Supplies & Services,DAA,18/09/2015,06-10001,"1,412.57",W V Howe (Hardware) Ltd,,,,,,,,
Nottinghamshire County Council,1111/1001,Surplus or Deficit from Trading Undertak,TRADING,Supplies & Services,DAA,18/09/2015,06-10001,"1,838.92",W V Howe (Hardware) Ltd,,,,,,,,
Nottinghamshire County Council,1111/1001,Surplus or Deficit from Trading Undertak,TRADING,Supplies & Services,DAA,08/09/2015,06-10001,"4,120.00",Catering Supplies (Wakefield) Ltd,,,,,,,,
Nottinghamshire County Council,1111/1001,Surplus or Deficit from Trading Undertak,TRADING,Supplies & Services,DAA,30/09/2015,06-10001,585,Catering Supplies (Wakefield) Ltd,,,,,,,,
Nottinghamshire County Council,1111/1001,Surplus or Deficit from Trading Undertak,TRADING,Supplies & Services,DAA,28/09/2015,06-10001,"2,410.10",Sca Hygiene,,,,,,,,
Nottinghamshire County Council,1111/1001,Surplus or Deficit from Trading Undertak,TRADING,Supplies & Services,DAA,30/09/2015,06-10001,"3,781.02",Sca Hygiene,,,,,,,,
Nottinghamshire County Council,1111/1001,Surplus or Deficit from Trading Undertak,TRADING,Supplies & Services,DAA,30/09/2015,06-10001,"1,665.68",Sca Hygiene,,,,,,,,
Nottinghamshire County Council,1111/1001,Surplus or Deficit from Trading Undertak,TRADING,Supplies & Services,DBA,23/09/2015,06-10001,586.08,North West Tea Service Ltd,,,,,,,,
Nottinghamshire County Council,1111/1001,Surplus or Deficit from Trading Undertak,TRADING,Supplies & Services,DAA,08/09/2015,06-10001,878.3,Dualit Ltd,,,,,,,,
Nottinghamshire County Council,1111/1001,Surplus or Deficit from Trading Undertak,TRADING,Supplies & Services,DAA,14/09/2015,06-10001,840,Stearn Electric Company Ltd,,,,,,,,
Nottinghamshire County Council,1111/1001,Surplus or Deficit from Trading Undertak,TRADING,Supplies & Services,DCA,08/09/2015,06-10001,"2,750.60",Shermond,,,,,,,,
Nottinghamshire County Council,1111/1001,Surplus or Deficit from Trading Undertak,TRADING,Supplies & Services,DCA,08/09/2015,06-10001,"1,328.33",Shermond,,,,,,,,
Nottinghamshire County Council,1111/1001,Surplus or Deficit from Trading Undertak,TRADING,Supplies & Services,DCA,30/09/2015,06-10001,"1,763.81",Shermond,,,,,,,,
Nottinghamshire County Council,1111/1001,Surplus or Deficit from Trading Undertak,TRADING,Supplies & Services,DKA,08/09/2015,06-10001,526.03,Bunzl Cleaning & Hygiene Supplies,,,,,,,,
Nottinghamshire County Council,1111/1001,Surplus or Deficit from Trading Undertak,TRADING,Supplies & Services,DKA,10/09/2015,06-10001,531.5,Bunzl Cleaning & Hygiene Supplies,,,,,,,,
Nottinghamshire County Council,1111/1001,Surplus or Deficit from Trading Undertak,TRADING,Supplies & Services,DKA,15/09/2015,06-10001,549.8,Bunzl Cleaning & Hygiene Supplies,,,,,,,,
Nottinghamshire County Council,1111/1001,Surplus or Deficit from Trading Undertak,TRADING,Supplies & Services,DKA,16/09/2015,06-10001,871.26,Bunzl Cleaning & Hygiene Supplies,,,,,,,,
Nottinghamshire County Council,1111/1001,Surplus or Deficit from Trading Undertak,TRADING,Supplies & Services,DKA,23/09/2015,06-10001,806.4,Bunzl Cleaning & Hygiene Supplies,,,,,,,,
Nottinghamshire County Council,1111/1001,Surplus or Deficit from Trading Undertak,TRADING,Supplies & Services,DAA,25/09/2015,06-10001,"2,167.50",R Scott & Sons Ltd,,,,,,,,
Nottinghamshire County Council,1111/1001,Surplus or Deficit from Trading Undertak,TRADING,Supplies & Services,DAA,04/09/2015,06-10001,658.6,Office Innovations,,,,,,,,
Nottinghamshire County Council,1111/1001,Surplus or Deficit from Trading Undertak,TRADING,Supplies & Services,DAA,10/09/2015,06-10001,"16,525.73",Office Innovations,,,,,,,,
Nottinghamshire County Council,1111/1001,Surplus or Deficit from Trading Undertak,TRADING,Supplies & Services,DAA,10/09/2015,06-10001,"19,432.31",Office Innovations,,,,,,,,
Nottinghamshire County Council,1111/1001,Surplus or Deficit from Trading Undertak,TRADING,Supplies & Services,DAA,14/09/2015,06-10001,"1,989.00",Office Innovations,,,,,,,,
Nottinghamshire County Council,1111/1001,Surplus or Deficit from Trading Undertak,TRADING,Supplies & Services,DAA,14/09/2015,06-10001,592.77,Office Innovations,,,,,,,,
Nottinghamshire County Council,1111/1001,Surplus or Deficit from Trading Undertak,TRADING,Supplies & Services,DAA,28/09/2015,06-10001,"3,059.00",Office Innovations,,,,,,,,
Nottinghamshire County Council,1111/1001,Surplus or Deficit from Trading Undertak,TRADING,Supplies & Services,DAA,30/09/2015,06-10001,513,Office Innovations,,,,,,,,
Nottinghamshire County Council,1111/1001,Surplus or Deficit from Trading Undertak,TRADING,Supplies & Services,DAA,30/09/2015,06-10001,756.2,Office Innovations,,,,,,,,
Nottinghamshire County Council,1111/1001,Surplus or Deficit from Trading Undertak,TRADING,Supplies & Services,DAA,04/09/2015,06-10001,"1,101.60",Principal Furniture,,,,,,,,
Nottinghamshire County Council,1111/1001,Surplus or Deficit from Trading Undertak,TRADING,Supplies & Services,DAA,15/09/2015,06-10001,559.2,Principal Furniture,,,,,,,,
Nottinghamshire County Council,1111/1001,Surplus or Deficit from Trading Undertak,TRADING,Supplies & Services,DAA,30/09/2015,06-10001,"1,021.60",Principal Furniture,,,,,,,,
Nottinghamshire County Council,1111/1001,Surplus or Deficit from Trading Undertak,TRADING,Supplies & Services,DAA,15/09/2015,06-10001,"1,327.50",Advanced Moulds Ltd,,,,,,,,
Nottinghamshire County Council,1111/1001,Surplus or Deficit from Trading Undertak,TRADING,Supplies & Services,DAA,16/09/2015,06-10001,958.5,Advanced Moulds Ltd,,,,,,,,
Nottinghamshire County Council,1111/1001,Surplus or Deficit from Trading Undertak,TRADING,Supplies & Services,DAA,30/09/2015,06-10001,557.56,Addis Housewares Ltd,,,,,,,,
Nottinghamshire County Council,1111/1001,Surplus or Deficit from Trading Undertak,TRADING,Supplies & Services,DAA,14/09/2015,06-10001,665,Combined Office Interiors Ltd,,,,,,,,
Nottinghamshire County Council,1111/1001,Surplus or Deficit from Trading Undertak,TRADING,Supplies & Services,DAA,28/09/2015,06-10001,845,Combined Office Interiors Ltd,,,,,,,,
Nottinghamshire County Council,1111/1001,Surplus or Deficit from Trading Undertak,TRADING,Supplies & Services,DAA,14/09/2015,06-10001,870,Office Update,,,,,,,,
Nottinghamshire County Council,1111/1001,Surplus or Deficit from Trading Undertak,TRADING,Supplies & Services,DAA,10/09/2015,06-10001,"1,034.00",Mardel Office Interiors,,,,,,,,
Nottinghamshire County Council,1111/1001,Surplus or Deficit from Trading Undertak,TRADING,Supplies & Services,DAA,08/09/2015,06-10001,"1,117.10",Hille Education Products Ltd,,,,,,,,
Nottinghamshire County Council,1111/1001,Surplus or Deficit from Trading Undertak,TRADING,Supplies & Services,DAA,10/09/2015,06-10001,569.4,Hille Education Products Ltd,,,,,,,,
Nottinghamshire County Council,1111/1001,Surplus or Deficit from Trading Undertak,TRADING,Supplies & Services,DAA,15/09/2015,06-10001,687.2,Hille Education Products Ltd,,,,,,,,
Nottinghamshire County Council,1111/1001,Surplus or Deficit from Trading Undertak,TRADING,Supplies & Services,DAA,15/09/2015,06-10001,901.76,Hille Education Products Ltd,,,,,,,,
Nottinghamshire County Council,1111/1001,Surplus or Deficit from Trading Undertak,TRADING,Supplies & Services,DAA,28/09/2015,06-10001,578.64,Hille Education Products Ltd,,,,,,,,
Nottinghamshire County Council,1111/1001,Surplus or Deficit from Trading Undertak,TRADING,Supplies & Services,DAA,15/09/2015,06-10001,535.1,R2 Solutions Ltd,,,,,,,,
Nottinghamshire County Council,1111/1001,Surplus or Deficit from Trading Undertak,TRADING,Supplies & Services,DAA,18/09/2015,06-10001,"1,685.38",Denis Rawlins Ltd,,,,,,,,
Nottinghamshire County Council,1111/1001,Surplus or Deficit from Trading Undertak,TRADING,Supplies & Services,DAA,08/09/2015,06-10001,"1,001.01",Gopak Ltd,,,,,,,,
Nottinghamshire County Council,1111/1001,Surplus or Deficit from Trading Undertak,TRADING,Supplies & Services,DAA,18/09/2015,06-10001,"1,384.07",Gopak Ltd,,,,,,,,
Nottinghamshire County Council,1111/1001,Surplus or Deficit from Trading Undertak,TRADING,Supplies & Services,DAA,28/09/2015,06-10001,814.16,Gopak Ltd,,,,,,,,
Nottinghamshire County Council,1111/1001,Surplus or Deficit from Trading Undertak,TRADING,Supplies & Services,DAA,14/09/2015,06-10001,"2,925.20",Magiboards Ltd,,,,,,,,
Nottinghamshire County Council,1111/1001,Surplus or Deficit from Trading Undertak,TRADING,Supplies & Services,DAA,08/09/2015,06-10001,636.84,Lockhart Catering Equipment Ltd,,,,,,,,
Nottinghamshire County Council,1111/1001,Surplus or Deficit from Trading Undertak,TRADING,Supplies & Services,DAA,30/09/2015,06-10001,"1,273.68",Lockhart Catering Equipment Ltd,,,,,,,,
Nottinghamshire County Council,1111/1001,Surplus or Deficit from Trading Undertak,TRADING,Supplies & Services,DAA,15/09/2015,06-10001,596.2,Anchor Fast Products Ltd,,,,,,,,
Nottinghamshire County Council,1111/1001,Surplus or Deficit from Trading Undertak,TRADING,Supplies & Services,DAA,23/09/2015,06-10001,582.4,Kent County Supplies,,,,,,,,
Nottinghamshire County Council,1111/1001,Surplus or Deficit from Trading Undertak,TRADING,Supplies & Services,DAA,23/09/2015,06-10001,"1,016.70",Kent County Supplies,,,,,,,,
Nottinghamshire County Council,1111/1001,Surplus or Deficit from Trading Undertak,TRADING,Supplies & Services,DAA,30/09/2015,06-10001,"2,876.84",Kent County Supplies,,,,,,,,
Nottinghamshire County Council,1111/1001,Surplus or Deficit from Trading Undertak,TRADING,Supplies & Services,DAA,14/09/2015,06-10001,523.6,Craftpacks,,,,,,,,
Nottinghamshire County Council,1111/1001,Surplus or Deficit from Trading Undertak,TRADING,Supplies & Services,DAA,28/09/2015,06-10001,587.5,Major Brushes Ltd,,,,,,,,
Nottinghamshire County Council,1111/1001,Surplus or Deficit from Trading Undertak,TRADING,Supplies & Services,DAA,08/09/2015,06-10001,"1,699.35",R.H.Ritchings Ltd,,,,,,,,
Nottinghamshire County Council,1111/1001,Surplus or Deficit from Trading Undertak,TRADING,Supplies & Services,DAA,08/09/2015,06-10001,"4,260.60",R.H.Ritchings Ltd,,,,,,,,
Nottinghamshire County Council,1111/1001,Surplus or Deficit from Trading Undertak,TRADING,Supplies & Services,DAA,08/09/2015,06-10001,"1,448.25",R.H.Ritchings Ltd,,,,,,,,
Nottinghamshire County Council,1111/1001,Surplus or Deficit from Trading Undertak,TRADING,Supplies & Services,DAA,10/09/2015,06-10001,"1,210.65",Scolaquip Ltd,,,,,,,,
Nottinghamshire County Council,1111/1001,Surplus or Deficit from Trading Undertak,TRADING,Supplies & Services,DAA,23/09/2015,06-10001,752.72,Scolaquip Ltd,,,,,,,,
Nottinghamshire County Council,1111/1001,Surplus or Deficit from Trading Undertak,TRADING,Supplies & Services,DAA,30/09/2015,06-10001,875.8,Scolaquip Ltd,,,,,,,,
Nottinghamshire County Council,1111/1001,Surplus or Deficit from Trading Undertak,TRADING,Supplies & Services,DAA,30/09/2015,06-10001,836.22,Staedtler (Uk) Ltd,,,,,,,,
Nottinghamshire County Council,1111/1001,Surplus or Deficit from Trading Undertak,TRADING,Supplies & Services,DAA,18/09/2015,06-10001,654.56,Rapesco Office Products Plc,,,,,,,,
Nottinghamshire County Council,1111/1001,Surplus or Deficit from Trading Undertak,TRADING,Supplies & Services,DAA,14/09/2015,06-10001,"1,008.31",Allen Glenold Ltd,,,,,,,,
Nottinghamshire County Council,1111/1001,Surplus or Deficit from Trading Undertak,TRADING,Supplies & Services,DAA,18/09/2015,06-10001,776.16,Allen Glenold Ltd,,,,,,,,
Nottinghamshire County Council,1111/1001,Surplus or Deficit from Trading Undertak,TRADING,Supplies & Services,DAA,14/09/2015,06-10001,"2,684.63",Higher Kings Mill Ltd,,,,,,,,
Nottinghamshire County Council,1111/1001,Surplus or Deficit from Trading Undertak,TRADING,Supplies & Services,DAA,08/09/2015,06-10001,"3,367.82",Slater Harrison & Co Ltd,,,,,,,,
Nottinghamshire County Council,1111/1001,Surplus or Deficit from Trading Undertak,TRADING,Supplies & Services,DAA,08/09/2015,06-10001,"1,602.87",Slater Harrison & Co Ltd,,,,,,,,
Nottinghamshire County Council,1111/1001,Surplus or Deficit from Trading Undertak,TRADING,Supplies & Services,DAA,08/09/2015,06-10001,990.19,Slater Harrison & Co Ltd,,,,,,,,
Nottinghamshire County Council,1111/1001,Surplus or Deficit from Trading Undertak,TRADING,Supplies & Services,DAA,10/09/2015,06-10001,"2,651.36",Slater Harrison & Co Ltd,,,,,,,,
Nottinghamshire County Council,1111/1001,Surplus or Deficit from Trading Undertak,TRADING,Supplies & Services,DAA,14/09/2015,06-10001,847.38,Slater Harrison & Co Ltd,,,,,,,,
Nottinghamshire County Council,1111/1001,Surplus or Deficit from Trading Undertak,TRADING,Supplies & Services,DAA,30/09/2015,06-10001,959.64,Slater Harrison & Co Ltd,,,,,,,,
Nottinghamshire County Council,1111/1001,Surplus or Deficit from Trading Undertak,TRADING,Supplies & Services,DAA,30/09/2015,06-10001,626.24,E V Naish Ltd,,,,,,,,
Nottinghamshire County Council,1111/1001,Surplus or Deficit from Trading Undertak,TRADING,Supplies & Services,DAA,18/09/2015,06-10001,"1,141.49",Creativity International Ltd,,,,,,,,
Nottinghamshire County Council,1111/1001,Surplus or Deficit from Trading Undertak,TRADING,Supplies & Services,DAA,16/09/2015,06-10001,"1,241.54",Valentine Clays,,,,,,,,
Nottinghamshire County Council,1111/1001,Surplus or Deficit from Trading Undertak,TRADING,Supplies & Services,DAA,23/09/2015,06-10001,667.86,Bright Ideas Marketing Ltd,,,,,,,,
Nottinghamshire County Council,1111/1001,Surplus or Deficit from Trading Undertak,TRADING,Supplies & Services,DAA,08/09/2015,06-10001,"6,428.08",Eastpoint,,,,,,,,
Nottinghamshire County Council,1111/1001,Surplus or Deficit from Trading Undertak,TRADING,Supplies & Services,DAA,08/09/2015,06-10001,542.82,Eastpoint,,,,,,,,
Nottinghamshire County Council,1111/1001,Surplus or Deficit from Trading Undertak,TRADING,Supplies & Services,DAA,14/09/2015,06-10001,652.11,Eastpoint,,,,,,,,
Nottinghamshire County Council,1111/1001,Surplus or Deficit from Trading Undertak,TRADING,Supplies & Services,DAA,14/09/2015,06-10001,"2,220.97",Eastpoint,,,,,,,,
Nottinghamshire County Council,1111/1001,Surplus or Deficit from Trading Undertak,TRADING,Supplies & Services,DAA,14/09/2015,06-10001,"1,804.41",Eastpoint,,,,,,,,
Nottinghamshire County Council,1111/1001,Surplus or Deficit from Trading Undertak,TRADING,Supplies & Services,DAA,15/09/2015,06-10001,501.42,Eastpoint,,,,,,,,
Nottinghamshire County Council,1111/1001,Surplus or Deficit from Trading Undertak,TRADING,Supplies & Services,DAA,23/09/2015,06-10001,516.1,Eastpoint,,,,,,,,
Nottinghamshire County Council,1111/1001,Surplus or Deficit from Trading Undertak,TRADING,Supplies & Services,DAA,23/09/2015,06-10001,"2,834.60",Eastpoint,,,,,,,,
Nottinghamshire County Council,1111/1001,Surplus or Deficit from Trading Undertak,TRADING,Supplies & Services,DAA,28/09/2015,06-10001,782.14,Eastpoint,,,,,,,,
Nottinghamshire County Council,1111/1001,Surplus or Deficit from Trading Undertak,TRADING,Supplies & Services,DAA,30/09/2015,06-10001,599.49,Eastpoint,,,,,,,,
Nottinghamshire County Council,1111/1001,Surplus or Deficit from Trading Undertak,TRADING,Supplies & Services,DAA,08/09/2015,06-10001,595,Spaceright Europe Ltd,,,,,,,,
Nottinghamshire County Council,1111/1001,Surplus or Deficit from Trading Undertak,TRADING,Supplies & Services,DAA,28/09/2015,06-10001,898,Spaceright Europe Ltd,,,,,,,,
Nottinghamshire County Council,1111/1001,Surplus or Deficit from Trading Undertak,TRADING,Supplies & Services,DAA,23/09/2015,06-10001,"1,076.40",William Sinclair Horticulture Ltd,,,,,,,,
Nottinghamshire County Council,1111/1001,Surplus or Deficit from Trading Undertak,TRADING,Supplies & Services,DAA,04/09/2015,06-10001,946.62,Brian Clegg (Educational Products) Ltd,,,,,,,,
Nottinghamshire County Council,1111/1001,Surplus or Deficit from Trading Undertak,TRADING,Supplies & Services,DAA,16/09/2015,06-10001,738.56,Brian Clegg (Educational Products) Ltd,,,,,,,,
Nottinghamshire County Council,1111/1001,Surplus or Deficit from Trading Undertak,TRADING,Supplies & Services,DAA,25/09/2015,06-10001,735.1,Brian Clegg (Educational Products) Ltd,,,,,,,,
Nottinghamshire County Council,1111/1001,Surplus or Deficit from Trading Undertak,TRADING,Supplies & Services,DAA,28/09/2015,06-10001,760.5,Commotion Technology Supplies,,,,,,,,
Nottinghamshire County Council,1111/1001,Surplus or Deficit from Trading Undertak,TRADING,Supplies & Services,DAA,04/09/2015,06-10001,642.54,Profile Education Ltd,,,,,,,,
Nottinghamshire County Council,1111/1001,Surplus or Deficit from Trading Undertak,TRADING,Supplies & Services,DAA,10/09/2015,06-10001,518.9,Profile Education Ltd,,,,,,,,
Nottinghamshire County Council,1111/1001,Surplus or Deficit from Trading Undertak,TRADING,Supplies & Services,DAA,28/09/2015,06-10001,"1,168.24",Profile Education Ltd,,,,,,,,
Nottinghamshire County Council,1111/1001,Surplus or Deficit from Trading Undertak,TRADING,Supplies & Services,DAA,04/09/2015,06-10001,510.53,Monarch Computer Furniture,,,,,,,,
Nottinghamshire County Council,1111/1001,Surplus or Deficit from Trading Undertak,TRADING,Supplies & Services,DAA,04/09/2015,06-10001,867.64,Monarch Computer Furniture,,,,,,,,
Nottinghamshire County Council,1111/1001,Surplus or Deficit from Trading Undertak,TRADING,Supplies & Services,DAA,04/09/2015,06-10001,867.64,Monarch Computer Furniture,,,,,,,,
Nottinghamshire County Council,1111/1001,Surplus or Deficit from Trading Undertak,TRADING,Supplies & Services,DAA,04/09/2015,06-10001,551.78,Monarch Computer Furniture,,,,,,,,
Nottinghamshire County Council,1111/1001,Surplus or Deficit from Trading Undertak,TRADING,Supplies & Services,DAA,10/09/2015,06-10001,637,Monarch Computer Furniture,,,,,,,,
Nottinghamshire County Council,1111/1001,Surplus or Deficit from Trading Undertak,TRADING,Supplies & Services,DAA,15/09/2015,06-10001,528.38,Monarch Computer Furniture,,,,,,,,
Nottinghamshire County Council,1111/1001,Surplus or Deficit from Trading Undertak,TRADING,Supplies & Services,DAA,15/09/2015,06-10001,"1,092.90",Monarch Computer Furniture,,,,,,,,
Nottinghamshire County Council,1111/1001,Surplus or Deficit from Trading Undertak,TRADING,Employee Related,AAA,07/09/2015,06-10001,897.69,A&T Active Recruitment,,,,,,,,
Nottinghamshire County Council,1111/1001,Surplus or Deficit from Trading Undertak,TRADING,Employee Related,AAA,22/09/2015,06-10001,"1,098.28",A&T Active Recruitment,,,,,,,,
Nottinghamshire County Council,1111/1001,Surplus or Deficit from Trading Undertak,TRADING,Employee Related,AAA,22/09/2015,06-10001,882.65,A&T Active Recruitment,,,,,,,,
Nottinghamshire County Council,1111/1001,Surplus or Deficit from Trading Undertak,TRADING,Employee Related,AAA,30/09/2015,06-10001,"1,033.09",A&T Active Recruitment,,,,,,,,
Nottinghamshire County Council,1111/1001,Children and Young People,CYP,Premises Related,BCA,21/09/2015,06-15753,834.4,Certas Energy UK Ltd T/A Emo Oil Lt,,,,,,,,
Nottinghamshire County Council,1111/1001,Children and Young People,CYP,Premises Related,BDA,01/09/2015,06-10001,500,Living Quarter Property Management,,,,,,,,
Nottinghamshire County Council,1111/1001,Children and Young People,CYP,Premises Related,BDA,01/09/2015,06-10002,690,Hattersley Lettings Ltd,,,,,,,,
Nottinghamshire County Council,1111/1001,Children and Young People,CYP,Premises Related,BDA,03/09/2015,06-10669,567.5,Serco - (Holme Pierrepont Leisure T,,,,,,,,
Nottinghamshire County Council,1111/1001,Children and Young People,CYP,Premises Related,BDA,07/09/2015,06-10003,"1,058.00",Welbeck Estates Company Ltd,,,,,,,,
Nottinghamshire County Council,1111/1001,Children and Young People,CYP,Premises Related,BDA,07/09/2015,06-10004,"5,747.54",Making It! Enterprises Ltd,,,,,,,,
Nottinghamshire County Council,1111/1001,Children and Young People,CYP,Premises Related,BDA,07/09/2015,06-10006,"1,099.99",Nottingham City Council,,,,,,,,
Nottinghamshire County Council,1111/1001,Children and Young People,CYP,Premises Related,BDA,07/09/2015,06-10008,"7,500.00",Lambert Smith Hampton,,,,,,,,
Nottinghamshire County Council,1111/1001,Children and Young People,CYP,Premises Related,BDA,07/09/2015,06-10017,"3,500.00",Diocese of Hallam Trustee,,,,,,,,
Nottinghamshire County Council,1111/1001,Children and Young People,CYP,Premises Related,BDA,07/09/2015,06-10019,"4,674.76",Making It! Enterprises Ltd,,,,,,,,
Nottinghamshire County Council,1111/1001,Children and Young People,CYP,Premises Related,BDA,07/09/2015,06-10020,528,Derbyshire Dales District Council,,,,,,,,
Nottinghamshire County Council,1111/1001,Children and Young People,CYP,Premises Related,BDA,07/09/2015,06-10024,606.67,J Sedoo t/a Sedoo Investments,,,,,,,,
Nottinghamshire County Council,1111/1001,Children and Young People,CYP,Premises Related,BDA,07/09/2015,06-10025,606.67,J Sedoo t/a Sedoo Investments,,,,,,,,
Nottinghamshire County Council,1111/1001,Children and Young People,CYP,Premises Related,BDA,07/09/2015,06-10026,606.67,J Sedoo t/a Sedoo Investments,,,,,,,,
Nottinghamshire County Council,1111/1001,Children and Young People,CYP,Premises Related,BDA,07/09/2015,06-10029,"4,600.00",Bauland Properties Limited,,,,,,,,
Nottinghamshire County Council,1111/1001,Children and Young People,CYP,Premises Related,BDA,07/09/2015,06-10030,805,Bauland Properties Limited,,,,,,,,
Nottinghamshire County Council,1111/1001,Children and Young People,CYP,Premises Related,BDA,07/09/2015,06-10032,"1,719.60",Sheffield Hallam Univ Enterprises L,,,,,,,,
Nottinghamshire County Council,1111/1001,Children and Young People,CYP,Premises Related,BDA,16/09/2015,06-10036,"9,661.51",Making It! Enterprises Ltd,,,,,,,,
Nottinghamshire County Council,1111/1001,Children and Young People,CYP,Premises Related,BDA,29/09/2015,06-10037,"5,600.00",Park Lodge Project,,,,,,,,
Nottinghamshire County Council,1111/1001,Children and Young People,CYP,Transport Related,CCA,04/09/2015,06-10762,"2,743.77",Taxicover Uk Ltd,,,,,,,,
Nottinghamshire County Council,1111/1001,Children and Young People,CYP,Transport Related,CCA,04/09/2015,06-10771,"3,812.02",Bridges Transport Services,,,,,,,,
Nottinghamshire County Council,1111/1001,Children and Young People,CYP,Transport Related,CCA,21/09/2015,06-15159,570,I Can Charity,,,,,,,,
Nottinghamshire County Council,1111/1001,Children and Young People,CYP,Transport Related,CCA,29/09/2015,06-15581,"1,228.04",6 Five 2s,,,,,,,,
Nottinghamshire County Council,1111/1001,Children and Young People,CYP,Transport Related,CCA,29/09/2015,06-15582,665.92,6 Five 2s,,,,,,,,
Nottinghamshire County Council,1111/1001,Children and Young People,CYP,Transport Related,CCA,29/09/2015,06-15583,"1,036.00",6 Five 2s,,,,,,,,
Nottinghamshire County Council,1111/1001,Children and Young People,CYP,Transport Related,CCA,29/09/2015,06-15584,784,6 Five 2s,,,,,,,,
Nottinghamshire County Council,1111/1001,Children and Young People,CYP,Transport Related,CCA,29/09/2015,06-15585,"1,266.16",6 Five 2s,,,,,,,,
Nottinghamshire County Council,1111/1001,Children and Young People,CYP,Transport Related,CCA,29/09/2015,06-15586,622.08,6 Five 2s,,,,,,,,
Nottinghamshire County Council,1111/1001,Children and Young People,CYP,Transport Related,CCA,29/09/2015,06-15587,"1,356.60",6 Five 2s,,,,,,,,
Nottinghamshire County Council,1111/1001,Children and Young People,CYP,Transport Related,CCA,29/09/2015,06-15588,"1,638.00",6 Five 2s,,,,,,,,
Nottinghamshire County Council,1111/1001,Children and Young People,CYP,Transport Related,CCA,29/09/2015,06-15589,"1,118.00",6 Five 2s,,,,,,,,
Nottinghamshire County Council,1111/1001,Children and Young People,CYP,Transport Related,CCA,29/09/2015,06-15590,"1,248.00",6 Five 2s,,,,,,,,
Nottinghamshire County Council,1111/1001,Children and Young People,CYP,Transport Related,CCA,29/09/2015,06-15591,"1,504.00",6 Five 2s,,,,,,,,
Nottinghamshire County Council,1111/1001,Children and Young People,CYP,Transport Related,CCA,29/09/2015,06-15592,840,6 Five 2s,,,,,,,,
Nottinghamshire County Council,1111/1001,Children and Young People,CYP,Transport Related,CCA,29/09/2015,06-15593,"1,554.00",6 Five 2s,,,,,,,,
Nottinghamshire County Council,1111/1001,Children and Young People,CYP,Transport Related,CCA,29/09/2015,06-15595,"1,672.96",Arrow Specialised Transport Ltd,,,,,,,,
Nottinghamshire County Council,1111/1001,Children and Young People,CYP,Transport Related,CCA,29/09/2015,06-15596,"1,803.12",Arrow Specialised Transport Ltd,,,,,,,,
Nottinghamshire County Council,1111/1001,Children and Young People,CYP,Transport Related,CCA,29/09/2015,06-15598,"1,771.35",Arrow Specialised Transport Ltd,,,,,,,,
Nottinghamshire County Council,1111/1001,Children and Young People,CYP,Transport Related,CCA,29/09/2015,06-15599,"4,356.00",P & P Taxis,,,,,,,,
Nottinghamshire County Council,1111/1001,Children and Young People,CYP,Transport Related,CCA,29/09/2015,06-15601,575,Diamond Cars,,,,,,,,
Nottinghamshire County Council,1111/1001,Children and Young People,CYP,Transport Related,CCA,29/09/2015,06-15602,575,Diamond Cars,,,,,,,,
Nottinghamshire County Council,1111/1001,Children and Young People,CYP,Transport Related,CDA,03/09/2015,06-10542,"4,137.12",Paul S Winson Coaches,,,,,,,,
Nottinghamshire County Council,1111/1001,Children and Young People,CYP,Transport Related,CDA,04/09/2015,06-10792,680.85,P & P Taxis,,,,,,,,
Nottinghamshire County Council,1111/1001,Children and Young People,CYP,Transport Related,CDA,29/09/2015,06-15597,"1,223.66",Arrow Specialised Transport Ltd,,,,,,,,
Nottinghamshire County Council,1111/1001,Children and Young People,CYP,Supplies & Services,DBA,02/09/2015,06-10529,327.41,Hallam Country Fresh Foods Ltd,,,,,,,,
Nottinghamshire County Council,1111/1001,Children and Young People,CYP,Supplies & Services,DBA,03/09/2015,06-10560,96.68,M Maloney Country Butchers & B Ltd,,,,,,,,
Nottinghamshire County Council,1111/1001,Children and Young People,CYP,Supplies & Services,DBA,03/09/2015,06-10565,100.07,M Maloney Country Butchers & B Ltd,,,,,,,,
Nottinghamshire County Council,1111/1001,Children and Young People,CYP,Supplies & Services,DBA,03/09/2015,06-10569,105.9,M Maloney Country Butchers & B Ltd,,,,,,,,
Nottinghamshire County Council,1111/1001,Children and Young People,CYP,Supplies & Services,DBA,03/09/2015,06-10573,65.9,M Maloney Country Butchers & B Ltd,,,,,,,,
Nottinghamshire County Council,1111/1001,Children and Young People,CYP,Supplies & Services,DBA,04/09/2015,06-10536,272.6,Brake Bros Ltd,,,,,,,,
Nottinghamshire County Council,1111/1001,Children and Young People,CYP,Supplies & Services,DBA,04/09/2015,06-10557,403.09,Brake Bros Ltd,,,,,,,,
Nottinghamshire County Council,1111/1001,Children and Young People,CYP,Supplies & Services,DBA,09/09/2015,06-14063,157.04,Hallam Country Fresh Foods Ltd,,,,,,,,
Nottinghamshire County Council,1111/1001,Children and Young People,CYP,Supplies & Services,DBA,11/09/2015,06-14161,256.77,Brake Bros Ltd,,,,,,,,
Nottinghamshire County Council,1111/1001,Children and Young People,CYP,Supplies & Services,DBA,16/09/2015,06-14878,253.72,Hallam Country Fresh Foods Ltd,,,,,,,,
Nottinghamshire County Council,1111/1001,Children and Young People,CYP,Supplies & Services,DBA,18/09/2015,06-15010,200.89,Brake Bros Ltd,,,,,,,,
Nottinghamshire County Council,1111/1001,Children and Young People,CYP,Supplies & Services,DBA,18/09/2015,06-15012,172.47,Brake Bros Ltd,,,,,,,,
Nottinghamshire County Council,1111/1001,Children and Young People,CYP,Supplies & Services,DBA,18/09/2015,06-15015,211.58,Brake Bros Ltd,,,,,,,,
Nottinghamshire County Council,1111/1001,Children and Young People,CYP,Supplies & Services,DBA,18/09/2015,06-15018,174.69,Brake Bros Ltd,,,,,,,,
Nottinghamshire County Council,1111/1001,Children and Young People,CYP,Supplies & Services,DBA,18/09/2015,06-15021,116.24,M Maloney Country Butchers & B Ltd,,,,,,,,
Nottinghamshire County Council,1111/1001,Children and Young People,CYP,Supplies & Services,DBA,18/09/2015,06-15025,109.7,M Maloney Country Butchers & B Ltd,,,,,,,,
Nottinghamshire County Council,1111/1001,Children and Young People,CYP,Supplies & Services,DBA,23/09/2015,06-15381,257.58,Hallam Country Fresh Foods Ltd,,,,,,,,
Nottinghamshire County Council,1111/1001,Children and Young People,CYP,Supplies & Services,DBA,25/09/2015,06-15442,376.03,Brake Bros Ltd,,,,,,,,
Nottinghamshire County Council,1111/1001,Children and Young People,CYP,Supplies & Services,DBA,28/09/2015,06-15469,37.56,Brake Bros Ltd,,,,,,,,
Nottinghamshire County Council,1111/1001,Children and Young People,CYP,Supplies & Services,DBA,28/09/2015,06-15472,397.65,Brake Bros Ltd,,,,,,,,
Nottinghamshire County Council,1111/1001,Children and Young People,CYP,Supplies & Services,DBA,28/09/2015,06-15475,347.93,Brake Bros Ltd,,,,,,,,
Nottinghamshire County Council,1111/1001,Children and Young People,CYP,Supplies & Services,DBA,28/09/2015,06-15477,398.46,Brake Bros Ltd,,,,,,,,
Nottinghamshire County Council,1111/1001,Children and Young People,CYP,Supplies & Services,DBA,28/09/2015,06-15481,410.88,Brake Bros Ltd,,,,,,,,
Nottinghamshire County Council,1111/1001,Children and Young People,CYP,Supplies & Services,DBA,28/09/2015,06-15485,66.88,Brake Bros Ltd,,,,,,,,
Nottinghamshire County Council,1111/1001,Children and Young People,CYP,Supplies & Services,DBA,28/09/2015,06-15488,490.23,Brake Bros Ltd,,,,,,,,
Nottinghamshire County Council,1111/1001,Children and Young People,CYP,Supplies & Services,DEA,21/09/2015,06-15153,"1,975.00",Nottingham Trent University,,,,,,,,
Nottinghamshire County Council,1111/1001,Children and Young People,CYP,Supplies & Services,DFA,03/09/2015,06-10551,513,Lantec Services Ltd,,,,,,,,
Nottinghamshire County Council,1111/1001,Children and Young People,CYP,Supplies & Services,DFA,09/09/2015,06-13969,566.24,Lantec Services Ltd,,,,,,,,
Nottinghamshire County Council,1111/1001,Children and Young People,CYP,Supplies & Services,DKA,09/09/2015,06-14058,"31,958.17",Forest Town Garibaldi Comp School,,,,,,,,
Nottinghamshire County Council,1111/1001,Children and Young People,CYP,Supplies & Services,DKA,14/09/2015,06-15758,550,Adoption Uk,,,,,,,,
Nottinghamshire County Council,1111/1001,Children and Young People,CYP,Supplies & Services,DKA,15/09/2015,06-14267,"29,759.20",Arno Vale Junior School,,,,,,,,
Nottinghamshire County Council,1111/1001,Children and Young People,CYP,Supplies & Services,DKA,29/09/2015,06-15569,"1,260.00",Derbyshire County Council,,,,,,,,
Nottinghamshire County Council,1111/1001,Children and Young People,CYP,Supplies & Services,DKA,29/09/2015,06-15570,"1,260.00",Derbyshire County Council,,,,,,,,
Nottinghamshire County Council,1111/1001,Children and Young People,CYP,Supplies & Services,DKA,30/09/2015,06-15259,957.75,Leverton C Of E Academy,,,,,,,,
Nottinghamshire County Council,1111/1001,Children and Young People,CYP,Third Party Payments,EBA,11/09/2015,06-14139,"6,584.82",Home Group Limited,,,,,,,,
Nottinghamshire County Council,1111/1001,Children and Young People,CYP,Third Party Payments,EBA,11/09/2015,06-14142,"1,021.12",Metropolitan Housing Trust,,,,,,,,
Nottinghamshire County Council,1111/1001,Children and Young People,CYP,Third Party Payments,EBA,28/09/2015,06-15436,"17,717.82",East Leake Schools Ltd,,,,,,,,
Nottinghamshire County Council,1111/1001,Children and Young People,CYP,Third Party Payments,EBA,28/09/2015,06-15437,550.22,Transform Schools,,,,,,,,
Nottinghamshire County Council,1111/1001,Children and Young People,CYP,Third Party Payments,EBA,28/09/2015,06-15438,"1,456.60",Transform Schools,,,,,,,,
Nottinghamshire County Council,1111/1001,Children and Young People,CYP,Third Party Payments,EBA,28/09/2015,06-15439,"3,683.55",Transform Schools,,,,,,,,
Nottinghamshire County Council,1111/1001,Children and Young People,CYP,Third Party Payments,EBA,28/09/2015,06-15440,"18,036.51",Transform Schools,,,,,,,,
Nottinghamshire County Council,1111/1001,Children and Young People,CYP,Third Party Payments,EBA,28/09/2015,06-15441,"40,375.70",Transform Schools,,,,,,,,
Nottinghamshire County Council,1111/1001,Children and Young People,CYP,Third Party Payments,EBA,28/09/2015,06-15499,"1,484,758.86",Transform Schools,,,,,,,,
Nottinghamshire County Council,1111/1001,Children and Young People,CYP,Third Party Payments,EBA,28/09/2015,06-15501,"236,948.12",East Leake Schools Ltd,,,,,,,,
Nottinghamshire County Council,1111/1001,Children and Young People,CYP,Third Party Payments,EDA,04/09/2015,06-10082,"5,000.00",Magnus Church of England Academy,,,,,,,,
Nottinghamshire County Council,1111/1001,Children and Young People,CYP,Third Party Payments,EDA,04/09/2015,06-10083,"5,000.00",South Nottinghamshire Academy,,,,,,,,
Nottinghamshire County Council,1111/1001,Children and Young People,CYP,Third Party Payments,EDA,04/09/2015,06-10104,"5,000.00",The Newark Academy,,,,,,,,
Nottinghamshire County Council,1111/1001,Children and Young People,CYP,Third Party Payments,EDA,09/09/2015,06-14059,"5,000.00",The Beech Academy,,,,,,,,
Nottinghamshire County Council,1111/1001,Children and Young People,CYP,Third Party Payments,EDA,09/09/2015,06-14060,"51,403.00",The Beech Academy,,,,,,,,
Nottinghamshire County Council,1111/1001,Children and Young People,CYP,Third Party Payments,EDA,09/09/2015,06-14061,"1,666.00",Foxwood Academy,,,,,,,,
Nottinghamshire County Council,1111/1001,Children and Young People,CYP,Third Party Payments,EDA,09/09/2015,06-14062,"81,710.00",Foxwood Academy,,,,,,,,
Nottinghamshire County Council,1111/1001,Children and Young People,CYP,Third Party Payments,EDA,18/09/2015,06-14983,"30,663.15",Peafield Lane Academy,,,,,,,,
Nottinghamshire County Council,1111/1001,Children and Young People,CYP,Third Party Payments,EDA,18/09/2015,06-14984,"26,409.08",Leamington Primary & Nursery Academ,,,,,,,,
Nottinghamshire County Council,1111/1001,Children and Young People,CYP,Third Party Payments,EDA,18/09/2015,06-14985,"10,992.45",Birklands Primary (Academy),,,,,,,,
Nottinghamshire County Council,1111/1001,Children and Young People,CYP,Third Party Payments,EDA,18/09/2015,06-14986,"8,678.25",Sunnyside Spencer Academy,,,,,,,,
Nottinghamshire County Council,1111/1001,Children and Young People,CYP,Third Party Payments,EDA,18/09/2015,06-14987,"33,034.89",Norbridge Academy,,,,,,,,
Nottinghamshire County Council,1111/1001,Children and Young People,CYP,Third Party Payments,EDA,18/09/2015,06-14988,"26,699.93",Sparken Hill Academy,,,,,,,,
Nottinghamshire County Council,1111/1001,Children and Young People,CYP,Third Party Payments,EDA,18/09/2015,06-14989,"12,149.55",The Bramble Academy,,,,,,,,
Nottinghamshire County Council,1111/1001,Children and Young People,CYP,Third Party Payments,EDA,18/09/2015,06-14990,"26,381.25",Sir Donald Bailey Academy,,,,,,,,
Nottinghamshire County Council,1111/1001,Children and Young People,CYP,Third Party Payments,EDA,18/09/2015,06-14991,"18,021.68",Sacred Heart Catholic Voluntary Aca,,,,,,,,
Nottinghamshire County Council,1111/1001,Children and Young People,CYP,Third Party Payments,EDA,18/09/2015,06-14992,"23,142.00",Holy Trinity Catholic Voluntary Aca,,,,,,,,
Nottinghamshire County Council,1111/1001,Children and Young People,CYP,Third Party Payments,EDA,18/09/2015,06-14993,"17,356.50",St Patricks Catholic Voluntary Acad,,,,,,,,
Nottinghamshire County Council,1111/1001,Children and Young People,CYP,Third Party Payments,EDA,18/09/2015,06-14994,"22,563.45",St Philip Neri with St Bede Vol Aca,,,,,,,,
Nottinghamshire County Council,1111/1001,Children and Young People,CYP,Third Party Payments,EDA,18/09/2015,06-14995,"16,892.40",St Josephs Catholic Primary Sch Aca,,,,,,,,
Nottinghamshire County Council,1111/1001,Children and Young People,CYP,Third Party Payments,EDA,18/09/2015,06-14996,"16,777.95",Arnbrook Primary Academy,,,,,,,,
Nottinghamshire County Council,1111/1001,Children and Young People,CYP,Third Party Payments,EDA,18/09/2015,06-14997,"28,158.20",Hillside Academy,,,,,,,,
Nottinghamshire County Council,1111/1001,Children and Young People,CYP,Third Party Payments,EDA,18/09/2015,06-14998,"16,777.95",The Flying High Academy,,,,,,,,
Nottinghamshire County Council,1111/1001,Children and Young People,CYP,Third Party Payments,EDA,18/09/2015,06-14999,"25,050.90",Serlby Park Academy,,,,,,,,
Nottinghamshire County Council,1111/1001,Children and Young People,CYP,Third Party Payments,EDA,18/09/2015,06-15000,"32,948.27",The Candleby Lane Academy,,,,,,,,
Nottinghamshire County Council,1111/1001,Children and Young People,CYP,Third Party Payments,EDA,18/09/2015,06-15001,"28,927.50",Barnby Road Academy Prim & Nursery,,,,,,,,
Nottinghamshire County Council,1111/1001,Children and Young People,CYP,Third Party Payments,EDA,18/09/2015,06-15002,"10,645.32",Tuxford Primary Academy,,,,,,,,
Nottinghamshire County Council,1111/1001,Children and Young People,CYP,Third Party Payments,EDA,18/09/2015,06-15003,"21,001.05",Bishop Alexander LEAD Academy,,,,,,,,
Nottinghamshire County Council,1111/1001,Children and Young People,CYP,Third Party Payments,EDA,18/09/2015,06-15004,"19,958.40",Mansfield Primary Academy,,,,,,,,
Nottinghamshire County Council,1111/1001,Children and Young People,CYP,Third Party Payments,EDA,18/09/2015,06-15005,"9,835.35",Kingston Park Academy,,,,,,,,
Nottinghamshire County Council,1111/1001,Children and Young People,CYP,Third Party Payments,EDA,18/09/2015,06-15009,"20,914.43",Wainwright Primary Academy,,,,,,,,
Nottinghamshire County Council,1111/1001,Children and Young People,CYP,Third Party Payments,EDA,22/09/2015,06-15258,"6,127.00",Redhill Academy,,,,,,,,
Nottinghamshire County Council,1111/1001,Children and Young People,CYP,Third Party Payments,EGA,01/09/2015,06-10289,"2,964.99",Sparkle Daycare,,,,,,,,
Nottinghamshire County Council,1111/1001,Children and Young People,CYP,Third Party Payments,EGA,02/09/2015,06-10237,"11,223.45",Zoes Childcare Ltd,,,,,,,,
Nottinghamshire County Council,1111/1001,Children and Young People,CYP,Third Party Payments,EGA,02/09/2015,06-10238,"28,569.45",Treetops Nurseries Ltd,,,,,,,,
Nottinghamshire County Council,1111/1001,Children and Young People,CYP,Third Party Payments,EGA,02/09/2015,06-10239,"3,879.62",PSLA Newstead Childcare,,,,,,,,
Nottinghamshire County Council,1111/1001,Children and Young People,CYP,Third Party Payments,EGA,02/09/2015,06-10240,"12,226.58",PSLA Newstead Childcare,,,,,,,,
Nottinghamshire County Council,1111/1001,Children and Young People,CYP,Third Party Payments,EGA,02/09/2015,06-10241,"5,237.61",PSLA Newstead Childcare,,,,,,,,
Nottinghamshire County Council,1111/1001,Children and Young People,CYP,Third Party Payments,EGA,02/09/2015,06-10242,"16,394.22",PSLA Newstead Childcare,,,,,,,,
Nottinghamshire County Council,1111/1001,Children and Young People,CYP,Third Party Payments,EGA,02/09/2015,06-10243,"21,414.08",PSLA Newstead Childcare,,,,,,,,
Nottinghamshire County Council,1111/1001,Children and Young People,CYP,Third Party Payments,EGA,02/09/2015,06-10244,"1,172.73",PSLA Newstead Childcare,,,,,,,,
Nottinghamshire County Council,1111/1001,Children and Young People,CYP,Third Party Payments,EGA,02/09/2015,06-10245,"15,157.17",Wollaton Village Day Nurseries,,,,,,,,
Nottinghamshire County Council,1111/1001,Children and Young People,CYP,Third Party Payments,EGA,02/09/2015,06-10246,"30,093.84",Wollaton Village Day Nurseries Ltd.,,,,,,,,
Nottinghamshire County Council,1111/1001,Children and Young People,CYP,Third Party Payments,EGA,02/09/2015,06-10247,"14,325.89",Woodborough Village Pre School,,,,,,,,
Nottinghamshire County Council,1111/1001,Children and Young People,CYP,Third Party Payments,EGA,02/09/2015,06-10248,"30,176.16",Woodthorpe Day Nursery Ltd,,,,,,,,
Nottinghamshire County Council,1111/1001,Children and Young People,CYP,Third Party Payments,EGA,02/09/2015,06-10249,"13,938.54",Young Rascals Day Nursery,,,,,,,,
Nottinghamshire County Council,1111/1001,Children and Young People,CYP,Third Party Payments,EGA,02/09/2015,06-10250,"9,116.94",Zoe's Childcare Ltd,,,,,,,,
Nottinghamshire County Council,1111/1001,Children and Young People,CYP,Third Party Payments,EGA,02/09/2015,06-10251,"11,748.83",Wishing Well Day Nursery,,,,,,,,
Nottinghamshire County Council,1111/1001,Children and Young People,CYP,Third Party Payments,EGA,02/09/2015,06-10252,"24,357.90",PSLA Newstead Childcare,,,,,,,,
Nottinghamshire County Council,1111/1001,Children and Young People,CYP,Third Party Payments,EGA,02/09/2015,06-10253,"2,216.76",Windmills Pre-School Playgroup,,,,,,,,
Nottinghamshire County Council,1111/1001,Children and Young People,CYP,Third Party Payments,EGA,02/09/2015,06-10254,"7,720.14",Windmill Kindergarten Playgroup,,,,,,,,
Nottinghamshire County Council,1111/1001,Children and Young People,CYP,Third Party Payments,EGA,02/09/2015,06-10255,"16,073.99",Willow Pre-School Playgroup,,,,,,,,
Nottinghamshire County Council,1111/1001,Children and Young People,CYP,Third Party Payments,EGA,02/09/2015,06-10256,"10,031.28",Willow Brook Pre-School,,,,,,,,
Nottinghamshire County Council,1111/1001,Children and Young People,CYP,Third Party Payments,EGA,02/09/2015,06-10257,"27,709.50",Westdale Pre-School,,,,,,,,
Nottinghamshire County Council,1111/1001,Children and Young People,CYP,Third Party Payments,EGA,02/09/2015,06-10258,"12,453.44",Wellow House School,,,,,,,,
Nottinghamshire County Council,1111/1001,Children and Young People,CYP,Third Party Payments,EGA,02/09/2015,06-10259,"11,693.85",Toddlers University (Bee),,,,,,,,
Nottinghamshire County Council,1111/1001,Children and Young People,CYP,Third Party Payments,EGA,02/09/2015,06-10260,"22,486.45",Weaverthorpe Pre-School Playgroup,,,,,,,,
Nottinghamshire County Council,1111/1001,Children and Young People,CYP,Third Party Payments,EGA,02/09/2015,06-10261,"9,753.74",Watnall Pre-School Playgroup,,,,,,,,
Nottinghamshire County Council,1111/1001,Children and Young People,CYP,Third Party Payments,EGA,02/09/2015,06-10262,"16,321.41",Walesby School Playgroup,,,,,,,,
Nottinghamshire County Council,1111/1001,Children and Young People,CYP,Third Party Payments,EGA,02/09/2015,06-10263,"6,068.45",Upton Crickets Day Nursery,,,,,,,,
Nottinghamshire County Council,1111/1001,Children and Young People,CYP,Third Party Payments,EGA,02/09/2015,06-10264,"9,776.09",Trowell Pre School,,,,,,,,
Nottinghamshire County Council,1111/1001,Children and Young People,CYP,Third Party Payments,EGA,02/09/2015,06-10265,886.7,Toton Tots Pre-School,,,,,,,,
Nottinghamshire County Council,1111/1001,Children and Young People,CYP,Third Party Payments,EGA,02/09/2015,06-10266,11167.59,The Enchanted Garden Day Nursery,,,,,,,,
Nottinghamshire County Council,1111/1001,Children and Young People,CYP,Third Party Payments,EGA,02/09/2015,06-10267,39294.57,The Learning Tree Nursery,,,,,,,,
Nottinghamshire County Council,1111/1001,Children and Young People,CYP,Third Party Payments,EGA,02/09/2015,06-10268,26823.02,The Learning Tree Day Nursery 2,,,,,,,,
Nottinghamshire County Council,1111/1001,Children and Young People,CYP,Third Party Payments,EGA,02/09/2015,06-10269,11887.89,The Orange Tree Day Nursery,,,,,,,,
Nottinghamshire County Council,1111/1001,Children and Young People,CYP,Third Party Payments,EGA,02/09/2015,06-10270,13614.75,The Secret Garden Private Day Nurse,,,,,,,,
Nottinghamshire County Council,1111/1001,Children and Young People,CYP,Third Party Payments,EGA,02/09/2015,06-10271,6844.32,The West Bridgford Day Nursery,,,,,,,,
Nottinghamshire County Council,1111/1001,Children and Young People,CYP,Third Party Payments,EGA,02/09/2015,06-10272,7758.66,Wolds Childcare Ltd,,,,,,,,
Nottinghamshire County Council,1111/1001,Children and Young People,CYP,Third Party Payments,EGA,02/09/2015,06-10273,9227.48,Tiny Talkers Day Nursery,,,,,,,,
Nottinghamshire County Council,1111/1001,Children and Young People,CYP,Third Party Payments,EGA,02/09/2015,06-10274,13716.57,Tiny Teddies Day Nursery,,,,,,,,
Nottinghamshire County Council,1111/1001,Children and Young People,CYP,Third Party Payments,EGA,02/09/2015,06-10275,2964.99,Tiny Teddies @ Roko,,,,,,,,
Nottinghamshire County Council,1111/1001,Children and Young People,CYP,Third Party Payments,EGA,02/09/2015,06-10276,6678.21,Tiny Tots Playgroup,,,,,,,,
Nottinghamshire County Council,1111/1001,Children and Young People,CYP,Third Party Payments,EGA,02/09/2015,06-10277,11942.87,Tollerton Playgroup,,,,,,,,
Nottinghamshire County Council,1111/1001,Children and Young People,CYP,Third Party Payments,EGA,02/09/2015,06-10278,9310.98,Mulberry Bush Day Nursery,,,,,,,,
Nottinghamshire County Council,1111/1001,Children and Young People,CYP,Third Party Payments,EGA,02/09/2015,06-10279,6761.12,Sutton Bonington Playgroup,,,,,,,,
Nottinghamshire County Council,1111/1001,Children and Young People,CYP,Third Party Payments,EGA,02/09/2015,06-10280,1080.74,[REDACTED],,,,,,,,
Nottinghamshire County Council,1111/1001,Children and Young People,CYP,Third Party Payments,EGA,02/09/2015,06-10281,16756.98,Staunton Montessori Nursery School,,,,,,,,
Nottinghamshire County Council,1111/1001,Children and Young People,CYP,Third Party Payments,EGA,02/09/2015,06-10282,18211.54,Serendipity's Day Nursery,,,,,,,,
Nottinghamshire County Council,1111/1001,Children and Young People,CYP,Third Party Payments,EGA,02/09/2015,06-10283,14464.8,Serendipity's Day Nursery,,,,,,,,
Nottinghamshire County Council,1111/1001,Children and Young People,CYP,Third Party Payments,EGA,02/09/2015,06-10284,23525.88,Serendipity's Day Nursery,,,,,,,,
Nottinghamshire County Council,1111/1001,Children and Young People,CYP,Third Party Payments,EGA,02/09/2015,06-10285,11721.49,Shaping Futures Day Nursery,,,,,,,,
Nottinghamshire County Council,1111/1001,Children and Young People,CYP,Third Party Payments,EGA,02/09/2015,06-10286,9800,Smarties Private Day Nursery,,,,,,,,
Nottinghamshire County Council,1111/1001,Children and Young People,CYP,Third Party Payments,EGA,02/09/2015,06-10287,1496.46,Joanne Smith Childminding Service,,,,,,,,
Nottinghamshire County Council,1111/1001,Children and Young People,CYP,Third Party Payments,EGA,02/09/2015,06-10288,10501.97,Southfields Pre-School,,,,,,,,
Nottinghamshire County Council,1111/1001,Children and Young People,CYP,Third Party Payments,EGA,02/09/2015,06-10290,5070.91,Speckled Frogs Pre-School,,,,,,,,
Nottinghamshire County Council,1111/1001,Children and Young People,CYP,Third Party Payments,EGA,02/09/2015,06-10291,7980.34,St Giles Pre-school,,,,,,,,
Nottinghamshire County Council,1111/1001,Children and Young People,CYP,Third Party Payments,EGA,02/09/2015,06-10292,8839.4,St Johns Playgroup,,,,,,,,
Nottinghamshire County Council,1111/1001,Children and Young People,CYP,Third Party Payments,EGA,02/09/2015,06-10293,19314.33,St Mary's Pre-School,,,,,,,,
Nottinghamshire County Council,1111/1001,Children and Young People,CYP,Third Party Payments,EGA,02/09/2015,06-10294,20117.31,Stapleford Day Nursery,,,,,,,,
Nottinghamshire County Council,1111/1001,Children and Young People,CYP,Third Party Payments,EGA,02/09/2015,06-10295,19258.47,Serendipity's Day Nursery,,,,,,,,
Nottinghamshire County Council,1111/1001,Children and Young People,CYP,Third Party Payments,EGA,02/09/2015,06-10296,13494.6,Scotts Wood Private Day Nursery,,,,,,,,
Nottinghamshire County Council,1111/1001,Children and Young People,CYP,Third Party Payments,EGA,02/09/2015,06-10297,11277.84,Scottswood Pdn Ltd,,,,,,,,
Nottinghamshire County Council,1111/1001,Children and Young People,CYP,Third Party Payments,EGA,02/09/2015,06-10298,9893.1,Sconce Hills Pre-School Playgroup,,,,,,,,
Nottinghamshire County Council,1111/1001,Children and Young People,CYP,Third Party Payments,EGA,02/09/2015,06-10299,7204.47,Saville House School,,,,,,,,
Nottinghamshire County Council,1111/1001,Children and Young People,CYP,Third Party Payments,EGA,02/09/2015,06-10300,831.29,[REDACTED],,,,,,,,
Nottinghamshire County Council,1111/1001,Children and Young People,CYP,Third Party Payments,EGA,02/09/2015,06-10301,28043.19,Safe Haven Day Nursery,,,,,,,,
Nottinghamshire County Council,1111/1001,Children and Young People,CYP,Third Party Payments,EGA,02/09/2015,06-10302,13688.64,Ruddington Nursery & Pre-School,,,,,,,,
Nottinghamshire County Council,1111/1001,Children and Young People,CYP,Third Party Payments,EGA,02/09/2015,06-10303,554.19,[REDACTED],,,,,,,,
Nottinghamshire County Council,1111/1001,Children and Young People,CYP,Third Party Payments,EGA,02/09/2015,06-10304,58080.88,The Rocking Horse Child Care Centre,,,,,,,,
Nottinghamshire County Council,1111/1001,Children and Young People,CYP,Third Party Payments,EGA,02/09/2015,06-10305,554.19,[REDACTED],,,,,,,,
Nottinghamshire County Council,1111/1001,Children and Young People,CYP,Third Party Payments,EGA,02/09/2015,06-10306,1496.46,[REDACTED],,,,,,,,
Nottinghamshire County Council,1111/1001,Children and Young People,CYP,Third Party Payments,EGA,02/09/2015,06-10307,554.19,[REDACTED],,,,,,,,
Nottinghamshire County Council,1111/1001,Children and Young People,CYP,Third Party Payments,EGA,02/09/2015,06-10308,554.19,Kays Childminding,,,,,,,,
Nottinghamshire County Council,1111/1001,Children and Young People,CYP,Third Party Payments,EGA,02/09/2015,06-10309,748.23,[REDACTED],,,,,,,,
Nottinghamshire County Council,1111/1001,Children and Young People,CYP,Third Party Payments,EGA,02/09/2015,06-10310,10072.45,Ravenshead Pre-School Playgroup,,,,,,,,
Nottinghamshire County Council,1111/1001,Children and Young People,CYP,Third Party Payments,EGA,02/09/2015,06-10311,13508.57,Ranskill Nursery,,,,,,,,
Nottinghamshire County Council,1111/1001,Children and Young People,CYP,Third Party Payments,EGA,02/09/2015,06-10312,14225.19,Radcliffe On Trent Pre School Playg,,,,,,,,
Nottinghamshire County Council,1111/1001,Children and Young People,CYP,Third Party Payments,EGA,02/09/2015,06-10313,17595.9,Radcliffe On Trent Day Nursery,,,,,,,,
Nottinghamshire County Council,1111/1001,Children and Young People,CYP,Third Party Payments,EGA,02/09/2015,06-10315,1856.61,[REDACTED],,,,,,,,
Nottinghamshire County Council,1111/1001,Children and Young People,CYP,Third Party Payments,EGA,02/09/2015,06-10316,748.23,[REDACTED],,,,,,,,
Nottinghamshire County Council,1111/1001,Children and Young People,CYP,Third Party Payments,EGA,02/09/2015,06-10317,9449.16,Pump Farm Day Nursery,,,,,,,,
Nottinghamshire County Council,1111/1001,Children and Young People,CYP,Third Party Payments,EGA,02/09/2015,06-10318,12801.94,Pre-School 345,,,,,,,,
Nottinghamshire County Council,1111/1001,Children and Young People,CYP,Third Party Payments,EGA,02/09/2015,06-10319,3519.18,Happy Times,,,,,,,,
Nottinghamshire County Council,1111/1001,Children and Young People,CYP,Third Party Payments,EGA,02/09/2015,06-10320,8008.56,PSLA Newstead Childcare,,,,,,,,
Nottinghamshire County Council,1111/1001,Children and Young People,CYP,Third Party Payments,EGA,02/09/2015,06-10321,10225.03,Wellin Lane Playgroup,,,,,,,,
Nottinghamshire County Council,1111/1001,Children and Young People,CYP,Third Party Payments,EGA,02/09/2015,06-10322,24942.58,East Leake Day Nursery & Pre-School,,,,,,,,
Nottinghamshire County Council,1111/1001,Children and Young People,CYP,Third Party Payments,EGA,02/09/2015,06-10323,5070.91,East Leake Pre-School Playgroup,,,,,,,,
Nottinghamshire County Council,1111/1001,Children and Young People,CYP,Third Party Payments,EGA,02/09/2015,06-10324,18233,Edwalton Day Nursery,,,,,,,,
Nottinghamshire County Council,1111/1001,Children and Young People,CYP,Third Party Payments,EGA,02/09/2015,06-10325,10049.31,Farnsfield Pre-School,,,,,,,,
Nottinghamshire County Council,1111/1001,Children and Young People,CYP,Third Party Payments,EGA,02/09/2015,06-10326,748.23,K Feeney (Childminder),,,,,,,,
Nottinghamshire County Council,1111/1001,Children and Young People,CYP,Third Party Payments,EGA,02/09/2015,06-10327,33030.17,Fernwood Day Nursery Ltd,,,,,,,,
Nottinghamshire County Council,1111/1001,Children and Young People,CYP,Third Party Payments,EGA,02/09/2015,06-10328,4248.79,Fledglings Playgroup,,,,,,,,
Nottinghamshire County Council,1111/1001,Children and Young People,CYP,Third Party Payments,EGA,02/09/2015,06-10329,5390.36,Foxy Creek Pre-School Playgroup,,,,,,,,
Nottinghamshire County Council,1111/1001,Children and Young People,CYP,Third Party Payments,EGA,02/09/2015,06-10330,748.23,[REDACTED],,,,,,,,
Nottinghamshire County Council,1111/1001,Children and Young People,CYP,Third Party Payments,EGA,02/09/2015,06-10331,2244.69,[REDACTED],,,,,,,,
Nottinghamshire County Council,1111/1001,Children and Young People,CYP,Third Party Payments,EGA,02/09/2015,06-10332,554.19,J Hart (Childminding Services),,,,,,,,
Nottinghamshire County Council,1111/1001,Children and Young People,CYP,Third Party Payments,EGA,02/09/2015,06-10333,748.23,J Harlow (Childminding Service),,,,,,,,
Nottinghamshire County Council,1111/1001,Children and Young People,CYP,Third Party Payments,EGA,02/09/2015,06-10334,2798.88,"Sue Smith, Happy Kids Childminding",,,,,,,,
Nottinghamshire County Council,1111/1001,Children and Young People,CYP,Third Party Payments,EGA,02/09/2015,06-10342,24108,Cared 4 Ltd T/A Brookhill House Day,,,,,,,,
Nottinghamshire County Council,1111/1001,Children and Young People,CYP,Third Party Payments,EGA,02/09/2015,06-10343,24496.08,Brooklyn Day Nursery,,,,,,,,
Nottinghamshire County Council,1111/1001,Children and Young People,CYP,Third Party Payments,EGA,02/09/2015,06-10344,5264.95,Abacus Pre-School,,,,,,,,
Nottinghamshire County Council,1111/1001,Children and Young People,CYP,Third Party Payments,EGA,02/09/2015,06-10345,25216.38,Alphabet House Nursery,,,,,,,,
Nottinghamshire County Council,1111/1001,Children and Young People,CYP,Third Party Payments,EGA,02/09/2015,06-10346,2244.69,Annekas Angels Childminding Service,,,,,,,,
Nottinghamshire County Council,1111/1001,Children and Young People,CYP,Third Party Payments,EGA,02/09/2015,06-10347,16211.16,Appleton Day Nursery,,,,,,,,
Nottinghamshire County Council,1111/1001,Children and Young People,CYP,Third Party Payments,EGA,02/09/2015,06-10348,18953.3,Bright Sparks Day Nursery,,,,,,,,
Nottinghamshire County Council,1111/1001,Children and Young People,CYP,Third Party Payments,EGA,02/09/2015,06-10349,19536.3,Bright Stars Childcare,,,,,,,,
Nottinghamshire County Council,1111/1001,Children and Young People,CYP,Third Party Payments,EGA,02/09/2015,06-10350,11305.77,Beeston Nursery,,,,,,,,
Nottinghamshire County Council,1111/1001,Children and Young People,CYP,Third Party Payments,EGA,02/09/2015,06-10351,11471.88,Beacon Hill Day Nursery,,,,,,,,
Nottinghamshire County Council,1111/1001,Children and Young People,CYP,Third Party Payments,EGA,02/09/2015,06-10352,18205.95,Children 1st @ Newark Centre,,,,,,,,
Nottinghamshire County Council,1111/1001,Children and Young People,CYP,Third Party Payments,EGA,02/09/2015,06-10353,14612.29,Children 1st @ Breedon House,,,,,,,,
Nottinghamshire County Council,1111/1001,Children and Young People,CYP,Third Party Payments,EGA,02/09/2015,06-10354,5449.54,Chetwynd Barracks Pre-School,,,,,,,,
Nottinghamshire County Council,1111/1001,Children and Young People,CYP,Third Party Payments,EGA,02/09/2015,06-10355,27350.82,Cherubs Childcare Centre (Mansfield,,,,,,,,
Nottinghamshire County Council,1111/1001,Children and Young People,CYP,Third Party Payments,EGA,02/09/2015,06-10356,14408.94,Bramcote Pre-School Playgroup,,,,,,,,
Nottinghamshire County Council,1111/1001,Children and Young People,CYP,Third Party Payments,EGA,02/09/2015,06-10357,5541.9,Bramley Pips Nursery Ltd,,,,,,,,
Nottinghamshire County Council,1111/1001,Children and Young People,CYP,Third Party Payments,EGA,02/09/2015,06-10358,646.56,[REDACTED],,,,,,,,
Nottinghamshire County Council,1111/1001,Children and Young People,CYP,Third Party Payments,EGA,02/09/2015,06-10359,15213.03,Bullpit Road Nursery,,,,,,,,
Nottinghamshire County Council,1111/1001,Children and Young People,CYP,Third Party Payments,EGA,02/09/2015,06-10360,554.19,[REDACTED],,,,,,,,
Nottinghamshire County Council,1111/1001,Children and Young People,CYP,Third Party Payments,EGA,02/09/2015,06-10361,15572.89,Busy Bees Nursery,,,,,,,,
Nottinghamshire County Council,1111/1001,Children and Young People,CYP,Third Party Payments,EGA,02/09/2015,06-10362,5977.48,Busy Bees Pre-School (Sutton),,,,,,,,
Nottinghamshire County Council,1111/1001,Children and Young People,CYP,Third Party Payments,EGA,02/09/2015,06-10363,748.23,Busy Bees Pre-School,,,,,,,,
Nottinghamshire County Council,1111/1001,Children and Young People,CYP,Third Party Payments,EGA,02/09/2015,06-10364,17623.83,Butterflies Nursery (West Notts Col,,,,,,,,
Nottinghamshire County Council,1111/1001,Children and Young People,CYP,Third Party Payments,EGA,02/09/2015,06-10365,4040.15,Carlton Hill Playgroup,,,,,,,,
Nottinghamshire County Council,1111/1001,Children and Young People,CYP,Third Party Payments,EGA,02/09/2015,06-10366,748.23,[REDACTED],,,,,,,,
Nottinghamshire County Council,1111/1001,Children and Young People,CYP,Third Party Payments,EGA,02/09/2015,06-10367,6650.28,Cedar House Day Nursery,,,,,,,,
Nottinghamshire County Council,1111/1001,Children and Young People,CYP,Third Party Payments,EGA,02/09/2015,06-10368,1856.61,Costock Pre School,,,,,,,,
Nottinghamshire County Council,1111/1001,Children and Young People,CYP,Third Party Payments,EGA,02/09/2015,06-10369,18926.25,Daisies Day Nursery,,,,,,,,
Nottinghamshire County Council,1111/1001,Children and Young People,CYP,Third Party Payments,EGA,02/09/2015,06-10370,11471.88,Daisies Day Nursery,,,,,,,,
Nottinghamshire County Council,1111/1001,Children and Young People,CYP,Third Party Payments,EGA,02/09/2015,06-10371,4849.53,[REDACTED],,,,,,,,
Nottinghamshire County Council,1111/1001,Children and Young People,CYP,Third Party Payments,EGA,02/09/2015,06-10372,748.23,W M Dickson (Childminding Service),,,,,,,,
Nottinghamshire County Council,1111/1001,Children and Young People,CYP,Third Party Payments,EGA,02/09/2015,06-10373,19646.55,Discovery Day Nursery,,,,,,,,
Nottinghamshire County Council,1111/1001,Children and Young People,CYP,Third Party Payments,EGA,02/09/2015,06-10374,11499.81,Duncroft Day Nursery,,,,,,,,
Nottinghamshire County Council,1111/1001,Children and Young People,CYP,Third Party Payments,EGA,02/09/2015,06-10375,11878.58,Early Learners Centre Day Nursery,,,,,,,,
Nottinghamshire County Council,1111/1001,Children and Young People,CYP,Third Party Payments,EGA,02/09/2015,06-10376,16303.38,Ashfield Plaza Day Nursery,,,,,,,,
Nottinghamshire County Council,1111/1001,Children and Young People,CYP,Third Party Payments,EGA,02/09/2015,06-10377,34601.11,Cherubs Childrens Centre Wynndale,,,,,,,,
Nottinghamshire County Council,1111/1001,Children and Young People,CYP,Third Party Payments,EGA,02/09/2015,06-10378,19112.52,Cherubs Ryton Park,,,,,,,,
Nottinghamshire County Council,1111/1001,Children and Young People,CYP,Third Party Payments,EGA,02/09/2015,06-10379,12081.34,Bingham Day Nursery & Pre School,,,,,,,,
Nottinghamshire County Council,1111/1001,Children and Young People,CYP,Third Party Payments,EGA,02/09/2015,06-10380,16002.32,Bircotes Pre-School,,,,,,,,
Nottinghamshire County Council,1111/1001,Children and Young People,CYP,Third Party Payments,EGA,02/09/2015,06-10381,26102.79,Bizzy Kidz,,,,,,,,
Nottinghamshire County Council,1111/1001,Children and Young People,CYP,Third Party Payments,EGA,02/09/2015,06-10382,748.23,[REDACTED],,,,,,,,
Nottinghamshire County Council,1111/1001,Children and Young People,CYP,Third Party Payments,EGA,02/09/2015,06-10383,5603.05,Blyth Pre-School Playgroup,,,,,,,,
Nottinghamshire County Council,1111/1001,Children and Young People,CYP,Third Party Payments,EGA,02/09/2015,06-10384,2992.92,[REDACTED],,,,,,,,
Nottinghamshire County Council,1111/1001,Children and Young People,CYP,Third Party Payments,EGA,02/09/2015,06-10385,10073.18,Cheeky Monkeys Day Nursery,,,,,,,,
Nottinghamshire County Council,1111/1001,Children and Young People,CYP,Third Party Payments,EGA,02/09/2015,06-10386,15343.44,Childrens Corner Day Nursery,,,,,,,,
Nottinghamshire County Council,1111/1001,Children and Young People,CYP,Third Party Payments,EGA,02/09/2015,06-10387,9659.41,Christchurch Hall Pre-School Playgr,,,,,,,,
Nottinghamshire County Council,1111/1001,Children and Young People,CYP,Third Party Payments,EGA,02/09/2015,06-10388,19646.55,Church House Day Nursery,,,,,,,,
Nottinghamshire County Council,1111/1001,Children and Young People,CYP,Third Party Payments,EGA,02/09/2015,06-10389,16155.3,Claremont Early Years Ltd,,,,,,,,
Nottinghamshire County Council,1111/1001,Children and Young People,CYP,Third Party Payments,EGA,02/09/2015,06-10390,554.19,[REDACTED],,,,,,,,
Nottinghamshire County Council,1111/1001,Children and Young People,CYP,Third Party Payments,EGA,02/09/2015,06-10391,7620.19,Collingham & District Pre-School,,,,,,,,
Nottinghamshire County Council,1111/1001,Children and Young People,CYP,Third Party Payments,EGA,02/09/2015,06-10392,2770.95,Colston Bassett Preparatory School,,,,,,,,
Nottinghamshire County Council,1111/1001,Children and Young People,CYP,Third Party Payments,EGA,02/09/2015,06-10393,554.19,[REDACTED],,,,,,,,
Nottinghamshire County Council,1111/1001,Children and Young People,CYP,Third Party Payments,EGA,02/09/2015,06-10394,923.65,[REDACTED],,,,,,,,
Nottinghamshire County Council,1111/1001,Children and Young People,CYP,Third Party Payments,EGA,02/09/2015,06-10395,554.19,Mini-me Childcare,,,,,,,,
Nottinghamshire County Council,1111/1001,Children and Young People,CYP,Third Party Payments,EGA,02/09/2015,06-10396,1302.42,[REDACTED],,,,,,,,
Nottinghamshire County Council,1111/1001,Children and Young People,CYP,Third Party Payments,EGA,02/09/2015,06-10397,554.19,[REDACTED],,,,,,,,
Nottinghamshire County Council,1111/1001,Children and Young People,CYP,Third Party Payments,EGA,02/09/2015,06-10398,1108.38,[REDACTED],,,,,,,,
Nottinghamshire County Council,1111/1001,Children and Young People,CYP,Third Party Payments,EGA,02/09/2015,06-10399,554.19,[REDACTED],,,,,,,,
Nottinghamshire County Council,1111/1001,Children and Young People,CYP,Third Party Payments,EGA,02/09/2015,06-10400,1856.61,Sues Childminding Services,,,,,,,,
Nottinghamshire County Council,1111/1001,Children and Young People,CYP,Third Party Payments,EGA,02/09/2015,06-10401,932.96,[REDACTED],,,,,,,,
Nottinghamshire County Council,1111/1001,Children and Young People,CYP,Third Party Payments,EGA,02/09/2015,06-10402,748.23,[REDACTED],,,,,,,,
Nottinghamshire County Council,1111/1001,Children and Young People,CYP,Third Party Payments,EGA,02/09/2015,06-10403,748.23,[REDACTED],,,,,,,,
Nottinghamshire County Council,1111/1001,Children and Young People,CYP,Third Party Payments,EGA,02/09/2015,06-10404,734.13,[REDACTED],,,,,,,,
Nottinghamshire County Council,1111/1001,Children and Young People,CYP,Third Party Payments,EGA,02/09/2015,06-10405,554.19,[REDACTED],,,,,,,,
Nottinghamshire County Council,1111/1001,Children and Young People,CYP,Third Party Payments,EGA,02/09/2015,06-10406,1108.38,Sharons Childminding,,,,,,,,
Nottinghamshire County Council,1111/1001,Children and Young People,CYP,Third Party Payments,EGA,02/09/2015,06-10407,1496.46,Kylees Childmining Services,,,,,,,,
Nottinghamshire County Council,1111/1001,Children and Young People,CYP,Third Party Payments,EGA,02/09/2015,06-10408,932.96,[REDACTED],,,,,,,,
Nottinghamshire County Council,1111/1001,Children and Young People,CYP,Third Party Payments,EGA,02/09/2015,06-10409,748.23,[REDACTED],,,,,,,,
Nottinghamshire County Council,1111/1001,Children and Young People,CYP,Third Party Payments,EGA,02/09/2015,06-10410,554.19,[REDACTED],,,,,,,,
Nottinghamshire County Council,1111/1001,Children and Young People,CYP,Third Party Payments,EGA,02/09/2015,06-10411,748.23,[REDACTED],,,,,,,,
Nottinghamshire County Council,1111/1001,Children and Young People,CYP,Third Party Payments,EGA,02/09/2015,06-10412,554.19,[REDACTED],,,,,,,,
Nottinghamshire County Council,1111/1001,Children and Young People,CYP,Third Party Payments,EGA,02/09/2015,06-10413,923.65,[REDACTED],,,,,,,,
Nottinghamshire County Council,1111/1001,Children and Young People,CYP,Third Party Payments,EGA,02/09/2015,06-10414,748.23,[REDACTED],,,,,,,,
Nottinghamshire County Council,1111/1001,Children and Young People,CYP,Third Party Payments,EGA,02/09/2015,06-10415,748.23,Tracey Streeter Childminding Servic,,,,,,,,
Nottinghamshire County Council,1111/1001,Children and Young People,CYP,Third Party Payments,EGA,02/09/2015,06-10416,1856.61,[REDACTED],,,,,,,,
Nottinghamshire County Council,1111/1001,Children and Young People,CYP,Third Party Payments,EGA,02/09/2015,06-10417,748.23,[REDACTED],,,,,,,,
Nottinghamshire County Council,1111/1001,Children and Young People,CYP,Third Party Payments,EGA,02/09/2015,06-10418,554.19,[REDACTED],,,,,,,,
Nottinghamshire County Council,1111/1001,Children and Young People,CYP,Third Party Payments,EGA,02/09/2015,06-10424,21480.52,Little Acorns Pre-School,,,,,,,,
Nottinghamshire County Council,1111/1001,Children and Young People,CYP,Third Party Payments,EGA,02/09/2015,06-10425,1884.25,Lyndsay's Childminding,,,,,,,,
Nottinghamshire County Council,1111/1001,Children and Young People,CYP,Third Party Payments,EGA,02/09/2015,06-10426,748.23,L McGoldrick (Childminding Service),,,,,,,,
Nottinghamshire County Council,1111/1001,Children and Young People,CYP,Third Party Payments,EGA,02/09/2015,06-10427,748.23,[REDACTED],,,,,,,,
Nottinghamshire County Council,1111/1001,Children and Young People,CYP,Third Party Payments,EGA,02/09/2015,06-10428,16653.63,Millfield Nursery School,,,,,,,,
Nottinghamshire County Council,1111/1001,Children and Young People,CYP,Third Party Payments,EGA,02/09/2015,06-10429,8218.77,Misson Pre-School,,,,,,,,
Nottinghamshire County Council,1111/1001,Children and Young People,CYP,Third Party Payments,EGA,02/09/2015,06-10430,2244.69,Tinas Childminding,,,,,,,,
Nottinghamshire County Council,1111/1001,Children and Young People,CYP,Third Party Payments,EGA,02/09/2015,06-10431,554.19,[REDACTED],,,,,,,,
Nottinghamshire County Council,1111/1001,Children and Young People,CYP,Third Party Payments,EGA,02/09/2015,06-10432,9998.35,Netherfield Pre School Ltd,,,,,,,,
Nottinghamshire County Council,1111/1001,Children and Young People,CYP,Third Party Payments,EGA,02/09/2015,06-10433,7204.47,Noahs Ark Playgroup,,,,,,,,
Nottinghamshire County Council,1111/1001,Children and Young People,CYP,Third Party Payments,EGA,02/09/2015,06-10434,19064.14,Papplewick Pre-School Playgroup,,,,,,,,
Nottinghamshire County Council,1111/1001,Children and Young People,CYP,Third Party Payments,EGA,02/09/2015,06-10435,1496.46,[REDACTED],,,,,,,,
Nottinghamshire County Council,1111/1001,Children and Young People,CYP,Third Party Payments,EGA,02/09/2015,06-10436,3694.6,Pea Pod Day Nursery Ltd,,,,,,,,
Nottinghamshire County Council,1111/1001,Children and Young People,CYP,Third Party Payments,EGA,02/09/2015,06-10437,2992.92,Jesters Childcare Ltd,,,,,,,,
Nottinghamshire County Council,1111/1001,Children and Young People,CYP,Third Party Payments,EGA,02/09/2015,06-10438,19258.18,Lowdham & Epperstone Pre-School,,,,,,,,
Nottinghamshire County Council,1111/1001,Children and Young People,CYP,Third Party Payments,EGA,02/09/2015,06-10439,32090.1,Arnold House Day Nursery,,,,,,,,
Nottinghamshire County Council,1111/1001,Children and Young People,CYP,Third Party Payments,EGA,02/09/2015,06-10440,748.23,K Bates (Childminding Service),,,,,,,,
Nottinghamshire County Council,1111/1001,Children and Young People,CYP,Third Party Payments,EGA,02/09/2015,06-10441,748.23,[REDACTED],,,,,,,,
Nottinghamshire County Council,1111/1001,Children and Young People,CYP,Third Party Payments,EGA,02/09/2015,06-10442,19559.61,Good Foundations Day Nursery,,,,,,,,
Nottinghamshire County Council,1111/1001,Children and Young People,CYP,Third Party Payments,EGA,02/09/2015,06-10443,1496.46,[REDACTED],,,,,,,,
Nottinghamshire County Council,1111/1001,Children and Young People,CYP,Third Party Payments,EGA,02/09/2015,06-10444,15423.82,Attenborough Church Pre-School,,,,,,,,
Nottinghamshire County Council,1111/1001,Children and Young People,CYP,Third Party Payments,EGA,02/09/2015,06-10445,14131.99,Attenborough Day Nursery & Pre-Sch,,,,,,,,
Nottinghamshire County Council,1111/1001,Children and Young People,CYP,Third Party Payments,EGA,02/09/2015,06-10446,13716.57,Awsworth Schoolhouse Day Nursery,,,,,,,,
Nottinghamshire County Council,1111/1001,Children and Young People,CYP,Third Party Payments,EGA,02/09/2015,06-10447,27743.61,Balderton Pre-School,,,,,,,,
Nottinghamshire County Council,1111/1001,Children and Young People,CYP,Third Party Payments,EGA,02/09/2015,06-10448,10945.62,Balderton Village Day Nursery,,,,,,,,
Nottinghamshire County Council,1111/1001,Children and Young People,CYP,Third Party Payments,EGA,02/09/2015,06-10449,849.76,[REDACTED],,,,,,,,
Nottinghamshire County Council,1111/1001,Children and Young People,CYP,Third Party Payments,EGA,02/09/2015,06-10450,3103.46,Hickling Pre-School,,,,,,,,
Nottinghamshire County Council,1111/1001,Children and Young People,CYP,Third Party Payments,EGA,02/09/2015,06-10451,9633.89,Hickory House Day Nursery,,,,,,,,
Nottinghamshire County Council,1111/1001,Children and Young People,CYP,Third Party Payments,EGA,02/09/2015,06-10452,20740.62,Homestead Day Nursery Ltd,,,,,,,,
Nottinghamshire County Council,1111/1001,Children and Young People,CYP,Third Party Payments,EGA,02/09/2015,06-10453,4581.3,Honey Pot Day Private Day Nursery L,,,,,,,,
Nottinghamshire County Council,1111/1001,Children and Young People,CYP,Third Party Payments,EGA,02/09/2015,06-10454,36799.98,Papermoon Day Nursery,,,,,,,,
Nottinghamshire County Council,1111/1001,Children and Young People,CYP,Third Party Payments,EGA,02/09/2015,06-10455,12210.8,Horsendale Playgroup,,,,,,,,
Nottinghamshire County Council,1111/1001,Children and Young People,CYP,Third Party Payments,EGA,02/09/2015,06-10456,9920.15,Haywood Road Pre-School Playgroup,,,,,,,,
Nottinghamshire County Council,1111/1001,Children and Young People,CYP,Third Party Payments,EGA,02/09/2015,06-10457,15550.84,Hucknall Pre-School Playgroup,,,,,,,,
Nottinghamshire County Council,1111/1001,Children and Young People,CYP,Third Party Payments,EGA,02/09/2015,06-10458,16875.6,Hucknall Day Nursery,,,,,,,,
Nottinghamshire County Council,1111/1001,Children and Young People,CYP,Third Party Payments,EGA,02/09/2015,06-10459,16875.6,Nurseryworld & Friends Nursery & Pr,,,,,,,,
Nottinghamshire County Council,1111/1001,Children and Young People,CYP,Third Party Payments,EGA,02/09/2015,06-10460,25660.32,Oceans Day Nursery,,,,,,,,
Nottinghamshire County Council,1111/1001,Children and Young People,CYP,Third Party Payments,EGA,02/09/2015,06-10461,1302.42,[REDACTED],,,,,,,,
Nottinghamshire County Council,1111/1001,Children and Young People,CYP,Third Party Payments,EGA,02/09/2015,06-10462,6678.21,Old Cooperative Day Nursery,,,,,,,,
Nottinghamshire County Council,1111/1001,Children and Young People,CYP,Third Party Payments,EGA,02/09/2015,06-10463,35690.13,The Orchard Day Nursery,,,,,,,,
Nottinghamshire County Council,1111/1001,Children and Young People,CYP,Third Party Payments,EGA,02/09/2015,06-10464,11083.8,Orchard School Nursery,,,,,,,,
Nottinghamshire County Council,1111/1001,Children and Young People,CYP,Third Party Payments,EGA,02/09/2015,06-10465,748.23,[REDACTED],,,,,,,,
Nottinghamshire County Council,1111/1001,Children and Young People,CYP,Third Party Payments,EGA,02/09/2015,06-10466,19618.62,Papermoon Day Nursery,,,,,,,,
Nottinghamshire County Council,1111/1001,Children and Young People,CYP,Third Party Payments,EGA,02/09/2015,06-10467,1062.27,R Hudson (Childminding Service),,,,,,,,
Nottinghamshire County Council,1111/1001,Children and Young People,CYP,Third Party Payments,EGA,02/09/2015,06-10468,748.23,[REDACTED],,,,,,,,
Nottinghamshire County Council,1111/1001,Children and Young People,CYP,Third Party Payments,EGA,02/09/2015,06-10469,554.19,Fiona Lamb Childminding Service,,,,,,,,
Nottinghamshire County Council,1111/1001,Children and Young People,CYP,Third Party Payments,EGA,02/09/2015,06-10470,14076.43,Lady Bay Pre School Playgroup,,,,,,,,
Nottinghamshire County Council,1111/1001,Children and Young People,CYP,Third Party Payments,EGA,02/09/2015,06-10471,6576.39,Kneesall Pre School & Playgroup,,,,,,,,
Nottinghamshire County Council,1111/1001,Children and Young People,CYP,Third Party Payments,EGA,02/09/2015,06-10472,18793.15,Kingfisher Day Nursery,,,,,,,,
Nottinghamshire County Council,1111/1001,Children and Young People,CYP,Third Party Payments,EGA,02/09/2015,06-10473,6861.07,Kimberley Pre-School Playgroup,,,,,,,,
Nottinghamshire County Council,1111/1001,Children and Young People,CYP,Third Party Payments,EGA,02/09/2015,06-10474,4849.53,Lilliput Day Nursery (The Canch),,,,,,,,
Nottinghamshire County Council,1111/1001,Children and Young People,CYP,Third Party Payments,EGA,02/09/2015,06-10475,18219.72,Leo's Childrens Nurseries Ltd,,,,,,,,
Nottinghamshire County Council,1111/1001,Children and Young People,CYP,Third Party Payments,EGA,02/09/2015,06-10476,24385.83,Leos Childrens Nurseries Ltd,,,,,,,,
Nottinghamshire County Council,1111/1001,Children and Young People,CYP,Third Party Payments,EGA,02/09/2015,06-10477,37286.84,Leen Mills Pre School Playgroup,,,,,,,,
Nottinghamshire County Council,1111/1001,Children and Young People,CYP,Third Party Payments,EGA,02/09/2015,06-10478,29457.04,Learning Ladder Childcare Ltd,,,,,,,,
Nottinghamshire County Council,1111/1001,Children and Young People,CYP,Third Party Payments,EGA,02/09/2015,06-10479,10962.08,Leahurst Road Pre-School,,,,,,,,
Nottinghamshire County Council,1111/1001,Children and Young People,CYP,Third Party Payments,EGA,02/09/2015,06-10481,748.23,Luans Little Stars,,,,,,,,
Nottinghamshire County Council,1111/1001,Children and Young People,CYP,Third Party Payments,EGA,02/09/2015,06-10482,12949.72,Lambley Day Nursery Ltd,,,,,,,,
Nottinghamshire County Council,1111/1001,Children and Young People,CYP,Third Party Payments,EGA,02/09/2015,06-10483,24806.35,Killisick Pre-School,,,,,,,,
Nottinghamshire County Council,1111/1001,Children and Young People,CYP,Third Party Payments,EGA,02/09/2015,06-10484,6345.99,Kidzgrove,,,,,,,,
Nottinghamshire County Council,1111/1001,Children and Young People,CYP,Third Party Payments,EGA,02/09/2015,06-10485,748.23,[REDACTED],,,,,,,,
Nottinghamshire County Council,1111/1001,Children and Young People,CYP,Third Party Payments,EGA,02/09/2015,06-10486,2410.8,Jubilee House Christian School,,,,,,,,
Nottinghamshire County Council,1111/1001,Children and Young People,CYP,Third Party Payments,EGA,02/09/2015,06-10487,748.23,[REDACTED],,,,,,,,
Nottinghamshire County Council,1111/1001,Children and Young People,CYP,Third Party Payments,EGA,02/09/2015,06-10488,8894.97,Jelly Totz Day Nursery,,,,,,,,
Nottinghamshire County Council,1111/1001,Children and Young People,CYP,Third Party Payments,EGA,02/09/2015,06-10489,748.23,[REDACTED],,,,,,,,
Nottinghamshire County Council,1111/1001,Children and Young People,CYP,Third Party Payments,EGA,02/09/2015,06-10490,21548.98,Little Oaks Nursery,,,,,,,,
Nottinghamshire County Council,1111/1001,Children and Young People,CYP,Third Party Payments,EGA,02/09/2015,06-10491,21863.02,Little Millers Day Nursery,,,,,,,,
Nottinghamshire County Council,1111/1001,Children and Young People,CYP,Third Party Payments,EGA,02/09/2015,06-10492,10018.18,Little Friends Day Nursery,,,,,,,,
Nottinghamshire County Council,1111/1001,Children and Young People,CYP,Third Party Payments,EGA,02/09/2015,06-10493,32116.85,Little Bears Day Nursery,,,,,,,,
Nottinghamshire County Council,1111/1001,Children and Young People,CYP,Third Party Payments,EGA,02/09/2015,06-10494,12330.85,Little Acorns Shireoaks,,,,,,,,
Nottinghamshire County Council,1111/1001,Children and Young People,CYP,Third Party Payments,EGA,02/09/2015,06-10495,2244.69,Keyworth Primary School,,,,,,,,
Nottinghamshire County Council,1111/1001,Children and Young People,CYP,Third Party Payments,EGA,02/09/2015,06-10496,554.19,[REDACTED],,,,,,,,
Nottinghamshire County Council,1111/1001,Children and Young People,CYP,Third Party Payments,EGA,02/09/2015,06-10497,13120.78,Lowater Street Playgroup,,,,,,,,
Nottinghamshire County Council,1111/1001,Children and Young People,CYP,Third Party Payments,EGA,02/09/2015,06-10498,14649.53,Longdale Nursery School,,,,,,,,
Nottinghamshire County Council,1111/1001,Children and Young People,CYP,Third Party Payments,EGA,02/09/2015,06-10499,8234.46,North Leverton Pre-School Playgroup,,,,,,,,
Nottinghamshire County Council,1111/1001,Children and Young People,CYP,Third Party Payments,EGA,02/09/2015,06-10540,14343.92,Carnarvon Pre-School,,,,,,,,
Nottinghamshire County Council,1111/1001,Children and Young People,CYP,Third Party Payments,EGA,02/09/2015,06-15755,1130074.33,Nottinghamshire Healthcare Nhs Trus,,,,,,,,
Nottinghamshire County Council,1111/1001,Children and Young People,CYP,Third Party Payments,EGA,03/09/2015,06-10584,746.43,Midlands Women'S Aid,,,,,,,,
Nottinghamshire County Council,1111/1001,Children and Young People,CYP,Third Party Payments,EGA,03/09/2015,06-10633,19631.9,All Aboard Day Nursery,,,,,,,,
Nottinghamshire County Council,1111/1001,Children and Young People,CYP,Third Party Payments,EGA,03/09/2015,06-10634,28015.26,All Saints C Of E Primary School,,,,,,,,
Nottinghamshire County Council,1111/1001,Children and Young People,CYP,Third Party Payments,EGA,03/09/2015,06-10635,14806.33,Alphabet House Day Nursery WB,,,,,,,,
Nottinghamshire County Council,1111/1001,Children and Young People,CYP,Third Party Payments,EGA,03/09/2015,06-10636,21165.45,Alphabet House Day Nursery Worksop,,,,,,,,
Nottinghamshire County Council,1111/1001,Children and Young People,CYP,Third Party Payments,EGA,03/09/2015,06-10637,41897.35,Applegarth Day Nurseries Ltd,,,,,,,,
Nottinghamshire County Council,1111/1001,Children and Young People,CYP,Third Party Payments,EGA,03/09/2015,06-10638,19784.73,Busy Bees (Daybrook),,,,,,,,
Nottinghamshire County Council,1111/1001,Children and Young People,CYP,Third Party Payments,EGA,03/09/2015,06-10639,5108.01,Crossdale Busy Bees Pre-School,,,,,,,,
Nottinghamshire County Council,1111/1001,Children and Young People,CYP,Third Party Payments,EGA,03/09/2015,06-10640,23111.34,Cherubs Childcare Centre Ladybrook,,,,,,,,
Nottinghamshire County Council,1111/1001,Children and Young People,CYP,Third Party Payments,EGA,03/09/2015,06-10641,15018.99,Cherubs Childrens Centre Pleasley,,,,,,,,
Nottinghamshire County Council,1111/1001,Children and Young People,CYP,Third Party Payments,EGA,03/09/2015,06-10642,51097.2,Cherubs Day Nursery,,,,,,,,
Nottinghamshire County Council,1111/1001,Children and Young People,CYP,Third Party Payments,EGA,03/09/2015,06-10643,11083.8,Childrens House Childcare Ltd,,,,,,,,
Nottinghamshire County Council,1111/1001,Children and Young People,CYP,Third Party Payments,EGA,03/09/2015,06-10644,19452.51,Coteswood House School,,,,,,,,
Nottinghamshire County Council,1111/1001,Children and Young People,CYP,Third Party Payments,EGA,03/09/2015,06-10645,32865.67,Fun Farm Day Nursery,,,,,,,,
Nottinghamshire County Council,1111/1001,Children and Young People,CYP,Third Party Payments,EGA,03/09/2015,06-10646,803.6,Galaxies Day Nursery,,,,,,,,
Nottinghamshire County Council,1111/1001,Children and Young People,CYP,Third Party Payments,EGA,03/09/2015,06-10647,28099.05,Granby House Nursery,,,,,,,,
Nottinghamshire County Council,1111/1001,Children and Young People,CYP,Third Party Payments,EGA,03/09/2015,06-10648,20722,Hollies Day Nurseries Limited,,,,,,,,
Nottinghamshire County Council,1111/1001,Children and Young People,CYP,Third Party Payments,EGA,03/09/2015,06-10649,30300.63,Little Nippers Pre-School,,,,,,,,
Nottinghamshire County Council,1111/1001,Children and Young People,CYP,Third Party Payments,EGA,03/09/2015,06-10650,1302.42,Mapperley Day Nursery,,,,,,,,
Nottinghamshire County Council,1111/1001,Children and Young People,CYP,Third Party Payments,EGA,03/09/2015,06-10651,8230.53,Ordsall Pre-School,,,,,,,,
Nottinghamshire County Council,1111/1001,Children and Young People,CYP,Third Party Payments,EGA,03/09/2015,06-10652,20006.7,Papermoon Day Nursery,,,,,,,,
Nottinghamshire County Council,1111/1001,Children and Young People,CYP,Third Party Payments,EGA,03/09/2015,06-10653,43810.41,Papermoon Day Nursery Sutton In Ash,,,,,,,,
Nottinghamshire County Council,1111/1001,Children and Young People,CYP,Third Party Payments,EGA,03/09/2015,06-10654,15739.29,Puddleducks Pre-School,,,,,,,,
Nottinghamshire County Council,1111/1001,Children and Young People,CYP,Third Party Payments,EGA,03/09/2015,06-10655,9449.16,Rainbow Day Nursery,,,,,,,,
Nottinghamshire County Council,1111/1001,Children and Young People,CYP,Third Party Payments,EGA,03/09/2015,06-10656,5181.75,Rainbow Day Nursery,,,,,,,,
Nottinghamshire County Council,1111/1001,Children and Young People,CYP,Third Party Payments,EGA,03/09/2015,06-10657,13772.43,Rainbows Day Nursery,,,,,,,,
Nottinghamshire County Council,1111/1001,Children and Young People,CYP,Third Party Payments,EGA,03/09/2015,06-10658,35109.48,Rocking Horse Nursery Butlers Hill,,,,,,,,
Nottinghamshire County Council,1111/1001,Children and Young People,CYP,Third Party Payments,EGA,03/09/2015,06-10659,13716.57,Westbourne House Nursery School,,,,,,,,
Nottinghamshire County Council,1111/1001,Children and Young People,CYP,Third Party Payments,EGA,03/09/2015,06-10660,7204.47,Salterford House School,,,,,,,,
Nottinghamshire County Council,1111/1001,Children and Young People,CYP,Third Party Payments,EGA,03/09/2015,06-10661,44448.39,Shaping Futures Day Nursery,,,,,,,,
Nottinghamshire County Council,1111/1001,Children and Young People,CYP,Third Party Payments,EGA,03/09/2015,06-10662,1646.11,Thrumpton Kids Clubs,,,,,,,,
Nottinghamshire County Council,1111/1001,Children and Young People,CYP,Third Party Payments,EGA,03/09/2015,06-10663,24357.9,Tiny World Mansfield,,,,,,,,
Nottinghamshire County Council,1111/1001,Children and Young People,CYP,Third Party Payments,EGA,03/09/2015,06-10664,10040.15,West Bridgford Out Of School Care L,,,,,,,,
Nottinghamshire County Council,1111/1001,Children and Young People,CYP,Third Party Payments,EGA,03/09/2015,06-10665,20283.48,Treetops Nursery,,,,,,,,
Nottinghamshire County Council,1111/1001,Children and Young People,CYP,Third Party Payments,EGA,03/09/2015,06-10668,24025.39,Treetops Nursery (Clipstone),,,,,,,,
Nottinghamshire County Council,1111/1001,Children and Young People,CYP,Third Party Payments,EGA,03/09/2015,06-10670,1772.83,Inham Park Pre School Playgroup,,,,,,,,
Nottinghamshire County Council,1111/1001,Children and Young People,CYP,Third Party Payments,EGA,03/09/2015,06-10671,5135.94,Heathlands Out Of School Club,,,,,,,,
Nottinghamshire County Council,1111/1001,Children and Young People,CYP,Third Party Payments,EGA,03/09/2015,06-10672,6706.14,[REDACTED],,,,,,,,
Nottinghamshire County Council,1111/1001,Children and Young People,CYP,Third Party Payments,EGA,03/09/2015,06-10677,15074.85,Pretty Windows Ltd,,,,,,,,
Nottinghamshire County Council,1111/1001,Children and Young People,CYP,Third Party Payments,EGA,03/09/2015,06-10680,36096.83,Breedon House Nurseries Ltd,,,,,,,,
Nottinghamshire County Council,1111/1001,Children and Young People,CYP,Third Party Payments,EGA,03/09/2015,06-10682,14658.84,Quinton Day Nurseries T/A Honey Bee,,,,,,,,
Nottinghamshire County Council,1111/1001,Children and Young People,CYP,Third Party Payments,EGA,03/09/2015,06-10683,7489.68,SPBC Day Care Ltd,,,,,,,,
Nottinghamshire County Council,1111/1001,Children and Young People,CYP,Third Party Payments,EGA,03/09/2015,06-10684,886.7,Rachel & Philip's Home From Home Ch,,,,,,,,
Nottinghamshire County Council,1111/1001,Children and Young People,CYP,Third Party Payments,EGA,03/09/2015,06-10685,11453.26,Breedon House Nurseries Ltd,,,,,,,,
Nottinghamshire County Council,1111/1001,Children and Young People,CYP,Third Party Payments,EGA,03/09/2015,06-10686,2325.51,Sir Edmund Hillary Primary School,,,,,,,,
Nottinghamshire County Council,1111/1001,Children and Young People,CYP,Third Party Payments,EGA,03/09/2015,06-10687,566.38,Appletree House Childminding,,,,,,,,
Nottinghamshire County Council,1111/1001,Children and Young People,CYP,Third Party Payments,EGA,03/09/2015,06-10689,8867.04,St Peters C of E Academy,,,,,,,,
Nottinghamshire County Council,1111/1001,Children and Young People,CYP,Third Party Payments,EGA,04/09/2015,06-10747,10603.5,The Lime Trees,,,,,,,,
Nottinghamshire County Council,1111/1001,Children and Young People,CYP,Third Party Payments,EGA,04/09/2015,06-10748,13411.4,The Lime Trees,,,,,,,,
Nottinghamshire County Council,1111/1001,Children and Young People,CYP,Third Party Payments,EGA,04/09/2015,06-10749,6794.93,West Street Pre-School,,,,,,,,
Nottinghamshire County Council,1111/1001,Children and Young People,CYP,Third Party Payments,EGA,04/09/2015,06-10750,7490.88,Grosvenor House Day Nursery,,,,,,,,
Nottinghamshire County Council,1111/1001,Children and Young People,CYP,Third Party Payments,EGA,04/09/2015,06-10751,8285.21,Rushcliffe Pre-School (Nottingham),,,,,,,,
Nottinghamshire County Council,1111/1001,Children and Young People,CYP,Third Party Payments,EGA,04/09/2015,06-10753,10058.62,Rushcliffe Pre-School (Nottingham),,,,,,,,
Nottinghamshire County Council,1111/1001,Children and Young People,CYP,Third Party Payments,EGA,04/09/2015,06-10754,11440.07,Colwick Pre School Playgroup,,,,,,,,
Nottinghamshire County Council,1111/1001,Children and Young People,CYP,Third Party Payments,EGA,04/09/2015,06-10755,6682.87,Arnold St Mary's Pre-School,,,,,,,,
Nottinghamshire County Council,1111/1001,Children and Young People,CYP,Third Party Payments,EGA,04/09/2015,06-10756,18705.75,Abbey Hill Primary & Nursery School,,,,,,,,
Nottinghamshire County Council,1111/1001,Children and Young People,CYP,Third Party Payments,EGA,09/09/2015,06-13963,554.19,[REDACTED],,,,,,,,
Nottinghamshire County Council,1111/1001,Children and Young People,CYP,Third Party Payments,EGA,09/09/2015,06-13964,554.19,Taylor -Made Childcare,,,,,,,,
Nottinghamshire County Council,1111/1001,Children and Young People,CYP,Third Party Payments,EGA,09/09/2015,06-13965,2050.65,Vicki's Childminding Service,,,,,,,,
Nottinghamshire County Council,1111/1001,Children and Young People,CYP,Third Party Payments,EGA,09/09/2015,06-13966,748.23,[REDACTED],,,,,,,,
Nottinghamshire County Council,1111/1001,Children and Young People,CYP,Third Party Payments,EGA,09/09/2015,06-13967,748.23,[REDACTED],,,,,,,,
Nottinghamshire County Council,1111/1001,Children and Young People,CYP,Third Party Payments,EGA,09/09/2015,06-13968,554.19,[REDACTED],,,,,,,,
Nottinghamshire County Council,1111/1001,Children and Young People,CYP,Third Party Payments,EGA,10/09/2015,06-14076,13744.5,Hollies Day Nurseries,,,,,,,,
Nottinghamshire County Council,1111/1001,Children and Young People,CYP,Third Party Payments,EGA,10/09/2015,06-14109,3768.49,Busy Bees Pre-School (Sutton),,,,,,,,
Nottinghamshire County Council,1111/1001,Children and Young People,CYP,Third Party Payments,EGA,10/09/2015,06-14110,1302.42,Jammie Dodgers Childminding Group,,,,,,,,
Nottinghamshire County Council,1111/1001,Children and Young People,CYP,Third Party Payments,EGA,10/09/2015,06-14111,748.23,[REDACTED],,,,,,,,
Nottinghamshire County Council,1111/1001,Children and Young People,CYP,Third Party Payments,EGA,10/09/2015,06-14112,1557.31,Hermitage Pre-School,,,,,,,,
Nottinghamshire County Council,1111/1001,Children and Young People,CYP,Third Party Payments,EGA,10/09/2015,06-14113,10751.58,Portland Place Pre-School,,,,,,,,
Nottinghamshire County Council,1111/1001,Children and Young People,CYP,Third Party Payments,EGA,10/09/2015,06-14114,1108.38,Sunbeams Pre-School,,,,,,,,
Nottinghamshire County Council,1111/1001,Children and Young People,CYP,Third Party Payments,EGA,10/09/2015,06-15761,7637.99,Acorn Fostering Services Ltd,,,,,,,,
Nottinghamshire County Council,1111/1001,Children and Young People,CYP,Third Party Payments,EGA,11/09/2015,06-14127,748.23,Kays Childminding,,,,,,,,
Nottinghamshire County Council,1111/1001,Children and Young People,CYP,Third Party Payments,EGA,14/09/2015,06-14171,748.23,[REDACTED],,,,,,,,
Nottinghamshire County Council,1111/1001,Children and Young People,CYP,Third Party Payments,EGA,14/09/2015,06-14172,13688.64,Stepping Stones II,,,,,,,,
Nottinghamshire County Council,1111/1001,Children and Young People,CYP,Third Party Payments,EGA,14/09/2015,06-14173,6478.68,Railway Children Playgroup,,,,,,,,
Nottinghamshire County Council,1111/1001,Children and Young People,CYP,Third Party Payments,EGA,14/09/2015,06-14174,8340.78,Highfields School & Nursery,,,,,,,,
Nottinghamshire County Council,1111/1001,Children and Young People,CYP,Third Party Payments,EGA,14/09/2015,06-14175,22805.58,Carlton & Gedling Day Nursery,,,,,,,,
Nottinghamshire County Council,1111/1001,Children and Young People,CYP,Third Party Payments,EGA,15/09/2015,06-14264,4987.71,PSLA Newstead Childcare,,,,,,,,
Nottinghamshire County Council,1111/1001,Children and Young People,CYP,Third Party Payments,EGA,15/09/2015,06-14265,5226.14,Allsorts Playgroup,,,,,,,,
Nottinghamshire County Council,1111/1001,Children and Young People,CYP,Third Party Payments,EGA,16/09/2015,06-14115,1247.05,Jelly Beans Childcare,,,,,,,,
Nottinghamshire County Council,1111/1001,Children and Young People,CYP,Third Party Payments,EGA,16/09/2015,06-14170,748.23,Sams Childminding,,,,,,,,
Nottinghamshire County Council,1111/1001,Children and Young People,CYP,Third Party Payments,EGA,16/09/2015,06-14840,8950.83,Galaxies Day Nursery,,,,,,,,
Nottinghamshire County Council,1111/1001,Children and Young People,CYP,Third Party Payments,EGA,16/09/2015,06-14841,3519.18,Wollaton Village Day Nurseries,,,,,,,,
Nottinghamshire County Council,1111/1001,Children and Young People,CYP,Third Party Payments,EGA,16/09/2015,06-14842,7952.7,Pippins Pre-School,,,,,,,,
Nottinghamshire County Council,1111/1001,Children and Young People,CYP,Third Party Payments,EGA,16/09/2015,06-14843,748.23,[REDACTED],,,,,,,,
Nottinghamshire County Council,1111/1001,Children and Young People,CYP,Third Party Payments,EGA,16/09/2015,06-14844,17928.12,Whitehouse Day Nursery,,,,,,,,
Nottinghamshire County Council,1111/1001,Children and Young People,CYP,Third Party Payments,EGA,16/09/2015,06-14845,598.58,Z Whitaker (Active Childminding),,,,,,,,
Nottinghamshire County Council,1111/1001,Children and Young People,CYP,Third Party Payments,EGA,16/09/2015,06-14846,748.23,[REDACTED],,,,,,,,
Nottinghamshire County Council,1111/1001,Children and Young People,CYP,Third Party Payments,EGA,16/09/2015,06-14847,4064.06,Grosvenor House Day Nursery,,,,,,,,
Nottinghamshire County Council,1111/1001,Children and Young People,CYP,Third Party Payments,EGA,16/09/2015,06-14848,565.5,Railway Children Playgroup,,,,,,,,
Nottinghamshire County Council,1111/1001,Children and Young People,CYP,Third Party Payments,EGA,16/09/2015,06-14849,748.23,Tracey Streeter Childminding Servic,,,,,,,,
Nottinghamshire County Council,1111/1001,Children and Young People,CYP,Third Party Payments,EGA,16/09/2015,06-14850,4322.68,Southwell Pre-School,,,,,,,,
Nottinghamshire County Council,1111/1001,Children and Young People,CYP,Third Party Payments,EGA,16/09/2015,06-14851,2244.69,Busy Bees Pre-School,,,,,,,,
Nottinghamshire County Council,1111/1001,Children and Young People,CYP,Third Party Payments,EGA,16/09/2015,06-14852,748.23,Pretty Windows Ltd,,,,,,,,
Nottinghamshire County Council,1111/1001,Children and Young People,CYP,Third Party Payments,EGA,16/09/2015,06-14853,1603.35,Serendipity's Day Nursery,,,,,,,,
Nottinghamshire County Council,1111/1001,Children and Young People,CYP,Third Party Payments,EGA,16/09/2015,06-14854,2798.88,Cared 4 Ltd T/A Brookhill House Day,,,,,,,,
Nottinghamshire County Council,1111/1001,Children and Young People,CYP,Third Party Payments,EGA,16/09/2015,06-14896,1200.63,Mapperley Day Nursery,,,,,,,,
Nottinghamshire County Council,1111/1001,Children and Young People,CYP,Third Party Payments,EGA,17/09/2015,06-14973,7094.22,PSLA Newstead Childcare,,,,,,,,
Nottinghamshire County Council,1111/1001,Children and Young People,CYP,Third Party Payments,EGA,17/09/2015,06-14974,2050.65,[REDACTED],,,,,,,,
Nottinghamshire County Council,1111/1001,Children and Young People,CYP,Third Party Payments,EGA,17/09/2015,06-14975,7731.02,Gotham Pre-School Playgroup,,,,,,,,
Nottinghamshire County Council,1111/1001,Children and Young People,CYP,Third Party Payments,EGA,17/09/2015,06-14976,554.19,Hannah's Huis,,,,,,,,
Nottinghamshire County Council,1111/1001,Children and Young People,CYP,Third Party Payments,EGA,17/09/2015,06-14977,16606.28,Hazel Hurst School,,,,,,,,
Nottinghamshire County Council,1111/1001,Children and Young People,CYP,Third Party Payments,EGA,17/09/2015,06-14978,748.23,J E Norton (Childminding Service),,,,,,,,
Nottinghamshire County Council,1111/1001,Children and Young People,CYP,Third Party Payments,EGA,17/09/2015,06-14979,523.76,Sweet Pea's Childminding,,,,,,,,
Nottinghamshire County Council,1111/1001,Children and Young People,CYP,Third Party Payments,EGA,17/09/2015,06-14980,748.23,Carla Quinn Childminding Service,,,,,,,,
Nottinghamshire County Council,1111/1001,Children and Young People,CYP,Third Party Payments,EGA,18/09/2015,06-10480,554.19,J Lazarus (Childminding Service),,,,,,,,
Nottinghamshire County Council,1111/1001,Children and Young People,CYP,Third Party Payments,EGA,18/09/2015,06-15064,748.23,[REDACTED],,,,,,,,
Nottinghamshire County Council,1111/1001,Children and Young People,CYP,Third Party Payments,EGA,18/09/2015,06-15065,748.23,Nicola Fenton Childminding Services,,,,,,,,
Nottinghamshire County Council,1111/1001,Children and Young People,CYP,Third Party Payments,EGA,18/09/2015,06-15066,748.23,Jenni Day Childminding Services,,,,,,,,
Nottinghamshire County Council,1111/1001,Children and Young People,CYP,Third Party Payments,EGA,18/09/2015,06-15067,748.23,F S Buczko (Childminder),,,,,,,,
Nottinghamshire County Council,1111/1001,Children and Young People,CYP,Third Party Payments,EGA,18/09/2015,06-15068,641.34,Jelly Tots,,,,,,,,
Nottinghamshire County Council,1111/1001,Children and Young People,CYP,Third Party Payments,EGA,22/09/2015,06-15280,748.23,[REDACTED],,,,,,,,
Nottinghamshire County Council,1111/1001,Children and Young People,CYP,Third Party Payments,EGA,22/09/2015,06-15281,628.08,S Tye (Childminding Service),,,,,,,,
Nottinghamshire County Council,1111/1001,Children and Young People,CYP,Third Party Payments,EGA,22/09/2015,06-15282,2992.92,Safe Haven Day Nursery,,,,,,,,
Nottinghamshire County Council,1111/1001,Children and Young People,CYP,Third Party Payments,EGA,23/09/2015,06-15366,3907.26,Rainbows Day Nursery,,,,,,,,
Nottinghamshire County Council,1111/1001,Children and Young People,CYP,Third Party Payments,EGA,24/09/2015,06-15392,554.19,C3 Childcare Childminding Service,,,,,,,,
Nottinghamshire County Council,1111/1001,Children and Young People,CYP,Third Party Payments,EGA,24/09/2015,06-15393,17429.79,Alphabet House Day Nursery,,,,,,,,
Nottinghamshire County Council,1111/1001,Children and Young People,CYP,Third Party Payments,EGA,28/09/2015,06-15493,1228.53,[REDACTED],,,,,,,,
Nottinghamshire County Council,1111/1001,Children and Young People,CYP,Third Party Payments,EGA,28/09/2015,06-15494,748.23,[REDACTED],,,,,,,,
Nottinghamshire County Council,1111/1001,Children and Young People,CYP,Transfer Payments,GAA,24/09/2015,06-15387,1430,[REDACTED],,,,,,,,
Nottinghamshire County Council,1111/1001,Children and Young People,CYP,Support Services,HAA,04/09/2015,06-10784,4570.31,Travel Wright Ltd,,,,,,,,
Nottinghamshire County Council,1111/1001,Children and Young People,CYP,Support Services,HAA,04/09/2015,06-10786,120,Travel Wright Ltd,,,,,,,,
Nottinghamshire County Council,1111/1001,Children and Young People,CYP,Support Services,HAA,04/09/2015,06-10788,2464.43,Travel Wright Ltd,,,,,,,,
Nottinghamshire County Council,1111/1001,Children and Young People,CYP,Support Services,HAA,04/09/2015,06-10790,1857.31,Travel Wright Ltd,,,,,,,,
Nottinghamshire County Council,1111/1001,Children and Young People,CYP,Support Services,HAA,08/09/2015,06-13957,1915.76,Wallis Coachways,,,,,,,,
Nottinghamshire County Council,1111/1001,Children and Young People,CYP,Support Services,HAA,08/09/2015,06-13958,1393.28,Wallis Coachways,,,,,,,,
Nottinghamshire County Council,1111/1001,Children and Young People,CYP,Support Services,HAA,14/09/2015,06-14189,1872.75,Marshalls Of Sutton On Trent Ltd,,,,,,,,
Nottinghamshire County Council,1111/1001,Children and Young People,CYP,Support Services,HAA,14/09/2015,06-14193,3944.17,Stagecoach Services Ltd,,,,,,,,
Nottinghamshire County Council,1111/1001,Children and Young People,CYP,Support Services,HAA,14/09/2015,06-14209,5456.1,Stagecoach Services Ltd,,,,,,,,
Nottinghamshire County Council,1111/1001,Children and Young People,CYP,Support Services,HAA,14/09/2015,06-14211,2569.92,Stagecoach Services Ltd,,,,,,,,
Nottinghamshire County Council,1111/1001,Children and Young People,CYP,Support Services,HAA,14/09/2015,06-14213,4377.28,Stagecoach Services Ltd,,,,,,,,
Nottinghamshire County Council,1111/1001,Children and Young People,CYP,Support Services,HAA,14/09/2015,06-14222,977.36,Cotswold CVS Trading Ltd,,,,,,,,
Nottinghamshire County Council,1111/1001,Adult Social Care and Health,ASCH,Premises Related,BAA,04/09/2015,06-10752,959.5,Cw Plumbing Heating & Gas Services,,,,,,,,
Nottinghamshire County Council,1111/1001,Adult Social Care and Health,ASCH,Premises Related,BAA,10/09/2015,06-14123,507,Barry Fox Joiner & Builder Co,,,,,,,,
Nottinghamshire County Council,1111/1001,Adult Social Care and Health,ASCH,Premises Related,BAA,22/09/2015,06-15251,868.5,HP Heating & Plumbing Services,,,,,,,,
Nottinghamshire County Council,1111/1001,Adult Social Care and Health,ASCH,Premises Related,BAA,29/09/2015,06-15140,867,Intex Building & Maintenance,,,,,,,,
Nottinghamshire County Council,1111/1001,Adult Social Care and Health,ASCH,Transport Related,CBA,08/09/2015,06-13936,1140.5,Ja Travel Ltd,,,,,,,,
Nottinghamshire County Council,1111/1001,Adult Social Care and Health,ASCH,Transport Related,CBA,08/09/2015,06-13940,1656.92,F & J Marriott T/A Unity Coaches,,,,,,,,
Nottinghamshire County Council,1111/1001,Adult Social Care and Health,ASCH,Transport Related,CBA,08/09/2015,06-13942,1591.6,F & J Marriott T/A Unity Coaches,,,,,,,,
Nottinghamshire County Council,1111/1001,Adult Social Care and Health,ASCH,Transport Related,CBA,08/09/2015,06-13943,1677.9,Vallances Coaches,,,,,,,,
Nottinghamshire County Council,1111/1001,Adult Social Care and Health,ASCH,Transport Related,CBA,14/09/2015,06-14178,1631.74,BN Gibson Ltd,,,,,,,,
Nottinghamshire County Council,1111/1001,Adult Social Care and Health,ASCH,Transport Related,CBA,14/09/2015,06-14220,4525.01,Cotswold CVS Trading Ltd,,,,,,,,
Nottinghamshire County Council,1111/1001,Adult Social Care and Health,ASCH,Transport Related,CBA,16/09/2015,06-14894,885.53,Aj Travel,,,,,,,,
Nottinghamshire County Council,1111/1001,Adult Social Care and Health,ASCH,Transport Related,CBA,21/09/2015,06-15156,1785.41,Mct Uk Ltd,,,,,,,,
Nottinghamshire County Council,1111/1001,Adult Social Care and Health,ASCH,Transport Related,CCA,04/09/2015,06-10769,2119.78,Arrow Specialised Transport Ltd,,,,,,,,
Nottinghamshire County Council,1111/1001,Adult Social Care and Health,ASCH,Transport Related,CCA,04/09/2015,06-10778,2958,Bridges Transport Services,,,,,,,,
Nottinghamshire County Council,1111/1001,Adult Social Care and Health,ASCH,Transport Related,CCA,04/09/2015,06-10779,612,Bridges Transport Services,,,,,,,,
Nottinghamshire County Council,1111/1001,Adult Social Care and Health,ASCH,Transport Related,CCA,08/09/2015,06-13937,933.24,Midfield Travel,,,,,,,,
Nottinghamshire County Council,1111/1001,Adult Social Care and Health,ASCH,Transport Related,CCA,08/09/2015,06-13952,1296,P & P Taxis,,,,,,,,
Nottinghamshire County Council,1111/1001,Adult Social Care and Health,ASCH,Transport Related,CCA,14/09/2015,06-14178,228.55,BN Gibson Ltd,,,,,,,,
Nottinghamshire County Council,1111/1001,Adult Social Care and Health,ASCH,Transport Related,CCA,29/09/2015,06-15594,660.1,SJW (Muskham) Ltd T/A Z Cars,,,,,,,,
Nottinghamshire County Council,1111/1001,Adult Social Care and Health,ASCH,Transport Related,CDA,04/09/2015,06-10763,2500,Taxicover Uk Ltd,,,,,,,,
Nottinghamshire County Council,1111/1001,Adult Social Care and Health,ASCH,Transport Related,CDA,04/09/2015,06-10764,980.1,Southside Cars,,,,,,,,
Nottinghamshire County Council,1111/1001,Adult Social Care and Health,ASCH,Transport Related,CDA,04/09/2015,06-10765,2771.5,F4Control Ltd (t/a First4care),,,,,,,,
Nottinghamshire County Council,1111/1001,Adult Social Care and Health,ASCH,Transport Related,CDA,04/09/2015,06-10766,3479.9,F4Control Ltd (t/a First4care),,,,,,,,
Nottinghamshire County Council,1111/1001,Adult Social Care and Health,ASCH,Transport Related,CDA,04/09/2015,06-10767,714.82,Ace Of Mansfield Ltd,,,,,,,,
Nottinghamshire County Council,1111/1001,Adult Social Care and Health,ASCH,Transport Related,CDA,04/09/2015,06-10768,2840,Arrow Specialised Transport Ltd,,,,,,,,
Nottinghamshire County Council,1111/1001,Adult Social Care and Health,ASCH,Transport Related,CDA,04/09/2015,06-10769,1060.22,Arrow Specialised Transport Ltd,,,,,,,,
Nottinghamshire County Council,1111/1001,Adult Social Care and Health,ASCH,Transport Related,CDA,04/09/2015,06-10772,979.2,Bridges Transport Services,,,,,,,,
Nottinghamshire County Council,1111/1001,Adult Social Care and Health,ASCH,Transport Related,CDA,04/09/2015,06-10773,1609.5,Bridges Transport Services,,,,,,,,
Nottinghamshire County Council,1111/1001,Adult Social Care and Health,ASCH,Transport Related,CDA,04/09/2015,06-10774,994.4,Bridges Transport Services,,,,,,,,
Nottinghamshire County Council,1111/1001,Adult Social Care and Health,ASCH,Transport Related,CDA,04/09/2015,06-10775,816,Bridges Transport Services,,,,,,,,
Nottinghamshire County Council,1111/1001,Adult Social Care and Health,ASCH,Transport Related,CDA,04/09/2015,06-10776,1224,Bridges Transport Services,,,,,,,,
Nottinghamshire County Council,1111/1001,Adult Social Care and Health,ASCH,Transport Related,CDA,04/09/2015,06-10777,571.2,Bridges Transport Services,,,,,,,,
Nottinghamshire County Council,1111/1001,Adult Social Care and Health,ASCH,Transport Related,CDA,04/09/2015,06-10780,2397.6,Hawkins Taxis & Transport,,,,,,,,
Nottinghamshire County Council,1111/1001,Adult Social Care and Health,ASCH,Transport Related,CDA,04/09/2015,06-10781,512,Ng11 Cars,,,,,,,,
Nottinghamshire County Council,1111/1001,Adult Social Care and Health,ASCH,Transport Related,CDA,04/09/2015,06-10782,873.96,Beechwood Taxis,,,,,,,,
Nottinghamshire County Council,1111/1001,Adult Social Care and Health,ASCH,Transport Related,CDA,04/09/2015,06-10793,2490,Town Cars (UK) Ltd,,,,,,,,
Nottinghamshire County Council,1111/1001,Adult Social Care and Health,ASCH,Transport Related,CDA,08/09/2015,06-13935,2320,Arrow Specialised Transport Ltd,,,,,,,,
Nottinghamshire County Council,1111/1001,Adult Social Care and Health,ASCH,Transport Related,CDA,08/09/2015,06-13937,1565.16,Midfield Travel,,,,,,,,
Nottinghamshire County Council,1111/1001,Adult Social Care and Health,ASCH,Transport Related,CDA,08/09/2015,06-13939,1389.8,Carlton Cars Ltd T/A Trent Cars,,,,,,,,
Nottinghamshire County Council,1111/1001,Adult Social Care and Health,ASCH,Transport Related,CDA,08/09/2015,06-13940,177.78,F & J Marriott T/A Unity Coaches,,,,,,,,
Nottinghamshire County Council,1111/1001,Adult Social Care and Health,ASCH,Transport Related,CDA,08/09/2015,06-13944,589,D G Private Hire Ltd,,,,,,,,
Nottinghamshire County Council,1111/1001,Adult Social Care and Health,ASCH,Transport Related,CDA,08/09/2015,06-13945,642.6,Abacus Cars,,,,,,,,
Nottinghamshire County Council,1111/1001,Adult Social Care and Health,ASCH,Transport Related,CDA,08/09/2015,06-13946,1872.8,Abacus Cars,,,,,,,,
Nottinghamshire County Council,1111/1001,Adult Social Care and Health,ASCH,Transport Related,CDA,08/09/2015,06-13947,582.56,Abacus Cars,,,,,,,,
Nottinghamshire County Council,1111/1001,Adult Social Care and Health,ASCH,Transport Related,CDA,08/09/2015,06-13948,685.44,Abacus Cars,,,,,,,,
Nottinghamshire County Council,1111/1001,Adult Social Care and Health,ASCH,Transport Related,CDA,08/09/2015,06-13953,940,P & P Taxis,,,,,,,,
Nottinghamshire County Council,1111/1001,Adult Social Care and Health,ASCH,Transport Related,CDA,08/09/2015,06-13955,540,P & P Taxis,,,,,,,,
Nottinghamshire County Council,1111/1001,Adult Social Care and Health,ASCH,Transport Related,CDA,08/09/2015,06-13961,1156,In Taxis,,,,,,,,
Nottinghamshire County Council,1111/1001,Adult Social Care and Health,ASCH,Transport Related,CDA,08/09/2015,06-13962,2550,[REDACTED],,,,,,,,
Nottinghamshire County Council,1111/1001,Adult Social Care and Health,ASCH,Transport Related,CDA,14/09/2015,06-14177,3780,BN Gibson Ltd,,,,,,,,
Nottinghamshire County Council,1111/1001,Adult Social Care and Health,ASCH,Transport Related,CDA,14/09/2015,06-14178,209.91,BN Gibson Ltd,,,,,,,,
Nottinghamshire County Council,1111/1001,Adult Social Care and Health,ASCH,Transport Related,CDA,16/09/2015,06-14886,1320,Abacus Cars,,,,,,,,
Nottinghamshire County Council,1111/1001,Adult Social Care and Health,ASCH,Transport Related,CDA,16/09/2015,06-14894,134.07,Aj Travel,,,,,,,,
Nottinghamshire County Council,1111/1001,Adult Social Care and Health,ASCH,Transport Related,CDA,18/09/2015,06-15035,820.6,F4Control Ltd (t/a First4care),,,,,,,,
Nottinghamshire County Council,1111/1001,Adult Social Care and Health,ASCH,Transport Related,CDA,18/09/2015,06-15036,2410,F4Control Ltd (t/a First4care),,,,,,,,
Nottinghamshire County Council,1111/1001,Adult Social Care and Health,ASCH,Transport Related,CDA,18/09/2015,06-15037,3026,F4Control Ltd (t/a First4care),,,,,,,,
Nottinghamshire County Council,1111/1001,Adult Social Care and Health,ASCH,Transport Related,CDA,18/09/2015,06-15039,1181.6,Ace Of Mansfield Ltd,,,,,,,,
Nottinghamshire County Council,1111/1001,Adult Social Care and Health,ASCH,Transport Related,CDA,21/09/2015,06-15137,733.26,F4Control Ltd (t/a First4care),,,,,,,,
Nottinghamshire County Council,1111/1001,Adult Social Care and Health,ASCH,Transport Related,CDA,21/09/2015,06-15154,512,Acorn Contracts,,,,,,,,
Nottinghamshire County Council,1111/1001,Adult Social Care and Health,ASCH,Transport Related,CDA,21/09/2015,06-15155,520,Acorn Contracts,,,,,,,,
Nottinghamshire County Council,1111/1001,Adult Social Care and Health,ASCH,Transport Related,CDA,29/09/2015,06-15600,1224,[REDACTED],,,,,,,,
Nottinghamshire County Council,1111/1001,Adult Social Care and Health,ASCH,Supplies & Services,DBA,02/09/2015,06-10529,1873.13,Hallam Country Fresh Foods Ltd,,,,,,,,
Nottinghamshire County Council,1111/1001,Adult Social Care and Health,ASCH,Supplies & Services,DBA,03/09/2015,06-10560,2805.32,M Maloney Country Butchers & B Ltd,,,,,,,,
Nottinghamshire County Council,1111/1001,Adult Social Care and Health,ASCH,Supplies & Services,DBA,03/09/2015,06-10565,4170.69,M Maloney Country Butchers & B Ltd,,,,,,,,
Nottinghamshire County Council,1111/1001,Adult Social Care and Health,ASCH,Supplies & Services,DBA,03/09/2015,06-10569,4722.91,M Maloney Country Butchers & B Ltd,,,,,,,,
Nottinghamshire County Council,1111/1001,Adult Social Care and Health,ASCH,Supplies & Services,DBA,03/09/2015,06-10573,4847.79,M Maloney Country Butchers & B Ltd,,,,,,,,
Nottinghamshire County Council,1111/1001,Adult Social Care and Health,ASCH,Supplies & Services,DBA,04/09/2015,06-10533,1228.94,Brake Bros Ltd,,,,,,,,
Nottinghamshire County Council,1111/1001,Adult Social Care and Health,ASCH,Supplies & Services,DBA,04/09/2015,06-10536,1887.04,Brake Bros Ltd,,,,,,,,
Nottinghamshire County Council,1111/1001,Adult Social Care and Health,ASCH,Supplies & Services,DBA,04/09/2015,06-10557,2551.46,Brake Bros Ltd,,,,,,,,
Nottinghamshire County Council,1111/1001,Adult Social Care and Health,ASCH,Supplies & Services,DBA,09/09/2015,06-14063,1278.44,Hallam Country Fresh Foods Ltd,,,,,,,,
Nottinghamshire County Council,1111/1001,Adult Social Care and Health,ASCH,Supplies & Services,DBA,11/09/2015,06-14138,864.62,Brake Bros Ltd,,,,,,,,
Nottinghamshire County Council,1111/1001,Adult Social Care and Health,ASCH,Supplies & Services,DBA,11/09/2015,06-14161,1359.06,Brake Bros Ltd,,,,,,,,
Nottinghamshire County Council,1111/1001,Adult Social Care and Health,ASCH,Supplies & Services,DBA,11/09/2015,06-14165,1859.31,Brake Bros Ltd,,,,,,,,
Nottinghamshire County Council,1111/1001,Adult Social Care and Health,ASCH,Supplies & Services,DBA,16/09/2015,06-14878,1762.47,Hallam Country Fresh Foods Ltd,,,,,,,,
Nottinghamshire County Council,1111/1001,Adult Social Care and Health,ASCH,Supplies & Services,DBA,18/09/2015,06-15012,1150.2,Brake Bros Ltd,,,,,,,,
Nottinghamshire County Council,1111/1001,Adult Social Care and Health,ASCH,Supplies & Services,DBA,18/09/2015,06-15018,1715.88,Brake Bros Ltd,,,,,,,,
Nottinghamshire County Council,1111/1001,Adult Social Care and Health,ASCH,Supplies & Services,DBA,18/09/2015,06-15021,2952.82,M Maloney Country Butchers & B Ltd,,,,,,,,
Nottinghamshire County Council,1111/1001,Adult Social Care and Health,ASCH,Supplies & Services,DBA,18/09/2015,06-15025,6383.41,M Maloney Country Butchers & B Ltd,,,,,,,,
Nottinghamshire County Council,1111/1001,Adult Social Care and Health,ASCH,Supplies & Services,DBA,23/09/2015,06-15381,1220.93,Hallam Country Fresh Foods Ltd,,,,,,,,
Nottinghamshire County Council,1111/1001,Adult Social Care and Health,ASCH,Supplies & Services,DBA,28/09/2015,06-15468,1246.64,Brake Bros Ltd,,,,,,,,
Nottinghamshire County Council,1111/1001,Adult Social Care and Health,ASCH,Supplies & Services,DBA,28/09/2015,06-15469,1866.72,Brake Bros Ltd,,,,,,,,
Nottinghamshire County Council,1111/1001,Adult Social Care and Health,ASCH,Supplies & Services,DBA,28/09/2015,06-15477,2878.21,Brake Bros Ltd,,,,,,,,
Nottinghamshire County Council,1111/1001,Adult Social Care and Health,ASCH,Supplies & Services,DBA,28/09/2015,06-15480,866.87,Brake Bros Ltd,,,,,,,,
Nottinghamshire County Council,1111/1001,Adult Social Care and Health,ASCH,Supplies & Services,DBA,28/09/2015,06-15481,491.97,Brake Bros Ltd,,,,,,,,
Nottinghamshire County Council,1111/1001,Adult Social Care and Health,ASCH,Supplies & Services,DBA,28/09/2015,06-15485,1310.72,Brake Bros Ltd,,,,,,,,
Nottinghamshire County Council,1111/1001,Adult Social Care and Health,ASCH,Supplies & Services,DBA,28/09/2015,06-15488,3338.46,Brake Bros Ltd,,,,,,,,
Nottinghamshire County Council,1111/1001,Adult Social Care and Health,ASCH,Supplies & Services,DEA,30/09/2015,06-14134,144.56,Security Plus Ltd,,,,,,,,
Nottinghamshire County Council,1111/1001,Adult Social Care and Health,ASCH,Supplies & Services,DFA,21/09/2015,06-15144,614.98,Lantec Services Ltd,,,,,,,,
Nottinghamshire County Council,1111/1001,Adult Social Care and Health,ASCH,Supplies & Services,DGA,08/09/2015,06-13954,2881,P & P Taxis,,,,,,,,
Nottinghamshire County Council,1111/1001,Adult Social Care and Health,ASCH,Third Party Payments,EBA,11/09/2015,06-14140,9320,Aspirations Care (Midlands) Ltd,,,,,,,,
Nottinghamshire County Council,1111/1001,Adult Social Care and Health,ASCH,Third Party Payments,EBA,11/09/2015,06-14141,1080,Reach Housing Gloria Miller,,,,,,,,
Nottinghamshire County Council,1111/1001,Adult Social Care and Health,ASCH,Third Party Payments,EBA,11/09/2015,06-14142,5488,Metropolitan Housing Trust,,,,,,,,
Nottinghamshire County Council,1111/1001,Adult Social Care and Health,ASCH,Third Party Payments,EBA,11/09/2015,06-14144,45315.56,Royal Society Mencap,,,,,,,,
Nottinghamshire County Council,1111/1001,Adult Social Care and Health,ASCH,Third Party Payments,EBA,11/09/2015,06-14145,80764.2,Eden Supported Living Ltd,,,,,,,,
Nottinghamshire County Council,1111/1001,Adult Social Care and Health,ASCH,Third Party Payments,EBA,11/09/2015,06-14146,2920,Living Ambitions Ltd,,,,,,,,
Nottinghamshire County Council,1111/1001,Adult Social Care and Health,ASCH,Third Party Payments,EBA,11/09/2015,06-14147,2160,Oakdale Ozier Ltd,,,,,,,,
Nottinghamshire County Council,1111/1001,Adult Social Care and Health,ASCH,Third Party Payments,EBA,11/09/2015,06-14148,201253.81,Framework Housing Association,,,,,,,,
Nottinghamshire County Council,1111/1001,Adult Social Care and Health,ASCH,Third Party Payments,EBA,11/09/2015,06-14149,4638.18,Nottingham Community Housing,,,,,,,,
Nottinghamshire County Council,1111/1001,Adult Social Care and Health,ASCH,Third Party Payments,EBA,11/09/2015,06-14150,5720,Fitzroy,,,,,,,,
Nottinghamshire County Council,1111/1001,Adult Social Care and Health,ASCH,Third Party Payments,EBA,11/09/2015,06-14151,16087.92,Lifeways Community Care Ltd,,,,,,,,
Nottinghamshire County Council,1111/1001,Adult Social Care and Health,ASCH,Third Party Payments,EBA,11/09/2015,06-14152,5720,Voyage Ltd,,,,,,,,
Nottinghamshire County Council,1111/1001,Adult Social Care and Health,ASCH,Third Party Payments,EBA,11/09/2015,06-14153,24911.8,Thera East Midlands,,,,,,,,
Nottinghamshire County Council,1111/1001,Adult Social Care and Health,ASCH,Third Party Payments,EBA,11/09/2015,06-14154,14160,Choice Support,,,,,,,,
Nottinghamshire County Council,1111/1001,Adult Social Care and Health,ASCH,Third Party Payments,EBA,11/09/2015,06-14155,12040,United Response,,,,,,,,
Nottinghamshire County Council,1111/1001,Adult Social Care and Health,ASCH,Third Party Payments,EBA,11/09/2015,06-14156,1840,Heritage Care,,,,,,,,
Nottinghamshire County Council,1111/1001,Adult Social Care and Health,ASCH,Third Party Payments,EBA,11/09/2015,06-14157,2360,Real Life Options,,,,,,,,
Nottinghamshire County Council,1111/1001,Adult Social Care and Health,ASCH,Third Party Payments,EBA,11/09/2015,06-14158,4352.52,NCHA Ltd,,,,,,,,
Nottinghamshire County Council,1111/1001,Adult Social Care and Health,ASCH,Third Party Payments,ECA,07/09/2015,06-15762,480000,NHS Newark & Sherwood CCG,,,,,,,,
Nottinghamshire County Council,1111/1001,Adult Social Care and Health,ASCH,Third Party Payments,ECA,07/09/2015,06-15763,380000,NHS Nottingham North and East CCG,,,,,,,,
Nottinghamshire County Council,1111/1001,Adult Social Care and Health,ASCH,Third Party Payments,ECA,07/09/2015,06-15764,234000,NHS Nottingham West CCG,,,,,,,,
Nottinghamshire County Council,1111/1001,Adult Social Care and Health,ASCH,Third Party Payments,ECA,07/09/2015,06-15765,746000,Mansfield & Ashfield CCG,,,,,,,,
Nottinghamshire County Council,1111/1001,Adult Social Care and Health,ASCH,Third Party Payments,ECA,07/09/2015,06-15766,286000,NHS Rushcliffe CCG,,,,,,,,
Nottinghamshire County Council,1111/1001,Adult Social Care and Health,ASCH,Third Party Payments,ECA,07/09/2015,06-15767,378000,NHS Bassetlaw CCG,,,,,,,,
Nottinghamshire County Council,1111/1001,Adult Social Care and Health,ASCH,Third Party Payments,ECA,08/09/2015,06-10874,448,Bramcote Hills Care Home,,,,,,,,
Nottinghamshire County Council,1111/1001,Adult Social Care and Health,ASCH,Third Party Payments,ECA,08/09/2015,06-10876,448,Bramcote Hills Care Home,,,,,,,,
Nottinghamshire County Council,1111/1001,Adult Social Care and Health,ASCH,Third Party Payments,ECA,08/09/2015,06-10879,864,Bramcote Hills Care Home,,,,,,,,
Nottinghamshire County Council,1111/1001,Adult Social Care and Health,ASCH,Third Party Payments,ECA,08/09/2015,06-10880,448,Bramcote Hills Care Home,,,,,,,,
Nottinghamshire County Council,1111/1001,Adult Social Care and Health,ASCH,Third Party Payments,ECA,08/09/2015,06-10883,448,Bramcote Hills Care Home,,,,,,,,
Nottinghamshire County Council,1111/1001,Adult Social Care and Health,ASCH,Third Party Payments,ECA,08/09/2015,06-10885,672,Bramcote Hills Care Home,,,,,,,,
Nottinghamshire County Council,1111/1001,Adult Social Care and Health,ASCH,Third Party Payments,ECA,08/09/2015,06-10886,448,Bramcote Hills Care Home,,,,,,,,
Nottinghamshire County Council,1111/1001,Adult Social Care and Health,ASCH,Third Party Payments,ECA,08/09/2015,06-10888,448,Bramcote Hills Care Home,,,,,,,,
Nottinghamshire County Council,1111/1001,Adult Social Care and Health,ASCH,Third Party Payments,ECA,08/09/2015,06-10904,672,The Grange Nursing Home,,,,,,,,
Nottinghamshire County Council,1111/1001,Adult Social Care and Health,ASCH,Third Party Payments,ECA,08/09/2015,06-10905,448,The Grange Nursing Home,,,,,,,,
Nottinghamshire County Council,1111/1001,Adult Social Care and Health,ASCH,Third Party Payments,ECA,08/09/2015,06-10908,448,The Grange Nursing Home,,,,,,,,
Nottinghamshire County Council,1111/1001,Adult Social Care and Health,ASCH,Third Party Payments,ECA,08/09/2015,06-10911,448,The Grange Nursing Home,,,,,,,,
Nottinghamshire County Council,1111/1001,Adult Social Care and Health,ASCH,Third Party Payments,ECA,08/09/2015,06-10915,448,The Grange Nursing Home,,,,,,,,
Nottinghamshire County Council,1111/1001,Adult Social Care and Health,ASCH,Third Party Payments,ECA,08/09/2015,06-10925,448,Belle Vue,,,,,,,,
Nottinghamshire County Council,1111/1001,Adult Social Care and Health,ASCH,Third Party Payments,ECA,08/09/2015,06-10927,448,Belle Vue,,,,,,,,
Nottinghamshire County Council,1111/1001,Adult Social Care and Health,ASCH,Third Party Payments,ECA,08/09/2015,06-10930,448,Belle Vue,,,,,,,,
Nottinghamshire County Council,1111/1001,Adult Social Care and Health,ASCH,Third Party Payments,ECA,08/09/2015,06-10935,448,Belle Vue,,,,,,,,
Nottinghamshire County Council,1111/1001,Adult Social Care and Health,ASCH,Third Party Payments,ECA,08/09/2015,06-10938,448,Belle Vue,,,,,,,,
Nottinghamshire County Council,1111/1001,Adult Social Care and Health,ASCH,Third Party Payments,ECA,08/09/2015,06-10941,448,Ashcroft,,,,,,,,
Nottinghamshire County Council,1111/1001,Adult Social Care and Health,ASCH,Third Party Payments,ECA,08/09/2015,06-10943,448,Ashcroft,,,,,,,,
Nottinghamshire County Council,1111/1001,Adult Social Care and Health,ASCH,Third Party Payments,ECA,08/09/2015,06-10946,448,Ashcroft,,,,,,,,
Nottinghamshire County Council,1111/1001,Adult Social Care and Health,ASCH,Third Party Payments,ECA,08/09/2015,06-10949,448,Ashcroft,,,,,,,,
Nottinghamshire County Council,1111/1001,Adult Social Care and Health,ASCH,Third Party Payments,ECA,08/09/2015,06-10956,448,Ashcroft,,,,,,,,
Nottinghamshire County Council,1111/1001,Adult Social Care and Health,ASCH,Third Party Payments,ECA,08/09/2015,06-10958,448,Ashcroft,,,,,,,,
Nottinghamshire County Council,1111/1001,Adult Social Care and Health,ASCH,Third Party Payments,ECA,08/09/2015,06-10963,448,Ashcroft,,,,,,,,
Nottinghamshire County Council,1111/1001,Adult Social Care and Health,ASCH,Third Party Payments,ECA,08/09/2015,06-10968,448,Ashcroft,,,,,,,,
Nottinghamshire County Council,1111/1001,Adult Social Care and Health,ASCH,Third Party Payments,ECA,08/09/2015,06-10970,512,Ashcroft,,,,,,,,
Nottinghamshire County Council,1111/1001,Adult Social Care and Health,ASCH,Third Party Payments,ECA,08/09/2015,06-10971,448,Ashcroft,,,,,,,,
Nottinghamshire County Council,1111/1001,Adult Social Care and Health,ASCH,Third Party Payments,ECA,08/09/2015,06-10974,448,Ashcroft,,,,,,,,
Nottinghamshire County Council,1111/1001,Adult Social Care and Health,ASCH,Third Party Payments,ECA,08/09/2015,06-10976,448,Ashcroft,,,,,,,,
Nottinghamshire County Council,1111/1001,Adult Social Care and Health,ASCH,Third Party Payments,ECA,08/09/2015,06-10978,448,Ashcroft,,,,,,,,
Nottinghamshire County Council,1111/1001,Adult Social Care and Health,ASCH,Third Party Payments,ECA,08/09/2015,06-10980,448,Ashcroft,,,,,,,,
Nottinghamshire County Council,1111/1001,Adult Social Care and Health,ASCH,Third Party Payments,ECA,08/09/2015,06-10984,448,Kingsthorpe View Nursing Home,,,,,,,,
Nottinghamshire County Council,1111/1001,Adult Social Care and Health,ASCH,Third Party Payments,ECA,08/09/2015,06-10999,448,Beauvale Nursing Home,,,,,,,,
Nottinghamshire County Council,1111/1001,Adult Social Care and Health,ASCH,Third Party Payments,ECA,08/09/2015,06-11001,448,Beauvale Nursing Home,,,,,,,,
Nottinghamshire County Council,1111/1001,Adult Social Care and Health,ASCH,Third Party Payments,ECA,08/09/2015,06-11005,448,Beauvale Nursing Home,,,,,,,,
Nottinghamshire County Council,1111/1001,Adult Social Care and Health,ASCH,Third Party Payments,ECA,08/09/2015,06-11008,448,Beauvale Nursing Home,,,,,,,,
Nottinghamshire County Council,1111/1001,Adult Social Care and Health,ASCH,Third Party Payments,ECA,08/09/2015,06-11010,-1744,Beauvale Nursing Home,,,,,,,,
Nottinghamshire County Council,1111/1001,Adult Social Care and Health,ASCH,Third Party Payments,ECA,08/09/2015,06-11013,448,Beauvale Nursing Home,,,,,,,,
Nottinghamshire County Council,1111/1001,Adult Social Care and Health,ASCH,Third Party Payments,ECA,08/09/2015,06-11017,448,Beauvale Nursing Home,,,,,,,,
Nottinghamshire County Council,1111/1001,Adult Social Care and Health,ASCH,Third Party Payments,ECA,08/09/2015,06-11019,448,Beauvale Nursing Home,,,,,,,,
Nottinghamshire County Council,1111/1001,Adult Social Care and Health,ASCH,Third Party Payments,ECA,08/09/2015,06-11030,784,Avalon Nursing Home,,,,,,,,
Nottinghamshire County Council,1111/1001,Adult Social Care and Health,ASCH,Third Party Payments,ECA,08/09/2015,06-11032,448,Avalon Nursing Home,,,,,,,,
Nottinghamshire County Council,1111/1001,Adult Social Care and Health,ASCH,Third Party Payments,ECA,08/09/2015,06-11037,448,Avalon Nursing Home,,,,,,,,
Nottinghamshire County Council,1111/1001,Adult Social Care and Health,ASCH,Third Party Payments,ECA,08/09/2015,06-11039,448,Avalon Nursing Home,,,,,,,,
Nottinghamshire County Council,1111/1001,Adult Social Care and Health,ASCH,Third Party Payments,ECA,08/09/2015,06-11041,448,Avalon Nursing Home,,,,,,,,
Nottinghamshire County Council,1111/1001,Adult Social Care and Health,ASCH,Third Party Payments,ECA,08/09/2015,06-11045,448,Avalon Nursing Home,,,,,,,,
Nottinghamshire County Council,1111/1001,Adult Social Care and Health,ASCH,Third Party Payments,ECA,08/09/2015,06-11047,592,Avalon Nursing Home,,,,,,,,
Nottinghamshire County Council,1111/1001,Adult Social Care and Health,ASCH,Third Party Payments,ECA,08/09/2015,06-11052,448,Avalon Nursing Home,,,,,,,,
Nottinghamshire County Council,1111/1001,Adult Social Care and Health,ASCH,Third Party Payments,ECA,08/09/2015,06-11054,448,Avalon Nursing Home,,,,,,,,
Nottinghamshire County Council,1111/1001,Adult Social Care and Health,ASCH,Third Party Payments,ECA,08/09/2015,06-11056,448,Avalon Nursing Home,,,,,,,,
Nottinghamshire County Council,1111/1001,Adult Social Care and Health,ASCH,Third Party Payments,ECA,08/09/2015,06-11058,448,Avalon Nursing Home,,,,,,,,
Nottinghamshire County Council,1111/1001,Adult Social Care and Health,ASCH,Third Party Payments,ECA,08/09/2015,06-11060,448,Avalon Nursing Home,,,,,,,,
Nottinghamshire County Council,1111/1001,Adult Social Care and Health,ASCH,Third Party Payments,ECA,08/09/2015,06-11064,448,Silverwood Care Home,,,,,,,,
Nottinghamshire County Council,1111/1001,Adult Social Care and Health,ASCH,Third Party Payments,ECA,08/09/2015,06-11067,448,Silverwood Care Home,,,,,,,,
Nottinghamshire County Council,1111/1001,Adult Social Care and Health,ASCH,Third Party Payments,ECA,08/09/2015,06-11070,448,Silverwood Care Home,,,,,,,,
Nottinghamshire County Council,1111/1001,Adult Social Care and Health,ASCH,Third Party Payments,ECA,08/09/2015,06-11073,448,Silverwood Care Home,,,,,,,,
Nottinghamshire County Council,1111/1001,Adult Social Care and Health,ASCH,Third Party Payments,ECA,08/09/2015,06-11075,448,Silverwood Care Home,,,,,,,,
Nottinghamshire County Council,1111/1001,Adult Social Care and Health,ASCH,Third Party Payments,ECA,08/09/2015,06-11078,448,Silverwood Care Home,,,,,,,,
Nottinghamshire County Council,1111/1001,Adult Social Care and Health,ASCH,Third Party Payments,ECA,08/09/2015,06-11081,448,Silverwood Care Home,,,,,,,,
Nottinghamshire County Council,1111/1001,Adult Social Care and Health,ASCH,Third Party Payments,ECA,08/09/2015,06-11084,448,Silverwood Care Home,,,,,,,,
Nottinghamshire County Council,1111/1001,Adult Social Care and Health,ASCH,Third Party Payments,ECA,08/09/2015,06-11086,448,Silverwood Care Home,,,,,,,,
Nottinghamshire County Council,1111/1001,Adult Social Care and Health,ASCH,Third Party Payments,ECA,08/09/2015,06-11088,448,Silverwood Care Home,,,,,,,,
Nottinghamshire County Council,1111/1001,Adult Social Care and Health,ASCH,Third Party Payments,ECA,08/09/2015,06-11091,448,Silverwood Care Home,,,,,,,,
Nottinghamshire County Council,1111/1001,Adult Social Care and Health,ASCH,Third Party Payments,ECA,08/09/2015,06-11094,448,Silverwood Care Home,,,,,,,,
Nottinghamshire County Council,1111/1001,Adult Social Care and Health,ASCH,Third Party Payments,ECA,08/09/2015,06-11098,448,Silverwood Care Home,,,,,,,,
Nottinghamshire County Council,1111/1001,Adult Social Care and Health,ASCH,Third Party Payments,ECA,08/09/2015,06-11101,448,Silverwood Care Home,,,,,,,,
Nottinghamshire County Council,1111/1001,Adult Social Care and Health,ASCH,Third Party Payments,ECA,08/09/2015,06-11105,448,Silverwood Care Home,,,,,,,,
Nottinghamshire County Council,1111/1001,Adult Social Care and Health,ASCH,Third Party Payments,ECA,08/09/2015,06-11113,448,Spring Water Lodge,,,,,,,,
Nottinghamshire County Council,1111/1001,Adult Social Care and Health,ASCH,Third Party Payments,ECA,08/09/2015,06-11122,448,Spring Water Lodge,,,,,,,,
Nottinghamshire County Council,1111/1001,Adult Social Care and Health,ASCH,Third Party Payments,ECA,08/09/2015,06-11155,496,Four Seasons (Evedale) Ltd Re Sycam,,,,,,,,
Nottinghamshire County Council,1111/1001,Adult Social Care and Health,ASCH,Third Party Payments,ECA,08/09/2015,06-11167,448,Howson Care Centre,,,,,,,,
Nottinghamshire County Council,1111/1001,Adult Social Care and Health,ASCH,Third Party Payments,ECA,08/09/2015,06-11169,448,Howson Care Centre,,,,,,,,
Nottinghamshire County Council,1111/1001,Adult Social Care and Health,ASCH,Third Party Payments,ECA,08/09/2015,06-11171,616.56,Howson Care Centre,,,,,,,,
Nottinghamshire County Council,1111/1001,Adult Social Care and Health,ASCH,Third Party Payments,ECA,08/09/2015,06-11174,616.56,Howson Care Centre,,,,,,,,
Nottinghamshire County Council,1111/1001,Adult Social Care and Health,ASCH,Third Party Payments,ECA,08/09/2015,06-11176,448,Howson Care Centre,,,,,,,,
Nottinghamshire County Council,1111/1001,Adult Social Care and Health,ASCH,Third Party Payments,ECA,08/09/2015,06-11178,448,Howson Care Centre,,,,,,,,
Nottinghamshire County Council,1111/1001,Adult Social Care and Health,ASCH,Third Party Payments,ECA,08/09/2015,06-11185,448,Eastlands Care Home,,,,,,,,
Nottinghamshire County Council,1111/1001,Adult Social Care and Health,ASCH,Third Party Payments,ECA,08/09/2015,06-11225,448,Stoneyford Christian Nursing Home,,,,,,,,
Nottinghamshire County Council,1111/1001,Adult Social Care and Health,ASCH,Third Party Payments,ECA,08/09/2015,06-11227,448,Stoneyford Christian Nursing Home,,,,,,,,
Nottinghamshire County Council,1111/1001,Adult Social Care and Health,ASCH,Third Party Payments,ECA,08/09/2015,06-11231,448,Stoneyford Christian Nursing Home,,,,,,,,
Nottinghamshire County Council,1111/1001,Adult Social Care and Health,ASCH,Third Party Payments,ECA,08/09/2015,06-11234,544,Stoneyford Christian Nursing Home,,,,,,,,
Nottinghamshire County Council,1111/1001,Adult Social Care and Health,ASCH,Third Party Payments,ECA,08/09/2015,06-11235,448,Stoneyford Christian Nursing Home,,,,,,,,
Nottinghamshire County Council,1111/1001,Adult Social Care and Health,ASCH,Third Party Payments,ECA,08/09/2015,06-11238,448,Stoneyford Christian Nursing Home,,,,,,,,
Nottinghamshire County Council,1111/1001,Adult Social Care and Health,ASCH,Third Party Payments,ECA,08/09/2015,06-11242,448,Stoneyford Christian Nursing Home,,,,,,,,
Nottinghamshire County Council,1111/1001,Adult Social Care and Health,ASCH,Third Party Payments,ECA,08/09/2015,06-11244,448,Stoneyford Christian Nursing Home,,,,,,,,
Nottinghamshire County Council,1111/1001,Adult Social Care and Health,ASCH,Third Party Payments,ECA,08/09/2015,06-11246,448,Stoneyford Christian Nursing Home,,,,,,,,
Nottinghamshire County Council,1111/1001,Adult Social Care and Health,ASCH,Third Party Payments,ECA,08/09/2015,06-11248,448,Stoneyford Christian Nursing Home,,,,,,,,
Nottinghamshire County Council,1111/1001,Adult Social Care and Health,ASCH,Third Party Payments,ECA,08/09/2015,06-11255,448,Stoneyford Christian Nursing Home,,,,,,,,
Nottinghamshire County Council,1111/1001,Adult Social Care and Health,ASCH,Third Party Payments,ECA,08/09/2015,06-11257,448,Stoneyford Christian Nursing Home,,,,,,,,
Nottinghamshire County Council,1111/1001,Adult Social Care and Health,ASCH,Third Party Payments,ECA,08/09/2015,06-11259,448,Stoneyford Christian Nursing Home,,,,,,,,
Nottinghamshire County Council,1111/1001,Adult Social Care and Health,ASCH,Third Party Payments,ECA,08/09/2015,06-11263,448,Stoneyford Christian Nursing Home,,,,,,,,
Nottinghamshire County Council,1111/1001,Adult Social Care and Health,ASCH,Third Party Payments,ECA,08/09/2015,06-11269,448,Beeches Nursing Home,,,,,,,,
Nottinghamshire County Council,1111/1001,Adult Social Care and Health,ASCH,Third Party Payments,ECA,08/09/2015,06-11274,448,Beeches Nursing Home,,,,,,,,
Nottinghamshire County Council,1111/1001,Adult Social Care and Health,ASCH,Third Party Payments,ECA,08/09/2015,06-11277,224,Beeches Nursing Home,,,,,,,,
Nottinghamshire County Council,1111/1001,Adult Social Care and Health,ASCH,Third Party Payments,ECA,08/09/2015,06-11282,448,Beeches Nursing Home,,,,,,,,
Nottinghamshire County Council,1111/1001,Adult Social Care and Health,ASCH,Third Party Payments,ECA,08/09/2015,06-11285,448,Beeches Nursing Home,,,,,,,,
Nottinghamshire County Council,1111/1001,Adult Social Care and Health,ASCH,Third Party Payments,ECA,08/09/2015,06-11287,672,Beeches Nursing Home,,,,,,,,
Nottinghamshire County Council,1111/1001,Adult Social Care and Health,ASCH,Third Party Payments,ECA,08/09/2015,06-11288,448,Beeches Nursing Home,,,,,,,,
Nottinghamshire County Council,1111/1001,Adult Social Care and Health,ASCH,Third Party Payments,ECA,08/09/2015,06-11292,448,Berry Hill Park,,,,,,,,
Nottinghamshire County Council,1111/1001,Adult Social Care and Health,ASCH,Third Party Payments,ECA,08/09/2015,06-11295,448,Berry Hill Park,,,,,,,,
Nottinghamshire County Council,1111/1001,Adult Social Care and Health,ASCH,Third Party Payments,ECA,08/09/2015,06-11297,448,Berry Hill Park,,,,,,,,
Nottinghamshire County Council,1111/1001,Adult Social Care and Health,ASCH,Third Party Payments,ECA,08/09/2015,06-11299,448,Berry Hill Park,,,,,,,,
Nottinghamshire County Council,1111/1001,Adult Social Care and Health,ASCH,Third Party Payments,ECA,08/09/2015,06-11301,448,Berry Hill Park,,,,,,,,
Nottinghamshire County Council,1111/1001,Adult Social Care and Health,ASCH,Third Party Payments,ECA,08/09/2015,06-11304,448,Berry Hill Park,,,,,,,,
Nottinghamshire County Council,1111/1001,Adult Social Care and Health,ASCH,Third Party Payments,ECA,08/09/2015,06-11306,448,Berry Hill Park,,,,,,,,
Nottinghamshire County Council,1111/1001,Adult Social Care and Health,ASCH,Third Party Payments,ECA,08/09/2015,06-11309,448,Berry Hill Park,,,,,,,,
Nottinghamshire County Council,1111/1001,Adult Social Care and Health,ASCH,Third Party Payments,ECA,08/09/2015,06-11312,1648,Berry Hill Park,,,,,,,,
Nottinghamshire County Council,1111/1001,Adult Social Care and Health,ASCH,Third Party Payments,ECA,08/09/2015,06-11314,448,Berry Hill Park,,,,,,,,
Nottinghamshire County Council,1111/1001,Adult Social Care and Health,ASCH,Third Party Payments,ECA,08/09/2015,06-11316,448,Berry Hill Park,,,,,,,,
Nottinghamshire County Council,1111/1001,Adult Social Care and Health,ASCH,Third Party Payments,ECA,08/09/2015,06-11318,448,Berry Hill Park,,,,,,,,
Nottinghamshire County Council,1111/1001,Adult Social Care and Health,ASCH,Third Party Payments,ECA,08/09/2015,06-11322,448,Berry Hill Park,,,,,,,,
Nottinghamshire County Council,1111/1001,Adult Social Care and Health,ASCH,Third Party Payments,ECA,08/09/2015,06-11324,448,Berry Hill Park,,,,,,,,
Nottinghamshire County Council,1111/1001,Adult Social Care and Health,ASCH,Third Party Payments,ECA,08/09/2015,06-11344,448,Countrywide Care Homes Ltd T/A Clum,,,,,,,,
Nottinghamshire County Council,1111/1001,Adult Social Care and Health,ASCH,Third Party Payments,ECA,08/09/2015,06-11346,448,Countrywide Care Homes Ltd T/A Clum,,,,,,,,
Nottinghamshire County Council,1111/1001,Adult Social Care and Health,ASCH,Third Party Payments,ECA,08/09/2015,06-11348,448,Countrywide Care Homes Ltd T/A Clum,,,,,,,,
Nottinghamshire County Council,1111/1001,Adult Social Care and Health,ASCH,Third Party Payments,ECA,08/09/2015,06-11350,448,Countrywide Care Homes Ltd T/A Clum,,,,,,,,
Nottinghamshire County Council,1111/1001,Adult Social Care and Health,ASCH,Third Party Payments,ECA,08/09/2015,06-11352,448,Countrywide Care Homes Ltd T/A Clum,,,,,,,,
Nottinghamshire County Council,1111/1001,Adult Social Care and Health,ASCH,Third Party Payments,ECA,08/09/2015,06-11354,448,Countrywide Care Homes Ltd T/A Clum,,,,,,,,
Nottinghamshire County Council,1111/1001,Adult Social Care and Health,ASCH,Third Party Payments,ECA,08/09/2015,06-11358,448,Countrywide Care Homes Ltd T/A Clum,,,,,,,,
Nottinghamshire County Council,1111/1001,Adult Social Care and Health,ASCH,Third Party Payments,ECA,08/09/2015,06-11360,448,Countrywide Care Homes Ltd T/A Clum,,,,,,,,
Nottinghamshire County Council,1111/1001,Adult Social Care and Health,ASCH,Third Party Payments,ECA,08/09/2015,06-11364,448,Countrywide Care Homes Ltd T/A Clum,,,,,,,,
Nottinghamshire County Council,1111/1001,Adult Social Care and Health,ASCH,Third Party Payments,ECA,08/09/2015,06-11366,616.56,Countrywide Care Homes Ltd T/A Clum,,,,,,,,
Nottinghamshire County Council,1111/1001,Adult Social Care and Health,ASCH,Third Party Payments,ECA,08/09/2015,06-11367,448,Countrywide Care Homes Ltd T/A Clum,,,,,,,,
Nottinghamshire County Council,1111/1001,Adult Social Care and Health,ASCH,Third Party Payments,ECA,08/09/2015,06-11369,616.56,Countrywide Care Homes Ltd T/A Clum,,,,,,,,
Nottinghamshire County Council,1111/1001,Adult Social Care and Health,ASCH,Third Party Payments,ECA,08/09/2015,06-11371,448,Countrywide Care Homes Ltd T/A Clum,,,,,,,,
Nottinghamshire County Council,1111/1001,Adult Social Care and Health,ASCH,Third Party Payments,ECA,08/09/2015,06-11373,448,Countrywide Care Homes Ltd T/A Clum,,,,,,,,
Nottinghamshire County Council,1111/1001,Adult Social Care and Health,ASCH,Third Party Payments,ECA,08/09/2015,06-11375,448,Countrywide Care Homes Ltd T/A Clum,,,,,,,,
Nottinghamshire County Council,1111/1001,Adult Social Care and Health,ASCH,Third Party Payments,ECA,08/09/2015,06-11378,448,Countrywide Care Homes Ltd T/A Clum,,,,,,,,
Nottinghamshire County Council,1111/1001,Adult Social Care and Health,ASCH,Third Party Payments,ECA,08/09/2015,06-11380,448,Countrywide Care Homes Ltd T/A Clum,,,,,,,,
Nottinghamshire County Council,1111/1001,Adult Social Care and Health,ASCH,Third Party Payments,ECA,08/09/2015,06-11387,448,Landermeads Nursing Home,,,,,,,,
Nottinghamshire County Council,1111/1001,Adult Social Care and Health,ASCH,Third Party Payments,ECA,08/09/2015,06-11389,448,Landermeads Nursing Home,,,,,,,,
Nottinghamshire County Council,1111/1001,Adult Social Care and Health,ASCH,Third Party Payments,ECA,08/09/2015,06-11392,448,Landermeads Nursing Home,,,,,,,,
Nottinghamshire County Council,1111/1001,Adult Social Care and Health,ASCH,Third Party Payments,ECA,08/09/2015,06-11394,448,Landermeads Nursing Home,,,,,,,,
Nottinghamshire County Council,1111/1001,Adult Social Care and Health,ASCH,Third Party Payments,ECA,08/09/2015,06-11396,448,Landermeads Nursing Home,,,,,,,,
Nottinghamshire County Council,1111/1001,Adult Social Care and Health,ASCH,Third Party Payments,ECA,08/09/2015,06-11398,448,Landermeads Nursing Home,,,,,,,,
Nottinghamshire County Council,1111/1001,Adult Social Care and Health,ASCH,Third Party Payments,ECA,08/09/2015,06-11400,448,Landermeads Nursing Home,,,,,,,,
Nottinghamshire County Council,1111/1001,Adult Social Care and Health,ASCH,Third Party Payments,ECA,08/09/2015,06-11402,448,Landermeads Nursing Home,,,,,,,,
Nottinghamshire County Council,1111/1001,Adult Social Care and Health,ASCH,Third Party Payments,ECA,08/09/2015,06-11405,448,Landermeads Nursing Home,,,,,,,,
Nottinghamshire County Council,1111/1001,Adult Social Care and Health,ASCH,Third Party Payments,ECA,08/09/2015,06-11407,616.56,Landermeads Nursing Home,,,,,,,,
Nottinghamshire County Council,1111/1001,Adult Social Care and Health,ASCH,Third Party Payments,ECA,08/09/2015,06-11409,616.56,Landermeads Nursing Home,,,,,,,,
Nottinghamshire County Council,1111/1001,Adult Social Care and Health,ASCH,Third Party Payments,ECA,08/09/2015,06-11412,1664,Landermeads Nursing Home,,,,,,,,
Nottinghamshire County Council,1111/1001,Adult Social Care and Health,ASCH,Third Party Payments,ECA,08/09/2015,06-11414,448,Landermeads Nursing Home,,,,,,,,
Nottinghamshire County Council,1111/1001,Adult Social Care and Health,ASCH,Third Party Payments,ECA,08/09/2015,06-11416,448,Landermeads Nursing Home,,,,,,,,
Nottinghamshire County Council,1111/1001,Adult Social Care and Health,ASCH,Third Party Payments,ECA,08/09/2015,06-11418,448,Landermeads Nursing Home,,,,,,,,
Nottinghamshire County Council,1111/1001,Adult Social Care and Health,ASCH,Third Party Payments,ECA,08/09/2015,06-11420,448,Landermeads Nursing Home,,,,,,,,
Nottinghamshire County Council,1111/1001,Adult Social Care and Health,ASCH,Third Party Payments,ECA,08/09/2015,06-11422,448,Landermeads Nursing Home,,,,,,,,
Nottinghamshire County Council,1111/1001,Adult Social Care and Health,ASCH,Third Party Payments,ECA,08/09/2015,06-11424,448,Landermeads Nursing Home,,,,,,,,
Nottinghamshire County Council,1111/1001,Adult Social Care and Health,ASCH,Third Party Payments,ECA,08/09/2015,06-11426,448,Landermeads Nursing Home,,,,,,,,
Nottinghamshire County Council,1111/1001,Adult Social Care and Health,ASCH,Third Party Payments,ECA,08/09/2015,06-11430,448,Landermeads Nursing Home,,,,,,,,
Nottinghamshire County Council,1111/1001,Adult Social Care and Health,ASCH,Third Party Payments,ECA,08/09/2015,06-11433,448,Landermeads Nursing Home,,,,,,,,
Nottinghamshire County Council,1111/1001,Adult Social Care and Health,ASCH,Third Party Payments,ECA,08/09/2015,06-11435,448,Landermeads Nursing Home,,,,,,,,
Nottinghamshire County Council,1111/1001,Adult Social Care and Health,ASCH,Third Party Payments,ECA,08/09/2015,06-11438,448,Landermeads Nursing Home,,,,,,,,
Nottinghamshire County Council,1111/1001,Adult Social Care and Health,ASCH,Third Party Payments,ECA,08/09/2015,06-11440,448,Landermeads Nursing Home,,,,,,,,
Nottinghamshire County Council,1111/1001,Adult Social Care and Health,ASCH,Third Party Payments,ECA,08/09/2015,06-11442,448,Landermeads Nursing Home,,,,,,,,
Nottinghamshire County Council,1111/1001,Adult Social Care and Health,ASCH,Third Party Payments,ECA,08/09/2015,06-11499,448,Alexandra House Nursing Home,,,,,,,,
Nottinghamshire County Council,1111/1001,Adult Social Care and Health,ASCH,Third Party Payments,ECA,08/09/2015,06-11503,448,Alexandra House Nursing Home,,,,,,,,
Nottinghamshire County Council,1111/1001,Adult Social Care and Health,ASCH,Third Party Payments,ECA,08/09/2015,06-11507,448,Alexandra House Nursing Home,,,,,,,,
Nottinghamshire County Council,1111/1001,Adult Social Care and Health,ASCH,Third Party Payments,ECA,08/09/2015,06-11509,448,Alexandra House Nursing Home,,,,,,,,
Nottinghamshire County Council,1111/1001,Adult Social Care and Health,ASCH,Third Party Payments,ECA,08/09/2015,06-11513,448,Alexandra House Nursing Home,,,,,,,,
Nottinghamshire County Council,1111/1001,Adult Social Care and Health,ASCH,Third Party Payments,ECA,08/09/2015,06-11515,448,Alexandra House Nursing Home,,,,,,,,
Nottinghamshire County Council,1111/1001,Adult Social Care and Health,ASCH,Third Party Payments,ECA,08/09/2015,06-11529,448,Bluebell Lodge,,,,,,,,
Nottinghamshire County Council,1111/1001,Adult Social Care and Health,ASCH,Third Party Payments,ECA,08/09/2015,06-11563,448,Ashley House Nursing Home,,,,,,,,
Nottinghamshire County Council,1111/1001,Adult Social Care and Health,ASCH,Third Party Payments,ECA,08/09/2015,06-11565,13179.19,Ashley House Nursing Home,,,,,,,,
Nottinghamshire County Council,1111/1001,Adult Social Care and Health,ASCH,Third Party Payments,ECA,08/09/2015,06-11567,448,Ashley House Nursing Home,,,,,,,,
Nottinghamshire County Council,1111/1001,Adult Social Care and Health,ASCH,Third Party Payments,ECA,08/09/2015,06-11569,448,Ashley House Nursing Home,,,,,,,,
Nottinghamshire County Council,1111/1001,Adult Social Care and Health,ASCH,Third Party Payments,ECA,08/09/2015,06-11571,448,Ashley House Nursing Home,,,,,,,,
Nottinghamshire County Council,1111/1001,Adult Social Care and Health,ASCH,Third Party Payments,ECA,08/09/2015,06-11573,880,Ashley House Nursing Home,,,,,,,,
Nottinghamshire County Council,1111/1001,Adult Social Care and Health,ASCH,Third Party Payments,ECA,08/09/2015,06-11575,616.56,Ashley House Nursing Home,,,,,,,,
Nottinghamshire County Council,1111/1001,Adult Social Care and Health,ASCH,Third Party Payments,ECA,08/09/2015,06-11578,448,Ashley House Nursing Home,,,,,,,,
Nottinghamshire County Council,1111/1001,Adult Social Care and Health,ASCH,Third Party Payments,ECA,08/09/2015,06-11580,448,Ashley House Nursing Home,,,,,,,,
Nottinghamshire County Council,1111/1001,Adult Social Care and Health,ASCH,Third Party Payments,ECA,08/09/2015,06-11582,448,Ashley House Nursing Home,,,,,,,,
Nottinghamshire County Council,1111/1001,Adult Social Care and Health,ASCH,Third Party Payments,ECA,08/09/2015,06-11584,448,Ashley House Nursing Home,,,,,,,,
Nottinghamshire County Council,1111/1001,Adult Social Care and Health,ASCH,Third Party Payments,ECA,08/09/2015,06-11586,448,Ashley House Nursing Home,,,,,,,,
Nottinghamshire County Council,1111/1001,Adult Social Care and Health,ASCH,Third Party Payments,ECA,08/09/2015,06-11588,448,Ashley House Nursing Home,,,,,,,,
Nottinghamshire County Council,1111/1001,Adult Social Care and Health,ASCH,Third Party Payments,ECA,08/09/2015,06-11591,448,Ashley House Nursing Home,,,,,,,,
Nottinghamshire County Council,1111/1001,Adult Social Care and Health,ASCH,Third Party Payments,ECA,08/09/2015,06-11593,448,Ashley House Nursing Home,,,,,,,,
Nottinghamshire County Council,1111/1001,Adult Social Care and Health,ASCH,Third Party Payments,ECA,08/09/2015,06-11595,616.56,Ashley House Nursing Home,,,,,,,,
Nottinghamshire County Council,1111/1001,Adult Social Care and Health,ASCH,Third Party Payments,ECA,08/09/2015,06-11596,616.56,Ashley House Nursing Home,,,,,,,,
Nottinghamshire County Council,1111/1001,Adult Social Care and Health,ASCH,Third Party Payments,ECA,08/09/2015,06-11597,448,Ashley House Nursing Home,,,,,,,,
Nottinghamshire County Council,1111/1001,Adult Social Care and Health,ASCH,Third Party Payments,ECA,08/09/2015,06-11599,448,Ashley House Nursing Home,,,,,,,,
Nottinghamshire County Council,1111/1001,Adult Social Care and Health,ASCH,Third Party Payments,ECA,08/09/2015,06-11602,448,Ashley House Nursing Home,,,,,,,,
Nottinghamshire County Council,1111/1001,Adult Social Care and Health,ASCH,Third Party Payments,ECA,08/09/2015,06-11606,448,Ashley House Nursing Home,,,,,,,,
Nottinghamshire County Council,1111/1001,Adult Social Care and Health,ASCH,Third Party Payments,ECA,08/09/2015,06-11610,448,Ashley House Nursing Home,,,,,,,,
Nottinghamshire County Council,1111/1001,Adult Social Care and Health,ASCH,Third Party Payments,ECA,08/09/2015,06-11612,616.56,Ashley House Nursing Home,,,,,,,,
Nottinghamshire County Council,1111/1001,Adult Social Care and Health,ASCH,Third Party Payments,ECA,08/09/2015,06-11613,448,Ashley House Nursing Home,,,,,,,,
Nottinghamshire County Council,1111/1001,Adult Social Care and Health,ASCH,Third Party Payments,ECA,08/09/2015,06-11615,448,Ashley House Nursing Home,,,,,,,,
Nottinghamshire County Council,1111/1001,Adult Social Care and Health,ASCH,Third Party Payments,ECA,08/09/2015,06-11617,448,Ashley House Nursing Home,,,,,,,,
Nottinghamshire County Council,1111/1001,Adult Social Care and Health,ASCH,Third Party Payments,ECA,08/09/2015,06-11620,448,Aslockton Hall Nursing Home,,,,,,,,
Nottinghamshire County Council,1111/1001,Adult Social Care and Health,ASCH,Third Party Payments,ECA,08/09/2015,06-11623,448,Aslockton Hall Nursing Home,,,,,,,,
Nottinghamshire County Council,1111/1001,Adult Social Care and Health,ASCH,Third Party Payments,ECA,08/09/2015,06-11625,448,Aslockton Hall Nursing Home,,,,,,,,
Nottinghamshire County Council,1111/1001,Adult Social Care and Health,ASCH,Third Party Payments,ECA,08/09/2015,06-11627,928,Aslockton Hall Nursing Home,,,,,,,,
Nottinghamshire County Council,1111/1001,Adult Social Care and Health,ASCH,Third Party Payments,ECA,08/09/2015,06-11628,448,Aslockton Hall Nursing Home,,,,,,,,
Nottinghamshire County Council,1111/1001,Adult Social Care and Health,ASCH,Third Party Payments,ECA,08/09/2015,06-11630,448,Aslockton Hall Nursing Home,,,,,,,,
Nottinghamshire County Council,1111/1001,Adult Social Care and Health,ASCH,Third Party Payments,ECA,08/09/2015,06-11652,896,Pinxton Manor,,,,,,,,
Nottinghamshire County Council,1111/1001,Adult Social Care and Health,ASCH,Third Party Payments,ECA,08/09/2015,06-11654,896,Pinxton Manor,,,,,,,,
Nottinghamshire County Council,1111/1001,Adult Social Care and Health,ASCH,Third Party Payments,ECA,08/09/2015,06-11656,448,Rodenvine Nottm Ltd T/A Parker Hous,,,,,,,,
Nottinghamshire County Council,1111/1001,Adult Social Care and Health,ASCH,Third Party Payments,ECA,08/09/2015,06-11658,448,Rodenvine Nottm Ltd T/A Parker Hous,,,,,,,,
Nottinghamshire County Council,1111/1001,Adult Social Care and Health,ASCH,Third Party Payments,ECA,08/09/2015,06-11660,448,Rodenvine Nottm Ltd T/A Parker Hous,,,,,,,,
Nottinghamshire County Council,1111/1001,Adult Social Care and Health,ASCH,Third Party Payments,ECA,08/09/2015,06-11662,448,Rodenvine Nottm Ltd T/A Parker Hous,,,,,,,,
Nottinghamshire County Council,1111/1001,Adult Social Care and Health,ASCH,Third Party Payments,ECA,08/09/2015,06-11664,816,Rodenvine Nottm Ltd T/A Parker Hous,,,,,,,,
Nottinghamshire County Council,1111/1001,Adult Social Care and Health,ASCH,Third Party Payments,ECA,08/09/2015,06-11666,448,Rodenvine Nottm Ltd T/A Parker Hous,,,,,,,,
Nottinghamshire County Council,1111/1001,Adult Social Care and Health,ASCH,Third Party Payments,ECA,08/09/2015,06-11668,448,Rodenvine Nottm Ltd T/A Parker Hous,,,,,,,,
Nottinghamshire County Council,1111/1001,Adult Social Care and Health,ASCH,Third Party Payments,ECA,08/09/2015,06-11670,448,Rodenvine Nottm Ltd T/A Parker Hous,,,,,,,,
Nottinghamshire County Council,1111/1001,Adult Social Care and Health,ASCH,Third Party Payments,ECA,08/09/2015,06-11672,448,Rodenvine Nottm Ltd T/A Parker Hous,,,,,,,,
Nottinghamshire County Council,1111/1001,Adult Social Care and Health,ASCH,Third Party Payments,ECA,08/09/2015,06-11674,448,Gables Nursing Home,,,,,,,,
Nottinghamshire County Council,1111/1001,Adult Social Care and Health,ASCH,Third Party Payments,ECA,08/09/2015,06-11677,448,Gables Nursing Home,,,,,,,,
Nottinghamshire County Council,1111/1001,Adult Social Care and Health,ASCH,Third Party Payments,ECA,08/09/2015,06-11679,448,Gables Nursing Home,,,,,,,,
Nottinghamshire County Council,1111/1001,Adult Social Care and Health,ASCH,Third Party Payments,ECA,08/09/2015,06-11681,448,Gables Nursing Home,,,,,,,,
Nottinghamshire County Council,1111/1001,Adult Social Care and Health,ASCH,Third Party Payments,ECA,08/09/2015,06-11683,448,Gables Nursing Home,,,,,,,,
Nottinghamshire County Council,1111/1001,Adult Social Care and Health,ASCH,Third Party Payments,ECA,08/09/2015,06-11685,448,Gables Nursing Home,,,,,,,,
Nottinghamshire County Council,1111/1001,Adult Social Care and Health,ASCH,Third Party Payments,ECA,08/09/2015,06-11687,448,Gables Nursing Home,,,,,,,,
Nottinghamshire County Council,1111/1001,Adult Social Care and Health,ASCH,Third Party Payments,ECA,08/09/2015,06-11689,448,Gables Nursing Home,,,,,,,,
Nottinghamshire County Council,1111/1001,Adult Social Care and Health,ASCH,Third Party Payments,ECA,08/09/2015,06-11708,448,The Firs Nursing Home,,,,,,,,
Nottinghamshire County Council,1111/1001,Adult Social Care and Health,ASCH,Third Party Payments,ECA,08/09/2015,06-11717,448,Woodhall Park Nursing Home,,,,,,,,
Nottinghamshire County Council,1111/1001,Adult Social Care and Health,ASCH,Third Party Payments,ECA,08/09/2015,06-11719,448,Woodthorpe Manor Nursing Home,,,,,,,,
Nottinghamshire County Council,1111/1001,Adult Social Care and Health,ASCH,Third Party Payments,ECA,08/09/2015,06-11721,448,Woodthorpe Manor Nursing Home,,,,,,,,
Nottinghamshire County Council,1111/1001,Adult Social Care and Health,ASCH,Third Party Payments,ECA,08/09/2015,06-11723,448,Woodthorpe Manor Nursing Home,,,,,,,,
Nottinghamshire County Council,1111/1001,Adult Social Care and Health,ASCH,Third Party Payments,ECA,08/09/2015,06-11725,224,Woodthorpe Manor Nursing Home,,,,,,,,
Nottinghamshire County Council,1111/1001,Adult Social Care and Health,ASCH,Third Party Payments,ECA,08/09/2015,06-11727,448,Woodthorpe Manor Nursing Home,,,,,,,,
Nottinghamshire County Council,1111/1001,Adult Social Care and Health,ASCH,Third Party Payments,ECA,08/09/2015,06-11740,1344,The Moorlands Nursing Home,,,,,,,,
Nottinghamshire County Council,1111/1001,Adult Social Care and Health,ASCH,Third Party Payments,ECA,08/09/2015,06-11741,448,The Moorlands Nursing Home,,,,,,,,
Nottinghamshire County Council,1111/1001,Adult Social Care and Health,ASCH,Third Party Payments,ECA,08/09/2015,06-11743,448,The Moorlands Nursing Home,,,,,,,,
Nottinghamshire County Council,1111/1001,Adult Social Care and Health,ASCH,Third Party Payments,ECA,08/09/2015,06-11749,720,The Moorlands Nursing Home,,,,,,,,
Nottinghamshire County Council,1111/1001,Adult Social Care and Health,ASCH,Third Party Payments,ECA,08/09/2015,06-11751,448,The Moorlands Nursing Home,,,,,,,,
Nottinghamshire County Council,1111/1001,Adult Social Care and Health,ASCH,Third Party Payments,ECA,08/09/2015,06-11753,448,The Moorlands Nursing Home,,,,,,,,
Nottinghamshire County Council,1111/1001,Adult Social Care and Health,ASCH,Third Party Payments,ECA,08/09/2015,06-11772,448,Church Farm Nursing Home Ltd,,,,,,,,
Nottinghamshire County Council,1111/1001,Adult Social Care and Health,ASCH,Third Party Payments,ECA,08/09/2015,06-11774,448,Church Farm Nursing Home Ltd,,,,,,,,
Nottinghamshire County Council,1111/1001,Adult Social Care and Health,ASCH,Third Party Payments,ECA,08/09/2015,06-11776,448,Church Farm Nursing Home Ltd,,,,,,,,
Nottinghamshire County Council,1111/1001,Adult Social Care and Health,ASCH,Third Party Payments,ECA,08/09/2015,06-11778,616.56,Church Farm Nursing Home Ltd,,,,,,,,
Nottinghamshire County Council,1111/1001,Adult Social Care and Health,ASCH,Third Party Payments,ECA,08/09/2015,06-11779,448,Church Farm Nursing Home Ltd,,,,,,,,
Nottinghamshire County Council,1111/1001,Adult Social Care and Health,ASCH,Third Party Payments,ECA,08/09/2015,06-11781,448,Church Farm Nursing Home Ltd,,,,,,,,
Nottinghamshire County Council,1111/1001,Adult Social Care and Health,ASCH,Third Party Payments,ECA,08/09/2015,06-11783,448,Church Farm Nursing Home Ltd,,,,,,,,
Nottinghamshire County Council,1111/1001,Adult Social Care and Health,ASCH,Third Party Payments,ECA,08/09/2015,06-11785,448,Church Farm Nursing Home Ltd,,,,,,,,
Nottinghamshire County Council,1111/1001,Adult Social Care and Health,ASCH,Third Party Payments,ECA,08/09/2015,06-11790,448,Countrywide Care Homes Ltd T/A Gate,,,,,,,,
Nottinghamshire County Council,1111/1001,Adult Social Care and Health,ASCH,Third Party Payments,ECA,08/09/2015,06-11793,448,Countrywide Care Homes Ltd T/A Gate,,,,,,,,
Nottinghamshire County Council,1111/1001,Adult Social Care and Health,ASCH,Third Party Payments,ECA,08/09/2015,06-11795,616.56,Countrywide Care Homes Ltd T/A Gate,,,,,,,,
Nottinghamshire County Council,1111/1001,Adult Social Care and Health,ASCH,Third Party Payments,ECA,08/09/2015,06-11797,448,Countrywide Care Homes Ltd T/A Gate,,,,,,,,
Nottinghamshire County Council,1111/1001,Adult Social Care and Health,ASCH,Third Party Payments,ECA,08/09/2015,06-11799,448,Countrywide Care Homes Ltd T/A Gate,,,,,,,,
Nottinghamshire County Council,1111/1001,Adult Social Care and Health,ASCH,Third Party Payments,ECA,08/09/2015,06-11801,448,Countrywide Care Homes Ltd T/A Gate,,,,,,,,
Nottinghamshire County Council,1111/1001,Adult Social Care and Health,ASCH,Third Party Payments,ECA,08/09/2015,06-11803,448,Countrywide Care Homes Ltd T/A Gate,,,,,,,,
Nottinghamshire County Council,1111/1001,Adult Social Care and Health,ASCH,Third Party Payments,ECA,08/09/2015,06-11806,448,Countrywide Care Homes Ltd T/A Gate,,,,,,,,
Nottinghamshire County Council,1111/1001,Adult Social Care and Health,ASCH,Third Party Payments,ECA,08/09/2015,06-11811,448,Countrywide Care Homes Ltd T/A Gate,,,,,,,,
Nottinghamshire County Council,1111/1001,Adult Social Care and Health,ASCH,Third Party Payments,ECA,08/09/2015,06-11813,448,Countrywide Care Homes Ltd T/A Gate,,,,,,,,
Nottinghamshire County Council,1111/1001,Adult Social Care and Health,ASCH,Third Party Payments,ECA,08/09/2015,06-11817,448,Countrywide Care Homes Ltd T/A Gate,,,,,,,,
Nottinghamshire County Council,1111/1001,Adult Social Care and Health,ASCH,Third Party Payments,ECA,08/09/2015,06-11823,448,Countrywide Care Homes Ltd T/A Gate,,,,,,,,
Nottinghamshire County Council,1111/1001,Adult Social Care and Health,ASCH,Third Party Payments,ECA,08/09/2015,06-11825,448,Countrywide Care Homes Ltd T/A Gate,,,,,,,,
Nottinghamshire County Council,1111/1001,Adult Social Care and Health,ASCH,Third Party Payments,ECA,08/09/2015,06-11827,448,Countrywide Care Homes Ltd T/A Gate,,,,,,,,
Nottinghamshire County Council,1111/1001,Adult Social Care and Health,ASCH,Third Party Payments,ECA,08/09/2015,06-11841,448,Red Rose Nursing Home,,,,,,,,
Nottinghamshire County Council,1111/1001,Adult Social Care and Health,ASCH,Third Party Payments,ECA,08/09/2015,06-11843,448,Red Rose Nursing Home,,,,,,,,
Nottinghamshire County Council,1111/1001,Adult Social Care and Health,ASCH,Third Party Payments,ECA,08/09/2015,06-11847,448,Red Rose Nursing Home,,,,,,,,
Nottinghamshire County Council,1111/1001,Adult Social Care and Health,ASCH,Third Party Payments,ECA,08/09/2015,06-11849,448,Red Rose Nursing Home,,,,,,,,
Nottinghamshire County Council,1111/1001,Adult Social Care and Health,ASCH,Third Party Payments,ECA,08/09/2015,06-11852,448,Red Rose Nursing Home,,,,,,,,
Nottinghamshire County Council,1111/1001,Adult Social Care and Health,ASCH,Third Party Payments,ECA,08/09/2015,06-11855,448,Red Rose Nursing Home,,,,,,,,
Nottinghamshire County Council,1111/1001,Adult Social Care and Health,ASCH,Third Party Payments,ECA,08/09/2015,06-11859,448,Red Rose Nursing Home,,,,,,,,
Nottinghamshire County Council,1111/1001,Adult Social Care and Health,ASCH,Third Party Payments,ECA,08/09/2015,06-11861,448,Red Rose Nursing Home,,,,,,,,
Nottinghamshire County Council,1111/1001,Adult Social Care and Health,ASCH,Third Party Payments,ECA,08/09/2015,06-11863,448,Red Rose Nursing Home,,,,,,,,
Nottinghamshire County Council,1111/1001,Adult Social Care and Health,ASCH,Third Party Payments,ECA,08/09/2015,06-11884,448,Wren Hall Nursing Home,,,,,,,,
Nottinghamshire County Council,1111/1001,Adult Social Care and Health,ASCH,Third Party Payments,ECA,08/09/2015,06-11886,448,Wren Hall Nursing Home,,,,,,,,
Nottinghamshire County Council,1111/1001,Adult Social Care and Health,ASCH,Third Party Payments,ECA,08/09/2015,06-11888,448,Wren Hall Nursing Home,,,,,,,,
Nottinghamshire County Council,1111/1001,Adult Social Care and Health,ASCH,Third Party Payments,ECA,08/09/2015,06-11890,336,Wren Hall Nursing Home,,,,,,,,
Nottinghamshire County Council,1111/1001,Adult Social Care and Health,ASCH,Third Party Payments,ECA,08/09/2015,06-11892,448,Wren Hall Nursing Home,,,,,,,,
Nottinghamshire County Council,1111/1001,Adult Social Care and Health,ASCH,Third Party Payments,ECA,08/09/2015,06-11894,448,Wren Hall Nursing Home,,,,,,,,
Nottinghamshire County Council,1111/1001,Adult Social Care and Health,ASCH,Third Party Payments,ECA,08/09/2015,06-11896,2016,Wren Hall Nursing Home,,,,,,,,
Nottinghamshire County Council,1111/1001,Adult Social Care and Health,ASCH,Third Party Payments,ECA,08/09/2015,06-11898,448,Wren Hall Nursing Home,,,,,,,,
Nottinghamshire County Council,1111/1001,Adult Social Care and Health,ASCH,Third Party Payments,ECA,08/09/2015,06-11900,448,Wren Hall Nursing Home,,,,,,,,
Nottinghamshire County Council,1111/1001,Adult Social Care and Health,ASCH,Third Party Payments,ECA,08/09/2015,06-11902,448,Wren Hall Nursing Home,,,,,,,,
Nottinghamshire County Council,1111/1001,Adult Social Care and Health,ASCH,Third Party Payments,ECA,08/09/2015,06-11904,448,Wren Hall Nursing Home,,,,,,,,
Nottinghamshire County Council,1111/1001,Adult Social Care and Health,ASCH,Third Party Payments,ECA,08/09/2015,06-11906,448,Wren Hall Nursing Home,,,,,,,,
Nottinghamshire County Council,1111/1001,Adult Social Care and Health,ASCH,Third Party Payments,ECA,08/09/2015,06-11908,448,Wren Hall Nursing Home,,,,,,,,
Nottinghamshire County Council,1111/1001,Adult Social Care and Health,ASCH,Third Party Payments,ECA,08/09/2015,06-11911,448,Wren Hall Nursing Home,,,,,,,,
Nottinghamshire County Council,1111/1001,Adult Social Care and Health,ASCH,Third Party Payments,ECA,08/09/2015,06-11944,448,The Grange Nursing Home,,,,,,,,
Nottinghamshire County Council,1111/1001,Adult Social Care and Health,ASCH,Third Party Payments,ECA,08/09/2015,06-12003,448,Hawthorne Nursing Home,,,,,,,,
Nottinghamshire County Council,1111/1001,Adult Social Care and Health,ASCH,Third Party Payments,ECA,08/09/2015,06-12005,448,Hawthorne Nursing Home,,,,,,,,
Nottinghamshire County Council,1111/1001,Adult Social Care and Health,ASCH,Third Party Payments,ECA,08/09/2015,06-12007,448,Hawthorne Nursing Home,,,,,,,,
Nottinghamshire County Council,1111/1001,Adult Social Care and Health,ASCH,Third Party Payments,ECA,08/09/2015,06-12009,616.56,Hawthorne Nursing Home,,,,,,,,
Nottinghamshire County Council,1111/1001,Adult Social Care and Health,ASCH,Third Party Payments,ECA,08/09/2015,06-12011,448,Hawthorne Nursing Home,,,,,,,,
Nottinghamshire County Council,1111/1001,Adult Social Care and Health,ASCH,Third Party Payments,ECA,08/09/2015,06-12013,448,Hawthorne Nursing Home,,,,,,,,
Nottinghamshire County Council,1111/1001,Adult Social Care and Health,ASCH,Third Party Payments,ECA,08/09/2015,06-12015,448,Hawthorne Nursing Home,,,,,,,,
Nottinghamshire County Council,1111/1001,Adult Social Care and Health,ASCH,Third Party Payments,ECA,08/09/2015,06-12017,448,Hawthorne Nursing Home,,,,,,,,
Nottinghamshire County Council,1111/1001,Adult Social Care and Health,ASCH,Third Party Payments,ECA,08/09/2015,06-12020,448,Hawthorne Nursing Home,,,,,,,,
Nottinghamshire County Council,1111/1001,Adult Social Care and Health,ASCH,Third Party Payments,ECA,08/09/2015,06-12022,448,Hawthorne Nursing Home,,,,,,,,
Nottinghamshire County Council,1111/1001,Adult Social Care and Health,ASCH,Third Party Payments,ECA,08/09/2015,06-12029,3656.23,Hazel Grove Nursing Home,,,,,,,,
Nottinghamshire County Council,1111/1001,Adult Social Care and Health,ASCH,Third Party Payments,ECA,08/09/2015,06-12030,448,Hazel Grove Nursing Home,,,,,,,,
Nottinghamshire County Council,1111/1001,Adult Social Care and Health,ASCH,Third Party Payments,ECA,08/09/2015,06-12033,448,Hazel Grove Nursing Home,,,,,,,,
Nottinghamshire County Council,1111/1001,Adult Social Care and Health,ASCH,Third Party Payments,ECA,08/09/2015,06-12036,616.56,Hazel Grove Nursing Home,,,,,,,,
Nottinghamshire County Council,1111/1001,Adult Social Care and Health,ASCH,Third Party Payments,ECA,08/09/2015,06-12039,448,Hazel Grove Nursing Home,,,,,,,,
Nottinghamshire County Council,1111/1001,Adult Social Care and Health,ASCH,Third Party Payments,ECA,08/09/2015,06-12041,448,Hazel Grove Nursing Home,,,,,,,,
Nottinghamshire County Council,1111/1001,Adult Social Care and Health,ASCH,Third Party Payments,ECA,08/09/2015,06-12044,448,Hazel Grove Nursing Home,,,,,,,,
Nottinghamshire County Council,1111/1001,Adult Social Care and Health,ASCH,Third Party Payments,ECA,08/09/2015,06-12047,448,Hazel Grove Nursing Home,,,,,,,,
Nottinghamshire County Council,1111/1001,Adult Social Care and Health,ASCH,Third Party Payments,ECA,08/09/2015,06-12049,448,Hazel Grove Nursing Home,,,,,,,,
Nottinghamshire County Council,1111/1001,Adult Social Care and Health,ASCH,Third Party Payments,ECA,08/09/2015,06-12060,475.72,Newton House Nursing Home,,,,,,,,
Nottinghamshire County Council,1111/1001,Adult Social Care and Health,ASCH,Third Party Payments,ECA,08/09/2015,06-12083,616.56,Four Seasons Homes (Ilkeston) Limit,,,,,,,,
Nottinghamshire County Council,1111/1001,Adult Social Care and Health,ASCH,Third Party Payments,ECA,08/09/2015,06-12085,448,Four Seasons Homes (Ilkeston) Limit,,,,,,,,
Nottinghamshire County Council,1111/1001,Adult Social Care and Health,ASCH,Third Party Payments,ECA,08/09/2015,06-12090,448,Four Seasons Homes (Ilkeston) Limit,,,,,,,,
Nottinghamshire County Council,1111/1001,Adult Social Care and Health,ASCH,Third Party Payments,ECA,08/09/2015,06-12092,16,Four Seasons Homes (Ilkeston) Limit,,,,,,,,
Nottinghamshire County Council,1111/1001,Adult Social Care and Health,ASCH,Third Party Payments,ECA,08/09/2015,06-12174,448,Adbolton Hall Nursing Home,,,,,,,,
Nottinghamshire County Council,1111/1001,Adult Social Care and Health,ASCH,Third Party Payments,ECA,08/09/2015,06-12177,448,Adbolton Hall Nursing Home,,,,,,,,
Nottinghamshire County Council,1111/1001,Adult Social Care and Health,ASCH,Third Party Payments,ECA,08/09/2015,06-12180,448,Adbolton Hall Nursing Home,,,,,,,,
Nottinghamshire County Council,1111/1001,Adult Social Care and Health,ASCH,Third Party Payments,ECA,08/09/2015,06-12182,448,Adbolton Hall Nursing Home,,,,,,,,
Nottinghamshire County Council,1111/1001,Adult Social Care and Health,ASCH,Third Party Payments,ECA,08/09/2015,06-12184,448,Adbolton Hall Nursing Home,,,,,,,,
Nottinghamshire County Council,1111/1001,Adult Social Care and Health,ASCH,Third Party Payments,ECA,08/09/2015,06-12186,448,Adbolton Hall Nursing Home,,,,,,,,
Nottinghamshire County Council,1111/1001,Adult Social Care and Health,ASCH,Third Party Payments,ECA,08/09/2015,06-12189,448,Adbolton Hall Nursing Home,,,,,,,,
Nottinghamshire County Council,1111/1001,Adult Social Care and Health,ASCH,Third Party Payments,ECA,08/09/2015,06-12191,448,Adbolton Hall Nursing Home,,,,,,,,
Nottinghamshire County Council,1111/1001,Adult Social Care and Health,ASCH,Third Party Payments,ECA,08/09/2015,06-12193,448,Adbolton Hall Nursing Home,,,,,,,,
Nottinghamshire County Council,1111/1001,Adult Social Care and Health,ASCH,Third Party Payments,ECA,08/09/2015,06-12195,448,Adbolton Hall Nursing Home,,,,,,,,
Nottinghamshire County Council,1111/1001,Adult Social Care and Health,ASCH,Third Party Payments,ECA,08/09/2015,06-12197,448,Adbolton Hall Nursing Home,,,,,,,,
Nottinghamshire County Council,1111/1001,Adult Social Care and Health,ASCH,Third Party Payments,ECA,08/09/2015,06-12199,624,Adbolton Hall Nursing Home,,,,,,,,
Nottinghamshire County Council,1111/1001,Adult Social Care and Health,ASCH,Third Party Payments,ECA,08/09/2015,06-12201,1312,Adbolton Hall Nursing Home,,,,,,,,
Nottinghamshire County Council,1111/1001,Adult Social Care and Health,ASCH,Third Party Payments,ECA,08/09/2015,06-12203,448,Adbolton Hall Nursing Home,,,,,,,,
Nottinghamshire County Council,1111/1001,Adult Social Care and Health,ASCH,Third Party Payments,ECA,08/09/2015,06-12258,448,Elmbank Nursing Home,,,,,,,,
Nottinghamshire County Council,1111/1001,Adult Social Care and Health,ASCH,Third Party Payments,ECA,08/09/2015,06-12260,2560,Elmbank Nursing Home,,,,,,,,
Nottinghamshire County Council,1111/1001,Adult Social Care and Health,ASCH,Third Party Payments,ECA,08/09/2015,06-12310,448,Mansfield Manor Care Home,,,,,,,,
Nottinghamshire County Council,1111/1001,Adult Social Care and Health,ASCH,Third Party Payments,ECA,08/09/2015,06-12312,448,Mansfield Manor Care Home,,,,,,,,
Nottinghamshire County Council,1111/1001,Adult Social Care and Health,ASCH,Third Party Payments,ECA,08/09/2015,06-12314,448,Mansfield Manor Care Home,,,,,,,,
Nottinghamshire County Council,1111/1001,Adult Social Care and Health,ASCH,Third Party Payments,ECA,08/09/2015,06-12316,448,Mansfield Manor Care Home,,,,,,,,
Nottinghamshire County Council,1111/1001,Adult Social Care and Health,ASCH,Third Party Payments,ECA,08/09/2015,06-12318,448,Mansfield Manor Care Home,,,,,,,,
Nottinghamshire County Council,1111/1001,Adult Social Care and Health,ASCH,Third Party Payments,ECA,08/09/2015,06-12322,448,Mansfield Manor Care Home,,,,,,,,
Nottinghamshire County Council,1111/1001,Adult Social Care and Health,ASCH,Third Party Payments,ECA,08/09/2015,06-12326,448,Mansfield Manor Care Home,,,,,,,,
Nottinghamshire County Council,1111/1001,Adult Social Care and Health,ASCH,Third Party Payments,ECA,08/09/2015,06-12328,448,Mansfield Manor Care Home,,,,,,,,
Nottinghamshire County Council,1111/1001,Adult Social Care and Health,ASCH,Third Party Payments,ECA,08/09/2015,06-12330,448,Mansfield Manor Care Home,,,,,,,,
Nottinghamshire County Council,1111/1001,Adult Social Care and Health,ASCH,Third Party Payments,ECA,08/09/2015,06-12332,448,Mansfield Manor Care Home,,,,,,,,
Nottinghamshire County Council,1111/1001,Adult Social Care and Health,ASCH,Third Party Payments,ECA,08/09/2015,06-12334,448,Mansfield Manor Care Home,,,,,,,,
Nottinghamshire County Council,1111/1001,Adult Social Care and Health,ASCH,Third Party Payments,ECA,08/09/2015,06-12337,448,Mansfield Manor Care Home,,,,,,,,
Nottinghamshire County Council,1111/1001,Adult Social Care and Health,ASCH,Third Party Payments,ECA,08/09/2015,06-12339,448,Mansfield Manor Care Home,,,,,,,,
Nottinghamshire County Council,1111/1001,Adult Social Care and Health,ASCH,Third Party Payments,ECA,08/09/2015,06-12341,448,Mansfield Manor Care Home,,,,,,,,
Nottinghamshire County Council,1111/1001,Adult Social Care and Health,ASCH,Third Party Payments,ECA,08/09/2015,06-12343,448,Mansfield Manor Care Home,,,,,,,,
Nottinghamshire County Council,1111/1001,Adult Social Care and Health,ASCH,Third Party Payments,ECA,08/09/2015,06-12345,448,Mansfield Manor Care Home,,,,,,,,
Nottinghamshire County Council,1111/1001,Adult Social Care and Health,ASCH,Third Party Payments,ECA,08/09/2015,06-12372,448,Field House Nursing Home,,,,,,,,
Nottinghamshire County Council,1111/1001,Adult Social Care and Health,ASCH,Third Party Payments,ECA,08/09/2015,06-12375,448,Field House Nursing Home,,,,,,,,
Nottinghamshire County Council,1111/1001,Adult Social Care and Health,ASCH,Third Party Payments,ECA,08/09/2015,06-12378,448,Field House Nursing Home,,,,,,,,
Nottinghamshire County Council,1111/1001,Adult Social Care and Health,ASCH,Third Party Payments,ECA,08/09/2015,06-12388,448,Giltbrook Health Care Ltd,,,,,,,,
Nottinghamshire County Council,1111/1001,Adult Social Care and Health,ASCH,Third Party Payments,ECA,08/09/2015,06-12390,448,Giltbrook Health Care Ltd,,,,,,,,
Nottinghamshire County Council,1111/1001,Adult Social Care and Health,ASCH,Third Party Payments,ECA,08/09/2015,06-12393,448,Giltbrook Health Care Ltd,,,,,,,,
Nottinghamshire County Council,1111/1001,Adult Social Care and Health,ASCH,Third Party Payments,ECA,08/09/2015,06-12395,448,Giltbrook Health Care Ltd,,,,,,,,
Nottinghamshire County Council,1111/1001,Adult Social Care and Health,ASCH,Third Party Payments,ECA,08/09/2015,06-12399,960,Giltbrook Health Care Ltd,,,,,,,,
Nottinghamshire County Council,1111/1001,Adult Social Care and Health,ASCH,Third Party Payments,ECA,08/09/2015,06-12400,448,Giltbrook Health Care Ltd,,,,,,,,
Nottinghamshire County Council,1111/1001,Adult Social Care and Health,ASCH,Third Party Payments,ECA,08/09/2015,06-12403,448,Giltbrook Health Care Ltd,,,,,,,,
Nottinghamshire County Council,1111/1001,Adult Social Care and Health,ASCH,Third Party Payments,ECA,08/09/2015,06-12405,448,Giltbrook Health Care Ltd,,,,,,,,
Nottinghamshire County Council,1111/1001,Adult Social Care and Health,ASCH,Third Party Payments,ECA,08/09/2015,06-12407,448,Giltbrook Health Care Ltd,,,,,,,,
Nottinghamshire County Council,1111/1001,Adult Social Care and Health,ASCH,Third Party Payments,ECA,08/09/2015,06-12410,448,Giltbrook Health Care Ltd,,,,,,,,
Nottinghamshire County Council,1111/1001,Adult Social Care and Health,ASCH,Third Party Payments,ECA,08/09/2015,06-12412,448,Giltbrook Health Care Ltd,,,,,,,,
Nottinghamshire County Council,1111/1001,Adult Social Care and Health,ASCH,Third Party Payments,ECA,08/09/2015,06-12415,448,The Firs,,,,,,,,
Nottinghamshire County Council,1111/1001,Adult Social Care and Health,ASCH,Third Party Payments,ECA,08/09/2015,06-12420,448,Clifton Manor Care Complex,,,,,,,,
Nottinghamshire County Council,1111/1001,Adult Social Care and Health,ASCH,Third Party Payments,ECA,08/09/2015,06-12424,-1440,Clifton Manor Care Complex,,,,,,,,
Nottinghamshire County Council,1111/1001,Adult Social Care and Health,ASCH,Third Party Payments,ECA,08/09/2015,06-12448,448,Lowmoor Nursing Home,,,,,,,,
Nottinghamshire County Council,1111/1001,Adult Social Care and Health,ASCH,Third Party Payments,ECA,08/09/2015,06-12450,448,Lowmoor Nursing Home,,,,,,,,
Nottinghamshire County Council,1111/1001,Adult Social Care and Health,ASCH,Third Party Payments,ECA,08/09/2015,06-12452,448,Lowmoor Nursing Home,,,,,,,,
Nottinghamshire County Council,1111/1001,Adult Social Care and Health,ASCH,Third Party Payments,ECA,08/09/2015,06-12455,448,Lowmoor Nursing Home,,,,,,,,
Nottinghamshire County Council,1111/1001,Adult Social Care and Health,ASCH,Third Party Payments,ECA,08/09/2015,06-12457,448,Lowmoor Nursing Home,,,,,,,,
Nottinghamshire County Council,1111/1001,Adult Social Care and Health,ASCH,Third Party Payments,ECA,08/09/2015,06-12459,448,Lowmoor Nursing Home,,,,,,,,
Nottinghamshire County Council,1111/1001,Adult Social Care and Health,ASCH,Third Party Payments,ECA,08/09/2015,06-12461,616.56,Lowmoor Nursing Home,,,,,,,,
Nottinghamshire County Council,1111/1001,Adult Social Care and Health,ASCH,Third Party Payments,ECA,08/09/2015,06-12463,448,Lowmoor Nursing Home,,,,,,,,
Nottinghamshire County Council,1111/1001,Adult Social Care and Health,ASCH,Third Party Payments,ECA,08/09/2015,06-12466,448,Lowmoor Nursing Home,,,,,,,,
Nottinghamshire County Council,1111/1001,Adult Social Care and Health,ASCH,Third Party Payments,ECA,08/09/2015,06-12468,448,Lowmoor Nursing Home,,,,,,,,
Nottinghamshire County Council,1111/1001,Adult Social Care and Health,ASCH,Third Party Payments,ECA,08/09/2015,06-12565,448,Byars Nursing Home,,,,,,,,
Nottinghamshire County Council,1111/1001,Adult Social Care and Health,ASCH,Third Party Payments,ECA,08/09/2015,06-12567,448,Byars Nursing Home,,,,,,,,
Nottinghamshire County Council,1111/1001,Adult Social Care and Health,ASCH,Third Party Payments,ECA,08/09/2015,06-12569,448,Byars Nursing Home,,,,,,,,
Nottinghamshire County Council,1111/1001,Adult Social Care and Health,ASCH,Third Party Payments,ECA,08/09/2015,06-12571,448,Byars Nursing Home,,,,,,,,
Nottinghamshire County Council,1111/1001,Adult Social Care and Health,ASCH,Third Party Payments,ECA,08/09/2015,06-12573,448,Byars Nursing Home,,,,,,,,
Nottinghamshire County Council,1111/1001,Adult Social Care and Health,ASCH,Third Party Payments,ECA,08/09/2015,06-12575,448,Byars Nursing Home,,,,,,,,
Nottinghamshire County Council,1111/1001,Adult Social Care and Health,ASCH,Third Party Payments,ECA,08/09/2015,06-12577,448,Byars Nursing Home,,,,,,,,
Nottinghamshire County Council,1111/1001,Adult Social Care and Health,ASCH,Third Party Payments,ECA,08/09/2015,06-12582,448,Victoria Care Home,,,,,,,,
Nottinghamshire County Council,1111/1001,Adult Social Care and Health,ASCH,Third Party Payments,ECA,08/09/2015,06-12586,448,Victoria Care Home,,,,,,,,
Nottinghamshire County Council,1111/1001,Adult Social Care and Health,ASCH,Third Party Payments,ECA,08/09/2015,06-12588,448,Victoria Care Home,,,,,,,,
Nottinghamshire County Council,1111/1001,Adult Social Care and Health,ASCH,Third Party Payments,ECA,08/09/2015,06-12592,448,Victoria Care Home,,,,,,,,
Nottinghamshire County Council,1111/1001,Adult Social Care and Health,ASCH,Third Party Payments,ECA,08/09/2015,06-12601,448,Victoria Care Home,,,,,,,,
Nottinghamshire County Council,1111/1001,Adult Social Care and Health,ASCH,Third Party Payments,ECA,08/09/2015,06-12604,448,Victoria Care Home,,,,,,,,
Nottinghamshire County Council,1111/1001,Adult Social Care and Health,ASCH,Third Party Payments,ECA,08/09/2015,06-12610,16,Victoria Care Home,,,,,,,,
Nottinghamshire County Council,1111/1001,Adult Social Care and Health,ASCH,Third Party Payments,ECA,08/09/2015,06-12625,448,The Poplars (Derbys),,,,,,,,
Nottinghamshire County Council,1111/1001,Adult Social Care and Health,ASCH,Third Party Payments,ECA,08/09/2015,06-12638,848,Woodleigh Christian Care Home,,,,,,,,
Nottinghamshire County Council,1111/1001,Adult Social Care and Health,ASCH,Third Party Payments,ECA,08/09/2015,06-12640,1344,Woodleigh Christian Care Home,,,,,,,,
Nottinghamshire County Council,1111/1001,Adult Social Care and Health,ASCH,Third Party Payments,ECA,08/09/2015,06-12702,448,Lound Hall Nursing Home,,,,,,,,
Nottinghamshire County Council,1111/1001,Adult Social Care and Health,ASCH,Third Party Payments,ECA,08/09/2015,06-12705,448,Lound Hall Nursing Home,,,,,,,,
Nottinghamshire County Council,1111/1001,Adult Social Care and Health,ASCH,Third Party Payments,ECA,08/09/2015,06-12707,752,Lound Hall Nursing Home,,,,,,,,
Nottinghamshire County Council,1111/1001,Adult Social Care and Health,ASCH,Third Party Payments,ECA,08/09/2015,06-12711,448,Lound Hall Nursing Home,,,,,,,,
Nottinghamshire County Council,1111/1001,Adult Social Care and Health,ASCH,Third Party Payments,ECA,08/09/2015,06-12742,448,Leyton Healthcare No5 Shires Care C,,,,,,,,
Nottinghamshire County Council,1111/1001,Adult Social Care and Health,ASCH,Third Party Payments,ECA,08/09/2015,06-12745,448,Leyton Healthcare No5 Shires Care C,,,,,,,,
Nottinghamshire County Council,1111/1001,Adult Social Care and Health,ASCH,Third Party Payments,ECA,08/09/2015,06-12747,448,Leyton Healthcare No5 Shires Care C,,,,,,,,
Nottinghamshire County Council,1111/1001,Adult Social Care and Health,ASCH,Third Party Payments,ECA,08/09/2015,06-12749,448,Leyton Healthcare No5 Shires Care C,,,,,,,,
Nottinghamshire County Council,1111/1001,Adult Social Care and Health,ASCH,Third Party Payments,ECA,08/09/2015,06-12759,448,Leyton Healthcare No5 Shires Care C,,,,,,,,
Nottinghamshire County Council,1111/1001,Adult Social Care and Health,ASCH,Third Party Payments,ECA,08/09/2015,06-12762,448,Leyton Healthcare No5 Shires Care C,,,,,,,,
Nottinghamshire County Council,1111/1001,Adult Social Care and Health,ASCH,Third Party Payments,ECA,08/09/2015,06-12765,1792,Leyton Healthcare No5 Shires Care C,,,,,,,,
Nottinghamshire County Council,1111/1001,Adult Social Care and Health,ASCH,Third Party Payments,ECA,08/09/2015,06-12786,448,Cherry Holt Care Home,,,,,,,,
Nottinghamshire County Council,1111/1001,Adult Social Care and Health,ASCH,Third Party Payments,ECA,08/09/2015,06-12789,448,Cherry Holt Care Home,,,,,,,,
Nottinghamshire County Council,1111/1001,Adult Social Care and Health,ASCH,Third Party Payments,ECA,08/09/2015,06-12791,448,Cherry Holt Care Home,,,,,,,,
Nottinghamshire County Council,1111/1001,Adult Social Care and Health,ASCH,Third Party Payments,ECA,08/09/2015,06-12793,448,Cherry Holt Care Home,,,,,,,,
Nottinghamshire County Council,1111/1001,Adult Social Care and Health,ASCH,Third Party Payments,ECA,08/09/2015,06-12795,448,Cherry Holt Care Home,,,,,,,,
Nottinghamshire County Council,1111/1001,Adult Social Care and Health,ASCH,Third Party Payments,ECA,08/09/2015,06-12797,448,Cherry Holt Care Home,,,,,,,,
Nottinghamshire County Council,1111/1001,Adult Social Care and Health,ASCH,Third Party Payments,ECA,08/09/2015,06-12799,448,Cherry Holt Care Home,,,,,,,,
Nottinghamshire County Council,1111/1001,Adult Social Care and Health,ASCH,Third Party Payments,ECA,08/09/2015,06-12804,448,Cherry Holt Care Home,,,,,,,,
Nottinghamshire County Council,1111/1001,Adult Social Care and Health,ASCH,Third Party Payments,ECA,08/09/2015,06-12806,616.56,Cherry Holt Care Home,,,,,,,,
Nottinghamshire County Council,1111/1001,Adult Social Care and Health,ASCH,Third Party Payments,ECA,08/09/2015,06-12808,448,Cherry Holt Care Home,,,,,,,,
Nottinghamshire County Council,1111/1001,Adult Social Care and Health,ASCH,Third Party Payments,ECA,08/09/2015,06-12810,448,Cherry Holt Care Home,,,,,,,,
Nottinghamshire County Council,1111/1001,Adult Social Care and Health,ASCH,Third Party Payments,ECA,08/09/2015,06-12812,448,Cherry Holt Care Home,,,,,,,,
Nottinghamshire County Council,1111/1001,Adult Social Care and Health,ASCH,Third Party Payments,ECA,08/09/2015,06-12815,448,Cherry Holt Care Home,,,,,,,,
Nottinghamshire County Council,1111/1001,Adult Social Care and Health,ASCH,Third Party Payments,ECA,08/09/2015,06-12819,16,Cherry Holt Care Home,,,,,,,,
Nottinghamshire County Council,1111/1001,Adult Social Care and Health,ASCH,Third Party Payments,ECA,08/09/2015,06-12822,448,Cherry Holt Care Home,,,,,,,,
Nottinghamshire County Council,1111/1001,Adult Social Care and Health,ASCH,Third Party Payments,ECA,08/09/2015,06-12824,448,Cherry Holt Care Home,,,,,,,,
Nottinghamshire County Council,1111/1001,Adult Social Care and Health,ASCH,Third Party Payments,ECA,08/09/2015,06-12838,448,Stanton Hall Nursing Home,,,,,,,,
Nottinghamshire County Council,1111/1001,Adult Social Care and Health,ASCH,Third Party Payments,ECA,08/09/2015,06-12840,448,Stoke House Nursing Home,,,,,,,,
Nottinghamshire County Council,1111/1001,Adult Social Care and Health,ASCH,Third Party Payments,ECA,08/09/2015,06-12842,752,Stoke House Nursing Home,,,,,,,,
Nottinghamshire County Council,1111/1001,Adult Social Care and Health,ASCH,Third Party Payments,ECA,08/09/2015,06-12844,448,Stoke House Nursing Home,,,,,,,,
Nottinghamshire County Council,1111/1001,Adult Social Care and Health,ASCH,Third Party Payments,ECA,08/09/2015,06-12846,448,Stoke House Nursing Home,,,,,,,,
Nottinghamshire County Council,1111/1001,Adult Social Care and Health,ASCH,Third Party Payments,ECA,08/09/2015,06-12848,448,Stoke House Nursing Home,,,,,,,,
Nottinghamshire County Council,1111/1001,Adult Social Care and Health,ASCH,Third Party Payments,ECA,08/09/2015,06-12850,448,Stoke House Nursing Home,,,,,,,,
Nottinghamshire County Council,1111/1001,Adult Social Care and Health,ASCH,Third Party Payments,ECA,08/09/2015,06-12852,448,Stoke House Nursing Home,,,,,,,,
Nottinghamshire County Council,1111/1001,Adult Social Care and Health,ASCH,Third Party Payments,ECA,08/09/2015,06-12854,448,Stoke House Nursing Home,,,,,,,,
Nottinghamshire County Council,1111/1001,Adult Social Care and Health,ASCH,Third Party Payments,ECA,08/09/2015,06-12856,448,Stoke House Nursing Home,,,,,,,,
Nottinghamshire County Council,1111/1001,Adult Social Care and Health,ASCH,Third Party Payments,ECA,08/09/2015,06-12860,448,Stoke House Nursing Home,,,,,,,,
Nottinghamshire County Council,1111/1001,Adult Social Care and Health,ASCH,Third Party Payments,ECA,08/09/2015,06-12862,448,Stoke House Nursing Home,,,,,,,,
Nottinghamshire County Council,1111/1001,Adult Social Care and Health,ASCH,Third Party Payments,ECA,08/09/2015,06-12864,448,Stoke House Nursing Home,,,,,,,,
Nottinghamshire County Council,1111/1001,Adult Social Care and Health,ASCH,Third Party Payments,ECA,08/09/2015,06-12880,448,Oakdene Care Home,,,,,,,,
Nottinghamshire County Council,1111/1001,Adult Social Care and Health,ASCH,Third Party Payments,ECA,08/09/2015,06-12907,448,Alexandra Nursing Home,,,,,,,,
Nottinghamshire County Council,1111/1001,Adult Social Care and Health,ASCH,Third Party Payments,ECA,08/09/2015,06-12909,448,Alexandra Nursing Home,,,,,,,,
Nottinghamshire County Council,1111/1001,Adult Social Care and Health,ASCH,Third Party Payments,ECA,08/09/2015,06-12911,448,Ernhale Lodge Nursing Home,,,,,,,,
Nottinghamshire County Council,1111/1001,Adult Social Care and Health,ASCH,Third Party Payments,ECA,08/09/2015,06-12913,448,Ernhale Lodge Nursing Home,,,,,,,,
Nottinghamshire County Council,1111/1001,Adult Social Care and Health,ASCH,Third Party Payments,ECA,08/09/2015,06-12915,448,Ernhale Lodge Nursing Home,,,,,,,,
Nottinghamshire County Council,1111/1001,Adult Social Care and Health,ASCH,Third Party Payments,ECA,08/09/2015,06-12917,448,Ernhale Lodge Nursing Home,,,,,,,,
Nottinghamshire County Council,1111/1001,Adult Social Care and Health,ASCH,Third Party Payments,ECA,08/09/2015,06-12919,448,Ernhale Lodge Nursing Home,,,,,,,,
Nottinghamshire County Council,1111/1001,Adult Social Care and Health,ASCH,Third Party Payments,ECA,08/09/2015,06-12921,448,Ernhale Lodge Nursing Home,,,,,,,,
Nottinghamshire County Council,1111/1001,Adult Social Care and Health,ASCH,Third Party Payments,ECA,08/09/2015,06-12994,448,Pathfinders Neurological Care Centr,,,,,,,,
Nottinghamshire County Council,1111/1001,Adult Social Care and Health,ASCH,Third Party Payments,ECA,08/09/2015,06-12996,448,Pathfinders Neurological Care Centr,,,,,,,,
Nottinghamshire County Council,1111/1001,Adult Social Care and Health,ASCH,Third Party Payments,ECA,08/09/2015,06-12998,448,Pathfinders Neurological Care Centr,,,,,,,,
Nottinghamshire County Council,1111/1001,Adult Social Care and Health,ASCH,Third Party Payments,ECA,08/09/2015,06-13000,448,Pathfinders Neurological Care Centr,,,,,,,,
Nottinghamshire County Council,1111/1001,Adult Social Care and Health,ASCH,Third Party Payments,ECA,08/09/2015,06-13006,448,Pathfinders Neurological Care Centr,,,,,,,,
Nottinghamshire County Council,1111/1001,Adult Social Care and Health,ASCH,Third Party Payments,ECA,08/09/2015,06-13011,448,Pathfinders Neurological Care Centr,,,,,,,,
Nottinghamshire County Council,1111/1001,Adult Social Care and Health,ASCH,Third Party Payments,ECA,08/09/2015,06-13014,448,Pathfinders Neurological Care Centr,,,,,,,,
Nottinghamshire County Council,1111/1001,Adult Social Care and Health,ASCH,Third Party Payments,ECA,08/09/2015,06-13016,224,Pathfinders Neurological Care Centr,,,,,,,,
Nottinghamshire County Council,1111/1001,Adult Social Care and Health,ASCH,Third Party Payments,ECA,08/09/2015,06-13019,448,Pathfinders Neurological Care Centr,,,,,,,,
Nottinghamshire County Council,1111/1001,Adult Social Care and Health,ASCH,Third Party Payments,ECA,08/09/2015,06-13021,448,Pathfinders Neurological Care Centr,,,,,,,,
Nottinghamshire County Council,1111/1001,Adult Social Care and Health,ASCH,Third Party Payments,ECA,08/09/2015,06-13023,448,Pathfinders Neurological Care Centr,,,,,,,,
Nottinghamshire County Council,1111/1001,Adult Social Care and Health,ASCH,Third Party Payments,ECA,08/09/2015,06-13039,448,Greenwood Lodge,,,,,,,,
Nottinghamshire County Council,1111/1001,Adult Social Care and Health,ASCH,Third Party Payments,ECA,08/09/2015,06-13043,448,Greenwood Lodge,,,,,,,,
Nottinghamshire County Council,1111/1001,Adult Social Care and Health,ASCH,Third Party Payments,ECA,08/09/2015,06-13045,448,Greenwood Lodge,,,,,,,,
Nottinghamshire County Council,1111/1001,Adult Social Care and Health,ASCH,Third Party Payments,ECA,08/09/2015,06-13047,448,Greenwood Lodge,,,,,,,,
Nottinghamshire County Council,1111/1001,Adult Social Care and Health,ASCH,Third Party Payments,ECA,08/09/2015,06-13071,448,Boughton Manor Nursing Homes Limite,,,,,,,,
Nottinghamshire County Council,1111/1001,Adult Social Care and Health,ASCH,Third Party Payments,ECA,08/09/2015,06-13073,448,Boughton Manor Nursing Homes Limite,,,,,,,,
Nottinghamshire County Council,1111/1001,Adult Social Care and Health,ASCH,Third Party Payments,ECA,08/09/2015,06-13075,448,Boughton Manor Nursing Homes Limite,,,,,,,,
Nottinghamshire County Council,1111/1001,Adult Social Care and Health,ASCH,Third Party Payments,ECA,08/09/2015,06-13077,448,Boughton Manor Nursing Homes Limite,,,,,,,,
Nottinghamshire County Council,1111/1001,Adult Social Care and Health,ASCH,Third Party Payments,ECA,08/09/2015,06-13079,448,Boughton Manor Nursing Homes Limite,,,,,,,,
Nottinghamshire County Council,1111/1001,Adult Social Care and Health,ASCH,Third Party Payments,ECA,08/09/2015,06-13081,448,Boughton Manor Nursing Homes Limite,,,,,,,,
Nottinghamshire County Council,1111/1001,Adult Social Care and Health,ASCH,Third Party Payments,ECA,08/09/2015,06-13083,443.56,Boughton Manor Nursing Homes Limite,,,,,,,,
Nottinghamshire County Council,1111/1001,Adult Social Care and Health,ASCH,Third Party Payments,ECA,08/09/2015,06-13085,448,Boughton Manor Nursing Homes Limite,,,,,,,,
Nottinghamshire County Council,1111/1001,Adult Social Care and Health,ASCH,Third Party Payments,ECA,08/09/2015,06-13087,448,Boughton Manor Nursing Homes Limite,,,,,,,,
Nottinghamshire County Council,1111/1001,Adult Social Care and Health,ASCH,Third Party Payments,ECA,08/09/2015,06-13089,448,Boughton Manor Nursing Homes Limite,,,,,,,,
Nottinghamshire County Council,1111/1001,Adult Social Care and Health,ASCH,Third Party Payments,ECA,08/09/2015,06-13091,448,Boughton Manor Nursing Homes Limite,,,,,,,,
Nottinghamshire County Council,1111/1001,Adult Social Care and Health,ASCH,Third Party Payments,ECA,08/09/2015,06-13206,448,Westvilla Nursing Home,,,,,,,,
Nottinghamshire County Council,1111/1001,Adult Social Care and Health,ASCH,Third Party Payments,ECA,08/09/2015,06-13208,448,Westvilla Nursing Home,,,,,,,,
Nottinghamshire County Council,1111/1001,Adult Social Care and Health,ASCH,Third Party Payments,ECA,08/09/2015,06-13212,448,Westvilla Nursing Home,,,,,,,,
Nottinghamshire County Council,1111/1001,Adult Social Care and Health,ASCH,Third Party Payments,ECA,08/09/2015,06-13214,448,Westvilla Nursing Home,,,,,,,,
Nottinghamshire County Council,1111/1001,Adult Social Care and Health,ASCH,Third Party Payments,ECA,08/09/2015,06-13216,448,Westvilla Nursing Home,,,,,,,,
Nottinghamshire County Council,1111/1001,Adult Social Care and Health,ASCH,Third Party Payments,ECA,08/09/2015,06-13218,448,Westvilla Nursing Home,,,,,,,,
Nottinghamshire County Council,1111/1001,Adult Social Care and Health,ASCH,Third Party Payments,ECA,08/09/2015,06-13220,448,Westvilla Nursing Home,,,,,,,,
Nottinghamshire County Council,1111/1001,Adult Social Care and Health,ASCH,Third Party Payments,ECA,08/09/2015,06-13222,448,Westvilla Nursing Home,,,,,,,,
Nottinghamshire County Council,1111/1001,Adult Social Care and Health,ASCH,Third Party Payments,ECA,08/09/2015,06-13224,448,Westvilla Nursing Home,,,,,,,,
Nottinghamshire County Council,1111/1001,Adult Social Care and Health,ASCH,Third Party Payments,ECA,08/09/2015,06-13226,448,Westvilla Nursing Home,,,,,,,,
Nottinghamshire County Council,1111/1001,Adult Social Care and Health,ASCH,Third Party Payments,ECA,08/09/2015,06-13228,448,Westvilla Nursing Home,,,,,,,,
Nottinghamshire County Council,1111/1001,Adult Social Care and Health,ASCH,Third Party Payments,ECA,08/09/2015,06-13230,448,Westvilla Nursing Home,,,,,,,,
Nottinghamshire County Council,1111/1001,Adult Social Care and Health,ASCH,Third Party Payments,ECA,08/09/2015,06-13232,448,Westvilla Nursing Home,,,,,,,,
Nottinghamshire County Council,1111/1001,Adult Social Care and Health,ASCH,Third Party Payments,ECA,08/09/2015,06-13234,448,Westvilla Nursing Home,,,,,,,,
Nottinghamshire County Council,1111/1001,Adult Social Care and Health,ASCH,Third Party Payments,ECA,08/09/2015,06-13236,448,Westvilla Nursing Home,,,,,,,,
Nottinghamshire County Council,1111/1001,Adult Social Care and Health,ASCH,Third Party Payments,ECA,08/09/2015,06-13264,448,Challenge House,,,,,,,,
Nottinghamshire County Council,1111/1001,Adult Social Care and Health,ASCH,Third Party Payments,ECA,08/09/2015,06-13266,616.56,Challenge House,,,,,,,,
Nottinghamshire County Council,1111/1001,Adult Social Care and Health,ASCH,Third Party Payments,ECA,08/09/2015,06-13267,112,Challenge House,,,,,,,,
Nottinghamshire County Council,1111/1001,Adult Social Care and Health,ASCH,Third Party Payments,ECA,08/09/2015,06-13269,448,Challenge House,,,,,,,,
Nottinghamshire County Council,1111/1001,Adult Social Care and Health,ASCH,Third Party Payments,ECA,08/09/2015,06-13272,616.56,Challenge House,,,,,,,,
Nottinghamshire County Council,1111/1001,Adult Social Care and Health,ASCH,Third Party Payments,ECA,08/09/2015,06-13273,616.56,Challenge House,,,,,,,,
Nottinghamshire County Council,1111/1001,Adult Social Care and Health,ASCH,Third Party Payments,ECA,08/09/2015,06-13277,448,Parkside Care Home,,,,,,,,
Nottinghamshire County Council,1111/1001,Adult Social Care and Health,ASCH,Third Party Payments,ECA,08/09/2015,06-13279,448,Parkside Care Home,,,,,,,,
Nottinghamshire County Council,1111/1001,Adult Social Care and Health,ASCH,Third Party Payments,ECA,08/09/2015,06-13281,448,Parkside Care Home,,,,,,,,
Nottinghamshire County Council,1111/1001,Adult Social Care and Health,ASCH,Third Party Payments,ECA,08/09/2015,06-13283,448,Parkside Care Home,,,,,,,,
Nottinghamshire County Council,1111/1001,Adult Social Care and Health,ASCH,Third Party Payments,ECA,08/09/2015,06-13285,448,Parkside Care Home,,,,,,,,
Nottinghamshire County Council,1111/1001,Adult Social Care and Health,ASCH,Third Party Payments,ECA,08/09/2015,06-13287,448,Parkside Care Home,,,,,,,,
Nottinghamshire County Council,1111/1001,Adult Social Care and Health,ASCH,Third Party Payments,ECA,08/09/2015,06-13290,448,Parkside Care Home,,,,,,,,
Nottinghamshire County Council,1111/1001,Adult Social Care and Health,ASCH,Third Party Payments,ECA,08/09/2015,06-13294,448,Parkside Care Home,,,,,,,,
Nottinghamshire County Council,1111/1001,Adult Social Care and Health,ASCH,Third Party Payments,ECA,08/09/2015,06-13297,448,Parkside Care Home,,,,,,,,
Nottinghamshire County Council,1111/1001,Adult Social Care and Health,ASCH,Third Party Payments,ECA,08/09/2015,06-13300,448,Parkside Care Home,,,,,,,,
Nottinghamshire County Council,1111/1001,Adult Social Care and Health,ASCH,Third Party Payments,ECA,08/09/2015,06-13302,448,Parkside Care Home,,,,,,,,
Nottinghamshire County Council,1111/1001,Adult Social Care and Health,ASCH,Third Party Payments,ECA,08/09/2015,06-13304,448,Parkside Care Home,,,,,,,,
Nottinghamshire County Council,1111/1001,Adult Social Care and Health,ASCH,Third Party Payments,ECA,08/09/2015,06-13306,672,Parkside Care Home,,,,,,,,
Nottinghamshire County Council,1111/1001,Adult Social Care and Health,ASCH,Third Party Payments,ECA,08/09/2015,06-13307,448,Parkside Care Home,,,,,,,,
Nottinghamshire County Council,1111/1001,Adult Social Care and Health,ASCH,Third Party Payments,ECA,08/09/2015,06-13312,448,Parkside Care Home,,,,,,,,
Nottinghamshire County Council,1111/1001,Adult Social Care and Health,ASCH,Third Party Payments,ECA,08/09/2015,06-13314,448,Parkside Care Home,,,,,,,,
Nottinghamshire County Council,1111/1001,Adult Social Care and Health,ASCH,Third Party Payments,ECA,08/09/2015,06-13316,697.02,Parkside Care Home,,,,,,,,
Nottinghamshire County Council,1111/1001,Adult Social Care and Health,ASCH,Third Party Payments,ECA,08/09/2015,06-13327,448,Forest Manor Care Home,,,,,,,,
Nottinghamshire County Council,1111/1001,Adult Social Care and Health,ASCH,Third Party Payments,ECA,08/09/2015,06-13329,448,Forest Manor Care Home,,,,,,,,
Nottinghamshire County Council,1111/1001,Adult Social Care and Health,ASCH,Third Party Payments,ECA,08/09/2015,06-13332,448,Forest Manor Care Home,,,,,,,,
Nottinghamshire County Council,1111/1001,Adult Social Care and Health,ASCH,Third Party Payments,ECA,08/09/2015,06-13335,448,Forest Manor Care Home,,,,,,,,
